{"text_format":"1","workbook":"xlsx","n_sheets":7,"sheets":["Zahteva","Osnovni podatki","Opis posega","Vplivi","Območje in lega","Dodatne pripombe","Sifranti"],"not_rendered":{"charts":0,"images":1,"macros":1,"external_links":1,"defined_names":6,"comments":5,"pivot_tables":0},"unopened":[],"bounds":{"document_bytes":16777216,"sheet_cells":100000,"rows_first":2000,"rows_last":500,"rows_between":2000,"halvings":0,"cell_chars":16384,"cell_head_chars":4096},"cells_cut":0,"cells_raw":0,"read":"whole","date_system":"1900"}

{"sheet":"Zahteva","index":0,"n_rows":62,"n_cols":11,"rows_kept":62,"cut":false,"hidden":false,"merged":[[0,9,0,13],[0,2,0,7],[58,9,58,12],[61,2,61,4],[61,7,61,8],[59,9,60,12],[55,1,56,4],[57,9,57,12],[8,1,8,4],[9,1,9,4],[11,1,11,3],[11,4,11,13],[19,1,19,13],[17,2,17,12],[20,2,20,3],[20,4,20,13],[13,2,13,3],[15,1,15,13],[16,1,16,13],[18,1,18,3],[18,4,18,13],[1,1,1,13],[3,1,3,4],[4,1,4,4],[5,1,5,4],[7,1,7,4],[2,1,2,13],[21,2,21,3],[21,4,21,13],[22,2,22,3],[22,4,22,13],[23,10,23,13],[24,1,24,3],[24,4,24,13],[26,1,26,3],[28,1,28,3],[26,4,26,13],[28,4,28,13],[25,4,25,13],[25,1,25,3],[45,1,45,13],[43,1,43,13],[41,1,41,5],[54,1,54,4],[31,2,31,3],[31,4,31,13],[33,2,33,3],[33,4,33,13],[51,1,51,13],[49,1,49,13],[48,1,48,13],[47,1,47,13],[46,1,46,13],[39,1,39,3],[39,4,39,13],[35,1,35,3],[30,1,30,13],[29,1,29,3],[29,4,29,13],[27,1,27,3],[27,4,27,13],[38,1,38,3],[38,4,38,13],[34,10,34,13],[32,2,32,3],[32,4,32,13],[35,4,35,13],[36,1,36,3],[36,4,36,13],[37,1,37,3],[37,4,37,13]]}
[null,41,"              \n\n\n              Langusova 4, 1000 Ljubljana\n\n\n\n",null,null,null,null,null,null,"\n\n\nT: 01 478 82 00\nE: gp.mope@gov.si\nwww.mope.gov.si\n"]
[null,"ZAHTEVA ZA ZAČETEK PREDHODNEGA POSTOPKA"]
[null,"Zahteva za ugotovitev ali je za nameravani poseg v okolje treba izvesti presojo vplivov na okolje (predhodni postopek)"]
[null,"Aporia d.o.o."]
[null,"Kraška ulica 2 "]
[null,"6210 Sežana "]
[]
[null,"Ministrstvo za okolje, podnebje in energijo"]
[null,"Langusova 4"]
[null,"1000 Ljubljana"]
[]
[null,"Zadeva:",null,null,"NIVELACIJA TERENA - OLN SEŽANA ENOTE UE 4, UE 5, UE 6 IN DEL UE C"]
[]
[null,"Datum:","2023-04-18"]
[]
[null,"Nosilec nameravanega posega v okolje1"]
[null,"Opomba:  (1) - V primeru več nosilcev nameravanih posegov je treba podatke navesti za vse in obvezno navesti njihovega pooblaščenca po ZUP. "]
[null,null,"Tabelo(-e) za vpis dodatnega nosilca se dodaja z gumbom \"Dodaj nosilca posega\"."]
[null," NAZIV :",null,null,"OBČINA SEŽANA "]
[null," Naslov:"]
[null,null,"ulica:",null,"Partizanska cesta"]
[null,null,"hišna številka:",null,4]
[null,null,"ime pošte:",null,"Sežana"]
[null,null,"poštna številka:",null," "," "," "," ",null,null,6210]
[null,"Matična številka:",null,null,5884047000]
[null,"Odgovorna oseba:",null,null,"Andrej Sila"]
[null,"e-naslov:",null,null,"obcina@sezana.si"]
[null,"Ali imate varen e poštni predal?",null,null,"DA"]
[null,"telefon:",null,null,"05 731 01 00"]
[null,"Pooblaščenec po ZUP:",null,null,"APORIA d.o.o. "]
[null," Naslov:"]
[null,null,"ulica:",null,"Kraška ulica "]
[null,null,"hišna številka:",null,2]
[null,null,"ime pošte:",null,"Sežana"]
[null,null,"poštna številka:",null," "," "," "," ",null,null,6210]
[null,"Matična številka:",null,null,8044996000]
[null,"Odgovorna oseba:",null,null,"Tilen Štolfa"]
[null,"e-naslov:",null,null,"info@aporia.si "]
[null,"Ali imate varen e poštni predal?",null,null,"NE"]
[null,"telefon:",null,null,"031 346 406"]
[]
[null,"Pooblastilo priloženo? ",null,null,null,null,"DA"]
[]
[null,"Upravna taksa:"]
[]
[null,"V primeru plačila upravne takse (v višini 22,60 EUR) na podračun javnofinančnih prihodkov z imenom: Upravna taksa – državna"]
[null,"je treba navesti naslednje podatke:"]
[null,"račun št.: 0110 0100 0315 637,"]
[null,"sklic:  11 25500-7111002-354000xx ."]
[null,"V sklicu se na mestu xx vpiše letnica tekočega leta - na primer: za leto 2019 navedete v št. sklica na koncu 19."]
[]
[null,"Poslati na naslov: Ministrstvo za okolje, podnebje in energijo, Langusova 4, 1000 Ljubljana, v elektronski in fizični obliki."]
[]
[]
[null,"vlogo pripravil-a:"]
[null,"Tilen Štolfa, Aporia d.o.o."]
[]
[null,null,null,null,null,null,null,null,null,"podpis pooblaščenca"]
[]
[]
[]
[null,"V/Na","Sežani",null,null,null," , dne","2023-04-18"]

{"sheet":"Osnovni podatki","index":1,"n_rows":54,"n_cols":7,"rows_kept":54,"cut":false,"hidden":false,"merged":[[46,1,46,2],[46,5,46,6],[47,5,47,6],[47,1,47,2],[42,1,44,5],[42,6,44,6],[1,1,1,6],[3,1,3,5],[5,1,5,4],[5,5,5,6],[6,1,6,4],[6,5,6,6],[2,1,2,6],[13,1,13,5],[15,2,15,6],[16,2,16,6],[8,1,8,5],[10,1,10,2],[10,5,10,6],[11,1,11,2],[11,5,11,6],[22,1,22,2],[23,1,23,2],[22,4,22,6],[23,4,23,6],[18,1,20,5],[18,6,20,6],[30,1,31,5],[30,6,31,6],[36,1,37,5],[36,6,37,6],[25,1,25,5],[27,1,27,3],[28,1,28,3],[39,3,39,6],[40,3,40,6],[39,1,39,2],[40,1,40,2],[33,1,33,3],[34,1,34,3],[48,1,48,2],[48,5,48,6],[53,1,53,2],[54,1,54,2],[53,3,53,6],[54,3,54,6],[50,1,51,5],[50,6,51,6]]}
[]
[null,"SPLOŠNO O NAMERAVANEM POSEGU"]
[null,"Izbrati je potrebno vrednosti za vsa polja obrobljena z modro v stolpcu G."]
[null,"Ali je za izvedbo projekta treba pridobiti gradbeno dovoljenje? ",null,null,null,null,"NE"]
[null,8,25,50,56]
[null,"Opis vrste objekta",null,null,null,"Šifra vrste objekta"]
[null,null,null,null,null,{"$f":"IF(B7<>\"\",VLOOKUP(B7,Sifranti!$B$3:$C$90,2,FALSE),\"\")","v":""}]
[]
[null,"Ali se nameravani poseg izvaja v okviru koncesijske pogodbe? ",null,null,null,null,"NE"]
[]
[null,"Naslov pogodbe",null,"Št. Pogodbe","Datum","Imena pogodbenih strank"]
[]
[]
[null,"Ali je nameravani poseg prijavljen za odobritev financiranja iz javnih sredstev? ",null,null,null,null,"NE"]
[]
[null,"Št. Razpisa","Naziv razpisa"]
[]
[]
[null,"Ali je bila izvedba posega načrtovana s planom/programom, ki je bil sprejet na podlagi predpisov o kmetijstvu, ribištvu, prostorskem načrtovanju, vodah, gozdarstvu, energetiki, prometu ali varstvu okolja? ",null,null,null,null,"NE"]
[]
[]
[]
[null,"Naziv plana/programa",null,"Leto sprejema","Naziv organa, ki je plan/program sprejel"]
[]
[]
[null,"Ali gre za spremembo posega, za katerega je bilo že izdano okoljevarstveno soglasje? ",null,null,null,null,"NE"]
[]
[null,"Št. Soglasja"]
[]
[]
[null,"Ali gre za spremembo posega, za katerega je bilo že izdano okoljevarstveno dovoljenje, ni pa bilo izdano okoljevarstveno soglasje?",null,null,null,null,"NE"]
[]
[]
[null,"Št. Dovoljenja"]
[]
[]
[null,"Ali gre za spremembo posega, za katerega je bilo izdano gradbeno dovoljenje, ni pa bilo izdano okoljevarstveno soglasje?",null,null,null,null,"NE"]
[]
[]
[null,"Št. Dovoljenja",null,"Ime organa, ki je dovoljenje izdal"]
[]
[]
[null,"Ali je za izvedbo nameravanega posega treba pridobiti ali je bilo pridobljeno katero drugo dovoljenje, razen gradbenega (okoljevarstveno dovoljenje ali soglasje, projektne pogoje, strokovno mnenje,...)? ",null,null,null,null,"DA"]
[]
[]
[]
[null,"Vrsta dovoljenja",null,"Št. dovoljenja","Datum izdaje","Izdajatelj"]
[null,"mnenje",null,null,null,"Zavod za gozdove"]
[null,"mnenje",null,null,null,"Zavod RS za varstvo narave OE Nova Gorica"]
[]
[null,"Ali gre za spremembo posega, za katerega je bilo izdano katero drugo dovoljenje, soglasje, projektni pogoji ali strokovno mnenje, ni pa bilo izdano okoljevarstveno soglasje?",null,null,null,null,"NE"]
[]
[null,43]
[null,"Št. Dovoljenja",null,"Ime organa, ki je dovoljenje izdal"]

{"sheet":"Opis posega","index":2,"n_rows":77,"n_cols":7,"rows_kept":77,"cut":false,"hidden":false,"merged":[[10,1,12,6],[72,1,72,4],[72,5,72,6],[73,1,73,4],[73,5,73,6],[70,1,70,6],[14,1,14,6],[15,1,17,6],[19,1,19,4],[30,1,30,6],[48,1,48,3],[48,4,48,6],[31,1,31,3],[38,2,39,2],[38,3,39,3],[20,1,20,6],[1,1,1,6],[2,1,2,6],[4,1,4,6],[5,1,7,6],[9,1,9,6],[76,1,78,6],[32,1,33,1],[32,2,33,2],[32,3,33,3],[32,4,33,4],[32,5,33,5],[32,6,33,6],[38,1,39,1],[36,1,36,6],[37,1,37,3],[37,4,37,6],[42,1,42,5],[57,1,57,5],[59,1,62,5],[59,6,62,6],[51,1,51,5],[27,1,27,2],[27,4,27,5],[28,1,28,2],[28,4,28,5],[75,1,75,6],[52,1,52,6],[53,1,55,6],[65,1,65,6],[66,1,68,6],[63,1,63,2],[64,1,64,2],[63,5,63,6],[64,5,64,6],[21,1,21,2],[21,3,21,4],[21,5,21,6],[43,1,43,6],[44,1,46,6],[23,1,23,6],[24,1,24,2],[24,4,24,5],[25,1,25,2],[25,4,25,5],[38,4,39,4],[38,5,39,5],[38,6,39,6],[31,4,31,6],[26,1,26,2],[26,4,26,5]]}
[]
[null,"OPIS NAMERAVANEGA POSEGA V OKOLJE"]
[null,"Smiselno se opiše celotni projekt, ne glede na to, koliko različnih vrst posegov, objektov, dejavnosti zajema, in glede na to v kateri fazi je projekt "]
[null,30,75]
[null,"Namen in vsebina nameravanega posega v okolje: "]
[null,"Obseg obsega območje urejanja prostora UE C, UE 4, UE 5 in UE 6 v sklopu OLN Sežana Zahod\n\nObseg se izvaja na parcelah 3776/4, 3745/206, 3745/195, 3745/194, 3776/3, 3745/205, 3745/540, 6091/51, 3787/5, 3787/6, 6091/49, 3745/178, 3787/4, 3745/535, 3786/7, 3745/534, 3745/532, 6091/46, 3745/410, 3745/526, 3786/5, 3745/521 vse k.o. Sežana\n\nV sklopu posega se izvede predhodno čiščenje terena, ki obsega posek dreves in odstranitve grmičevja. Po izvedeni odstranitvi rastja se izvede odkop prekrivke( sloja humusa debeline do 20 cm) in nato se izvedejo vsa potrebna zemeljska dela, ki obsegajo izvedbo izkopov in nasipov za potrebe izvedbe nivelacije terena. Globina maksimalnega izkopa bo znašala cca 7,00 m, medtem ko bo maksimalna višina nasipa zanašala 5,00 m. Kote nivelacije se izvedeno skladno s predloženimi profili. \n\nV sklopu posega je predviden izkop 10.615 m3 prekivke/humusa, 70.570 m3 izkopa od katerega se 35.820 m3 porabi za nasipe na lokaciji. Višek materiala, torej 10.615 m3 prekriveke humusa + 34.750 m3 izkpopanega materiala, ki ga ni mogoče uporabiti na lokciji, skupaj 45.365 m3 se odeplej na stalno deponijo. "]
[]
[]
[]
[null,"Opis značilnosti posega v času GRADNJE:"]
[null,"Poseg v času gradnje predstavlja gradbeno inženirski poseg, za katerega je predvidena uporaba gradbene mehanizacije ter izvedba miniranja po potrebi v slojih zemljine V. kategorije, natačneje kjer je klasičen izkop z gradbeno mehanizacijo otežen. Material predviden za zasipe se v času izvajaja posega ustrezno obdela in po potrebi tudi mleje."]
[]
[]
[]
[null,"Opis značilnosti posega v času OBRATOVANJA:"]
[null,"V času obratovanja je izvedena nivelacija terena predpriprava za ostale gradnje, ki se bodo na območju izvajali in za katere bo potrebno pridobivanje gradbeneha dovljenja (infratruktura, stavbe in ostali objekti katere je mogoče graditi skladno z določili OLN)"]
[]
[]
[]
[null,"Površina zemljišča, na katerem se bo poseg v okolje izvajal (ocena):",null,null,null,60185,"m2"]
[null,"Obstoječa dejanska raba prostora:"]
[null,"kmetijsko zemljišče, poraslo z gozdnim drevjem",null,"gozdno"]
[]
[null,"Podrobnejši podatki o nameravanem posegu"]
[null,"Tip / Namembnost objekta",null,"Okvirne dimenzije","Proizvodnja /Dejavnost",null,"Moč / Zmogljivost"]
[null,"Nivelacija terena",null,"60.185 m2"]
[null,"Izkop  prekrivke",null,"10.615 m3"]
[null,"Izkop v IV in V kategoriji",null,"70.570 m3"]
[null,"Nasip z izkopnim materialom",null,"35.820 m2"]
[]
[null,"Teoretična proizvodna zmogljivost naprave v 24 h."]
[null,"Pred posegom",null,null,"Po posegu"]
[null,"Naprava oz. tehnološka enota","zmogljivost / količina","Enota","Naprava oz. tehnološka enota","zmogljivost / količina","Enota"]
[]
[null,"ni naprave","ni naprave","ni naprave","ni naprave","ni naprave","ni naprave"]
[]
[null,"Dejanska predvidena proizvodna zmogljivost naprave."]
[null,"Pred posegom",null,null,"Po posegu"]
[null,"Naprava oz. tehnološka enota","zmogljivost / količina","Enota","Naprava oz. tehnološka enota","zmogljivost / količina","Enota"]
[]
[null,"ni naprave","ni naprave","ni naprave","ni naprave","ni naprave","ni naprave"]
[]
[null,"Ali se nameravani poseg (stavba) funkcionalno in prostorsko navezuje na obstoječo/-e stavbe?",null,null,null,null,"DA"]
[null,"ODGOVOR UTEMELJITE!"]
[null,"Poseg se izvaja v sklopu predvidene nivelacije enote urejanja prostora  UE C, UE 4, UE 5 in UE 6 v sklopu OLN Sežana Zahod  s katerimi se površine navezujejo na preostali del ureditve."]
[]
[]
[]
[null,"Bruto tlorisna površina nameravanega posega (vsota)",null,null,"Bruto tlorisna površina obstoječe stavbe (vsota)"]
[null,null,60185,"m2",null,60185,"m2"]
[]
[null,"Ali je nameravani poseg ekonomsko povezan z drugimi posegi v okolje?"]
[null,"ODGOVOR UTEMELJITE!"]
[null,"Poseg se izvaja v sklopu predvidene nivelacije enote urejanja prostora  UE C, UE 4, UE 5 in UE 6 v sklopu OLN Sežana Zahod  s katerimi se površine navezujejo na preostali del ureditve."]
[]
[]
[]
[null,"Ali se nameravani poseg uvršča med gradbeno inženirske objekte gospodarske javne infrastrukture?",null,null,null,null,"NE"]
[]
[null,"V primeru, da se nameravani poseg uvršča med gradbeno inženirske objekte gospodarske javne infrastrukture, navedite ali se nameravani poseg navezuje na že izvedene posege v okolje iste vrste, ki so se začeli uporabljati pred več kot sedmimi leti in predložite dokazila (uporabno dovoljenje ipd.)?",null,null,null,null,"NE"]
[]
[]
[]
[null,"Vrsta dovoljenja",null,"Datum Izdaje","Št. dovoljenja","Izdajatelj"]
[]
[null,"Zaradi hitrejšega reševanja zahtevka priložite navedene dokumente."]
[null,"V kolikor se nameravani poseg uvršča med gradbene inženirske objekte gospodarske infrastrukture, ki so se začeli uporabljati pred manj, kot sedmimi leti, predložite podatek o dolžini obstoječega omrežja, mlajšega od sedem let"]
[]
[]
[]
[null,"Navedite, v katero kategorijo se po uredbi uvršča nameravani poseg"]
[null,41]
[null,"Opis vrste posega",null,null,null,"Šifra vrste posega"]
[null,"Druge industrijske cone, če presegajo 1 ha",null,null,null,{"$f":"IF(B74<>\"\",VLOOKUP(B74,Sifranti!$G$2:$H$223,2,FALSE),\"\")","v":"G.I.1.1"}]
[]
[null,"Opis posega, ki ga ni mogoče uvrstiti med posege iz priloge 1 PVO uredbe, ugotovitev ustrezno utemeljite."]
[null,"Poseg je uvrščen v G.I.1.1"]

{"sheet":"Vplivi","index":3,"n_rows":124,"n_cols":7,"rows_kept":124,"cut":false,"hidden":false,"merged":[[121,1,121,6],[122,1,122,2],[122,4,122,5],[123,1,125,3],[123,4,125,6],[117,1,119,3],[117,4,119,6],[113,1,115,6],[116,1,116,2],[116,4,116,5],[108,1,110,3],[108,4,110,6],[107,1,107,2],[107,4,107,5],[112,1,112,6],[89,1,89,2],[96,1,98,3],[96,4,98,6],[102,1,104,3],[102,4,104,6],[106,1,106,6],[101,1,101,2],[101,4,101,5],[100,1,100,6],[89,4,89,5],[95,1,95,2],[95,4,95,5],[94,1,94,6],[47,1,47,2],[47,4,47,5],[48,1,50,3],[48,4,50,6],[59,1,59,2],[52,1,52,6],[58,1,58,6],[64,1,64,6],[70,1,70,6],[59,4,59,5],[65,1,65,2],[65,4,65,5],[54,1,56,3],[54,4,56,6],[60,1,62,3],[60,4,62,6],[53,1,53,2],[53,4,53,5],[1,1,1,6],[2,1,2,6],[6,1,8,3],[6,4,8,6],[12,1,14,3],[12,4,14,6],[5,1,5,2],[5,4,5,5],[4,1,4,6],[11,1,11,2],[11,4,11,5],[10,1,10,6],[17,1,17,2],[17,4,17,5],[16,1,16,6],[22,1,22,6],[28,1,28,6],[18,1,20,3],[18,4,20,6],[24,1,26,3],[24,4,26,6],[23,1,23,2],[23,4,23,5],[34,1,34,6],[40,1,40,6],[46,1,46,6],[29,1,29,2],[29,4,29,5],[35,1,35,2],[35,4,35,5],[41,1,41,2],[41,4,41,5],[30,1,32,3],[30,4,32,6],[36,1,38,3],[36,4,38,6],[42,1,44,3],[42,4,44,6],[84,1,86,3],[84,4,86,6],[90,1,92,3],[90,4,92,6],[83,1,83,2],[83,4,83,5],[78,1,80,3],[78,4,80,6],[66,1,68,3],[66,4,68,6],[72,1,74,3],[72,4,74,6],[82,1,82,6],[88,1,88,6],[77,1,77,2],[77,4,77,5],[76,1,76,6],[71,1,71,2],[71,4,71,5]]}
[]
[null,"MOŽNI VPLIVI NAMERAVANEGA POSEGA NA OKOLJE"]
[null,"Pri izpolnjevanju preglednice ni dovolj samo izbrati DA/NE, ampak navedite še kratko obrazložitev. V obrazložitvi navedite, za kakšne vrste vpliva gre in ali bo ta manjši ali večji ali ga sploh ne bo, lahko navedete tudi količine, če so znane. Odgovoriti je treba na vse navedene vsebine za vplive v času gradnje/izvajanja posega in za čas obratovanja naprave oziroma po izvedbi posega in pri tem upoštevati tudi kumulativne vplive z obstoječimi posegi na obravnavani lokaciji."]
[]
[null,"Emisije onesnaževal v zrak"]
[null,"V času gradnje",null,"DA","V času obratovanja",null,"NE"]
[null,"Zaradi izvedbe nivelacije na ožjem področju izvajanja del pričakujemo povečano onesnaženost zraka predvsem s prašnimi delci zaradi gradbenih del, emisije iz prometa zaradi obratovanja strojev in prometa s tovornimi vozili zaradi dovoza in odvoza materiala. Emisije snovi v zrak, ki bodo nastale pri gradnji, se bodo  z vetrom disperzno širile v prostor, pri čemer se bodo predvsem partikularni delci onesnaženja (»aerosoli«) v pretežni meri odlagali v neposredno bližino gradbišča, kar pa je z do sedaj znanimi tehničnimi rešitvami težko kontrolirati in zmanjšati. Za preprečitev širjenja prahu, predvsem z vetrom, je treba poskrbeti za stalno vlaženje gradbenega materiala ki se lahko praši. V času gradbenih del pričakujemo tudi povečanje emisij snovi v zrak zaradi obratovanja gradbene mehanizacije z dizelskimi motorji, in sicer pričakujemo predvsem emisije dušikov oksidov, ogljikovega monoksida, organskih snovi in prašnih delcev. Za zmanjšanje emisij snovi v zrak iz motorjev z notranjim izgorevanjem gradbenih strojev in naprav, predlagamo, da se le ti v času, ko se ne bodo uporabljali za delo izključijo. Ob upoštevanju predlaganih ukrepov v času gradnje, oziroma izvajanja del ocenjujemo, da bo vpliv na zrak v času gradnje zmeren in ne bo presegal mejnih vrednosti. Ni negativnih vplivov na okolje.",null,null,"V času obratovanja ni pričakovati emisij v zrak."]
[]
[]
[]
[null,"Emisije toplogrednih plinov"]
[null,"V času gradnje",null,"DA","V času obratovanja",null,"NE"]
[null,"V času gradbenih del pričakujemo tudi povečanje emisij snovi v zrak zaradi obratovanja gradbene mehanizacije z dizelskimi motorji, in sicer pričakujemo predvsem emisije dušikov oksidov, ogljikovega monoksida, organskih snovi in prašnih delcev. Za zmanjšanje emisij snovi v zrak iz motorjev z notranjim izgorevanjem gradbenih strojev in naprav, predlagamo, da se le ti v času, ko se ne bodo uporabljali za delo izključijo.  Glede na napisano in ob upoštevanju predlaganih ukrepov v času gradnje, oziroma izvajanja del ocenjujemo, da bo vpliv na zrak v času gradnje zmeren in ne bo presegal mejnih vrednosti.",null,null,"V času obratovanja ni pričakovati emisij toplogrednih plinov."]
[]
[]
[]
[null,"Emisije snovi v vode"]
[null,"V času gradnje",null,"DA","V času obratovanja",null,"NE"]
[null,"Izvajanje gradbenih del bo nekoliko povečalo onesnaževanje padavinskih vod s prašnimi delci. Priporočamo, da se vse odpadne in tehnološke zbirajo in ponovno uporabijo. V času gradnje je treba za delavce na gradbišču postaviti kemična stranišča, oziroma\nzagotoviti uporabo sanitarij v obstoječem objektu. Glede na napisano in ob upoštevanju predlaganih ukrepov v času gradnje, oziroma izvajanja del ocenjujemo, da bo vpliv odpadnih vod v času gradnje, neznaten.",null,null,"V času obratovanja ni pričakovati emisij snovi v vode"]
[]
[]
[]
[null,"Odlaganje / izpusti snovi v tla"]
[null,"V času gradnje",null,"DA","V času obratovanja",null,"NE"]
[null,"Prašni delci, ki se bodo sproščali v ozračje, se bodo deloma usedli na utrjene površine deloma na zelene površine. Pri gradnji se lahko uporabljajo le\ngradbeni stroji, ki so redno servisirani in vzdrževani (puščanje naftnih derivatov). Na gradbišču ne smejo biti postavljene postaje za pretakanje in skladiščenje goriva, naprave za separacijo ter mesta za pranje, vzdrževanje motornih vozil in naprav. Glede na napisano in ob upoštevanju predlaganih ukrepov v času gradnje, oziroma izvajanja del ocenjujemo, da bo vpliv na tla in podtalje v času gradnje, neznaten.",null,null,"V času obratovanja ni pričakovati emisij snovi v tla."]
[]
[]
[]
[null,"Nastajanje odpadkov"]
[null,"V času gradnje",null,"DA","V času obratovanja",null,"NE"]
[null,"Pri gradnji objekta bodo nastali gradbeni odpadki kot so ostanki lesa, peska, malte, betona. Lesene odpadke naj se uporabi za kurjenje. Inertne gradbene odpadke se ne sme uporabljati za zasipavanje. Z nevarnimi odpadki je potrebno ravnati skladno z navodili elaborata o gospodarjenju z gradbenimi odpadki. Za gradnjo objekta se lahko uporabljajo le materiali, ki ne vsebujejo snovi, ki lahko ogrožajo vodo. Na načrtovani lokaciji se ne smejo uporabiti materiali iz jalovišč, žlindre in kemične in metalurške industrije, ostanki od sežiganja smeti in materiala, ki vsebujejo katran. Eventualne odpadke iz kemičnih stranišč je treba voziti preko pooblaščenega podjetja na ustrezno biološko čistilno napravo. Gradbene odpadke je treba hraniti ali začasno skladiščiti na gradbišču ločeno po vrsti tako, da se prepreči onesnaževanje okolja. Če začasno skladiščenje na gradbišču ni mogoče, je treba gradbene odpadke hraniti v zabojnikih na ali ob gradbišču. Gradbene odpadke je potrebno oddajati zbiralcu gradbenih odpadkov. Glede na napisano in ob upoštevanju predlaganih ukrepov v času gradnje, oziroma izvajanja del ocenjujemo, da bo vpliv odpadkov v času gradnje, neznaten.",null,null,"V času obratovanja ni pričakovati nastajanja odpadkov."]
[]
[]
[]
[null,"Hrup"]
[null,"V času gradnje",null,"DA","V času obratovanja",null,"NE"]
[null,"V času gradnje objekta pričakujemo povečane emisije hrupa zaradi obratovanja gradbenih strojev, miniranja in povečane intenzitete prometa s tovornimi vozili. Hrup, ki bo nastajal zaradi izvajanja gradbenih del z gradbeno mehanizacijo, bo le časovno omejen. Za zmanjšanje širjenje hrupa z gradbišča v sosednjo okolico priporočamo ograditev gradbišča z gradbeno ograjo. Gradbene stroje in naprave je v času, ko se le ti ne bodo uporabljali za delo potrebno izključiti.  Glede na napisano in ob upoštevanju predlaganih ukrepov v času gradnje ocenjujemo, da bo vpliv hrupa v času gradnje v mejah dopustnega.",null,null,"V času obratovanja ni pričakovati nastajanja hrupa."]
[]
[]
[]
[null,"Radioaktivno sevanje"]
[null,"V času gradnje",null,"NE","V času obratovanja",null,"NE"]
[null,"V času gradnje ni predvidena uporaba strojev ter naprav ki bi povzročala radioaktivno sevanje . ",null,null,"V času obratovanja ni pričakovati nastajanja radioaktivnega sevanja."]
[]
[]
[]
[null,"Elektromagnetno sevanje"]
[null,"V času gradnje",null,"NE","V času obratovanja",null,"NE"]
[null,"V času gradnje se bo uporabljalo stroje, ki ne povzročajo elektromagnetnega sevanja. ",null,null,"V času obratovanja ni pričakovati nastajanja elektromagnetnega sevanja."]
[]
[]
[]
[null,"Sevanje svetlobe v okolico"]
[null,"V času gradnje",null,"NE","V času obratovanja",null,"NE"]
[null,"V času izgradnje objekta bo objekt začasno osvetljen za potrebe izvajanja gradbenih del in sicer predvsem v zimskem in jutranjem času v kolikor se izkaže potreba po opravljanju del v teh terminih. ",null,null,"V času obratovanja ni pričakovati sevanja svetlobe v okolje."]
[]
[]
[]
[null,"Segrevanje ozračja/vode"]
[null,"V času gradnje",null,"NE","V času obratovanja",null,"NE"]
[null,"V času izgradnje objekta ni pričakovati segrevanja ozračja/vode.",null,null,"V času obratovanja ni pričakovati segrevanja ozračja/vode."]
[]
[]
[]
[null,"Smrad"]
[null,"V času gradnje",null,"NE","V času obratovanja",null,"NE"]
[null,"V času izgradnje objekta ni pričakovati povečanega smrada zaradi izgradnje objekta",null,null,"V času obratovanja ni pričakovati, da bi objekt povzročal smrad."]
[]
[]
[]
[null,"Vidna izpostavljenost"]
[null,"V času gradnje",null,"NE","V času obratovanja",null,"NE"]
[null,"V času izgradnje ni pričakovati vidne izpostavljenosti nivelacije, saj se ta izvede na kote predvidene z OLN Sežana Zahod.",null,null,"V času obratovanja ni pričakovati vidne izpostavljenosti nivelacije, saj se ta izvede na kote predvidene z OLN Sežana Zahod."]
[]
[]
[]
[null,"Vibracije"]
[null,"V času gradnje",null,"DA","V času obratovanja",null,"NE"]
[null,"V času izgradnje objekta se pričakuje minimalne vibracije zaradi izvedbe miniranja ter izvedbe zemeljskih del na izkopih. Ostale vibracije bodo v minimalnem obsegu prisotne pri valjanju podlage za izvedbo talne plošče. Kot preventivni ukrep se bo izvedel monitoring sosednjih objektov posega. ",null,null,"V času obratovanja ni pričakovati vibracij. "]
[]
[]
[]
[null,"Sprememba rabe tal"]
[null,"V času gradnje",null,"DA","V času obratovanja",null,"DA"]
[null,"Nivelacija se izvaja z namenom zagotoviti ustrezne površine za potrebe razvoja poslovne cone. ",null,null,"Raba terena se iz gozda in kmetijskih površin v zaraščanju po nivelaciji nameni poslovnim dejavnostim skladu z določili, ki jih predvideva prostorski akt. \t\t"]
[]
[]
[]
[null,"Sprememba vegetacije"]
[null,"V času gradnje",null,"DA","V času obratovanja",null,"NE"]
[null,"V času gradnje se odstrani vsa vegetacija v območju. ",null,null,"V času obratovanja ni pričakovati spremembe vegetacije."]
[]
[]
[]
[null,"Eksplozije"]
[null,"V času gradnje",null,"DA","V času obratovanja",null,"NE"]
[null,"V času izgradnje objekta se pričakuje minimalne vibracije zaradi izvedbe miniranja ter izvedbe zemeljskih del na izkopih.  Kot preventivni ukrep se bo izvedel monitoring sosednjih objektov posega. ",null,null,"V času obratovanja ni pričakovati eksplozij."]
[]
[]
[]
[null,"Fizična sprememba/ preoblikovanje površine"]
[null,"V času gradnje",null,"DA","V času obratovanja",null,"NE"]
[null,"V sklopu posega se izvede predhodno čiščenje terena, ki obsega posek dreves in odstranitve grmičevja. Po izvedeni odstranitvi rastja se izvede odkop prekrivke (sloja humusa debeline do 20 cm) in nato se izvedejo vsa potrebna zemeljska dela, ki obsegajo izvedbo izkopov in nasipov za potrebe izvedbe nivelacije terena. Globina maksimalnega izkopa bo znašala cca 7,00 m, medtem ko bo maksimalna višina nasipa zanašala 5,00 m. Kote nivelacije se izvedeno skladno s predloženimi profili. ",null,null,"Po nivelaciji se teren ne več spreminja."]
[]
[]
[]
[null,"Raba vode"]
[null,"V času gradnje",null,"DA","V času obratovanja",null,"DA"]
[null,"V času gradnje se uporablja zgolj voda za potrebe delovanja gradbišča iz priključka na parceli.",null,null,"V času obratovanja ni pričakovati porabe vode"]
[]
[]
[]
[null,"Drugo"]
[null,"-"]
[]
[]
[null,"V času gradnje",null,null,"V času obratovanja"]
[]
[]
[]
[]
[null,"Tveganje povzročitve večjih nesreč po predpisih, ki urejajo varstvo okolja, in naravnih nesreč, tudi tistih, ki so v skladu z znanstvenimi spoznanji lahko posledica podnebnih sprememb"]
[null,"V času gradnje",null,"NE","V času obratovanja",null,"NE"]
[null,"V času izgradnje ni pričakovati večjega tveganja za povzročitev večjih nesreč.",null,null,"V času obratovanja ni pričakovati večjega tveganja za povzročitev večjih nesreč."]

{"sheet":"Območje in lega","index":4,"n_rows":63,"n_cols":7,"rows_kept":63,"cut":false,"hidden":false,"merged":[[37,1,37,2],[37,5,37,6],[47,2,47,5],[48,2,48,5],[49,2,49,5],[50,2,50,5],[41,2,41,5],[42,2,42,5],[43,2,43,5],[44,2,44,5],[45,2,45,5],[46,2,46,5],[33,1,33,5],[34,1,34,2],[34,5,34,6],[35,1,35,2],[35,5,35,6],[27,1,27,5],[28,1,28,5],[29,1,29,5],[30,1,30,5],[31,1,31,5],[1,1,1,6],[3,1,3,6],[4,1,4,2],[6,1,6,6],[26,1,26,6],[7,1,7,2],[7,5,7,6],[8,1,8,2],[8,5,8,6],[10,1,10,6],[11,1,13,6],[15,1,15,6],[16,1,18,6],[20,1,20,5],[22,1,22,5],[23,1,24,6],[61,2,61,5],[62,2,62,5],[36,1,36,2],[36,5,36,6],[56,2,56,5],[57,2,57,5],[58,2,58,5],[59,2,59,5],[60,2,60,5],[51,2,51,5],[52,2,52,5],[53,2,53,5],[54,2,54,5],[55,2,55,5],[39,1,39,6],[40,2,40,5]]}
[]
[null,"OBMOČJE IN LEGA NAMERAVANEGA POSEGA"]
[]
[null,"Občina oziroma občine nameravanega posega"]
[null,"SEŽANA"]
[]
[null,"Naslov nameravanega posega, če je znan:"]
[null,"Ulica",null,"Hišna številka","Poštna številka","Pošta"]
[]
[]
[null,"Geografski opis lege v prostoru: "]
[null,"Obseg obsega območje urejanja prostora UE C, UE 4, UE 5 in UE 6 v sklopu OLN Sežana Zahod\n\nObseg se izvaja na parcelah 3776/4, 3745/206, 3745/195, 3745/194, 3776/3, 3745/205, 3745/540, 6091/51, 3787/5, 3787/6, 6091/49, 3745/178, 3787/4, 3745/535, 3786/7, 3745/534, 3745/532, 6091/46, 3745/410, 3745/526, 3786/5, 3745/521 vse k.o. Sežana"]
[]
[]
[]
[null,"Opis stanja okolja in temeljne značilnosti lokacije:  "]
[null,"Na območju, ki v naravi ppredsatvlja zaraščen travnik in gozd. Na območju ni zavedenih naravnih vrednot in območje se ne nahaja na območju varovanja naravne dediščine. Za potrebe nivelacije je bil za območje narejen Geotehnični načrt izvedbe raziskav št. 07/20-IDP, februar 2020, ki je priloga vlogi. "]
[]
[]
[]
[null,"Priložena je skica ali karta z označeno lokacijo nameravanega posega na pregledni karti v merilu A4 ali A3.",null,null,null,null,"DA"]
[]
[null,"Ali se v krogu 1 km od nameravanega posega že nahajajo/izvajajo/načrtujejo podobni ali istovrstni posegi v okolje?",null,null,null,null,"DA"]
[null,"Na območju se izvajasoroden poseg na enotah urejanja prostora UE 2, UE 3 , ki se del prostorskega načrta OLN Sežana Zahod. Poseg se nahaja zahodno in severno od predvidenega posega. "]
[]
[]
[null,"Priložena je dokumentacija, iz katere so razvidni podrobnejši podatki o nameravanem posegu: "]
[null,"Skica z označeno lokacijo nameravanega posega najmanj v merilu 1:25.000 ",null,null,null,null,"DA"]
[null,"Podatki o melioraciji"]
[null,"Rudarski projekt"]
[null,"Predlog rudarskega koncesijskega akta "]
[null,"Študija različic s predlogom najustreznejše različice ali rešitve ali predlog državnega prostorskega načrta ali pobuda "]
[null,39,null,64]
[null,"Drugo"]
[null,"Naziv dokumenta",null,"Št. Dokumenta","Datum izdaje","Izdajatelj"]
[null,"Pooblastilo ",null,null,null,"Občina Sežana"]
[null,"Geotehnični načrt izvedbe raziskav ",null,"07/20-IDP","2020-02-01","Geoeng&co. d.o.o."]
[null," izvleček IZP",null,"433-2023","2023-04-01","Aporia d.o.o."]
[]
[null,"Katastrska občina in parcelne številke, če so znane"]
[null,"številka KO","naziv KO",null,null,null,"številka parcele"]
[null,2455,{"$f":"IF(B42<>\"\",VLOOKUP(B42,Sifranti!$M$2:$N$2697,2,FALSE),\"\")","v":"SEŽANA"},null,null,null,"3776/4"]
[null,2455,{"$f":"IF(B43<>\"\",VLOOKUP(B43,Sifranti!$M$2:$N$2697,2,FALSE),\"\")","v":"SEŽANA"},null,null,null,"3745/206"]
[null,2455,{"$f":"IF(B44<>\"\",VLOOKUP(B44,Sifranti!$M$2:$N$2697,2,FALSE),\"\")","v":"SEŽANA"},null,null,null,"3745/195"]
[null,2455,{"$f":"IF(B45<>\"\",VLOOKUP(B45,Sifranti!$M$2:$N$2697,2,FALSE),\"\")","v":"SEŽANA"},null,null,null,"3745/194"]
[null,2455,{"$f":"IF(B46<>\"\",VLOOKUP(B46,Sifranti!$M$2:$N$2697,2,FALSE),\"\")","v":"SEŽANA"},null,null,null,"3776/3"]
[null,2455,{"$f":"IF(B47<>\"\",VLOOKUP(B47,Sifranti!$M$2:$N$2697,2,FALSE),\"\")","v":"SEŽANA"},null,null,null,"3745/205"]
[null,2455,{"$f":"IF(B48<>\"\",VLOOKUP(B48,Sifranti!$M$2:$N$2697,2,FALSE),\"\")","v":"SEŽANA"},null,null,null," 3745/540"]
[null,2455,{"$f":"IF(B49<>\"\",VLOOKUP(B49,Sifranti!$M$2:$N$2697,2,FALSE),\"\")","v":"SEŽANA"},null,null,null,"6091/51"]
[null,2455,{"$f":"IF(B50<>\"\",VLOOKUP(B50,Sifranti!$M$2:$N$2697,2,FALSE),\"\")","v":"SEŽANA"},null,null,null,"3787/5"]
[null,2455,{"$f":"IF(B51<>\"\",VLOOKUP(B51,Sifranti!$M$2:$N$2697,2,FALSE),\"\")","v":"SEŽANA"},null,null,null,"3787/6"]
[null,2455,{"$f":"IF(B52<>\"\",VLOOKUP(B52,Sifranti!$M$2:$N$2697,2,FALSE),\"\")","v":"SEŽANA"},null,null,null,"6091/49"]
[null,2455,{"$f":"IF(B53<>\"\",VLOOKUP(B53,Sifranti!$M$2:$N$2697,2,FALSE),\"\")","v":"SEŽANA"},null,null,null,"3745/178"]
[null,2455,{"$f":"IF(B54<>\"\",VLOOKUP(B54,Sifranti!$M$2:$N$2697,2,FALSE),\"\")","v":"SEŽANA"},null,null,null,"3787/4"]
[null,2455,{"$f":"IF(B55<>\"\",VLOOKUP(B55,Sifranti!$M$2:$N$2697,2,FALSE),\"\")","v":"SEŽANA"},null,null,null,"3745/535"]
[null,2455,{"$f":"IF(B56<>\"\",VLOOKUP(B56,Sifranti!$M$2:$N$2697,2,FALSE),\"\")","v":"SEŽANA"},null,null,null,"3786/7"]
[null,2455,{"$f":"IF(B57<>\"\",VLOOKUP(B57,Sifranti!$M$2:$N$2697,2,FALSE),\"\")","v":"SEŽANA"},null,null,null,"3745/534"]
[null,2455,{"$f":"IF(B58<>\"\",VLOOKUP(B58,Sifranti!$M$2:$N$2697,2,FALSE),\"\")","v":"SEŽANA"},null,null,null,"3745/532"]
[null,2455,{"$f":"IF(B59<>\"\",VLOOKUP(B59,Sifranti!$M$2:$N$2697,2,FALSE),\"\")","v":"SEŽANA"},null,null,null,"6091/46"]
[null,2455,{"$f":"IF(B60<>\"\",VLOOKUP(B60,Sifranti!$M$2:$N$2697,2,FALSE),\"\")","v":"SEŽANA"},null,null,null,"3745/410"]
[null,2455,{"$f":"IF(B61<>\"\",VLOOKUP(B61,Sifranti!$M$2:$N$2697,2,FALSE),\"\")","v":"SEŽANA"},null,null,null,"3745/526"]
[null,2455,{"$f":"IF(B62<>\"\",VLOOKUP(B62,Sifranti!$M$2:$N$2697,2,FALSE),\"\")","v":"SEŽANA"},null,null,null,"3786/5"]
[null,2455,{"$f":"IF(B63<>\"\",VLOOKUP(B63,Sifranti!$M$2:$N$2697,2,FALSE),\"\")","v":"SEŽANA"},null,null,null,"3745/52"]

{"sheet":"Dodatne pripombe","index":5,"n_rows":0,"n_cols":0,"rows_kept":0,"cut":false,"hidden":false,"merged":[]}

{"sheet":"Sifranti","index":6,"n_rows":2697,"n_cols":16,"rows_kept":2697,"cut":false,"hidden":true,"merged":[]}
[null,"Opis stavbe","Šifra stavbe",null,"Enote",null,"Opis poglavja in vrsta posega","Oznaka",null,"ID občine","Ime občine",null,"KO","Naziv","Občina"]
[null,null,null,null,null,null,null,null,null,null,null,null,1,"HODOŠ","MURSKA SOBOTA","barjanski travnik"]
[null,"Avtoceste, hitre ceste in glavne ceste (daljinske ceste)",21111,null,"gvž",null,"Agromelioracije3 ter projekti za preoblikovanje kmetijskih zemljiških posestev4 na površini agromelioracijskih del ali površini preoblikovanih kmetijskih zemljišč 20 ha ali več","A.I.1",null,1,"AJDOVŠČINA",null,2,"SUHI VRH","MURSKA SOBOTA","barje"]
[null,"Cevovodi za odpadno vodo (kanalizacija)",22231,null,"ha",null,"Agromelioracije3 ter projekti za preoblikovanje kmetijskih zemljiških posestev4 na površini agromelioracijskih del ali površini preoblikovanih kmetijskih zemljišč 10 ha ali več","A.I.2",null,195,"APAČE",null,3,"DOLENCI","MURSKA SOBOTA","drevesa in grmičevje"]
[null,"Čistilne naprave",22232,null,"kg",null,"Agromelioracije3 ter projekti za preoblikovanje kmetijskih zemljiških posestev4 na površini agromelioracijskih del ali površini preoblikovanih kmetijskih zemljišč 5 ha ali več, če gre za poseg na varovanem območju po predpisih o ohranjanju narave","A.I.2",null,2,"BELTINCI",null,4,"BUDINCI","MURSKA SOBOTA","ekstenzivni oz. travniški sadovnjak"]
[null,"Daljinski (prenosni) elektroenergetski vodi",22140,null,"kg/m3",null,"Vodnogospodarski projekti za kmetijstvo, vključno z namakalnimi in osuševalnimi5 projekti če znaša površina 100 ha ali več ali prostornina akumulacije vsaj 10 milijonov m3 ali več ","A.II.1",null,148,"BENEDIKT",null,5,"MARKOVCI","MURSKA SOBOTA","gozdno"]
[null,"Daljinski (transportni) vodovodi",22121,null,"kJ",null,"Vodnogospodarski projekti za kmetijstvo, vključno z namakalnimi in osuševalnimi5 projekti če znaša površina 50 ha ali več ","A.II.2",null,149,"BISTRICA OB SOTLI",null,6,"ČEPINCI","MURSKA SOBOTA","hmeljišče"]
[null,"Daljinsko (hrbtenično) komunikacijsko omrežje",22130,null,"km",null,"Pogozditev6, osnovanje gozdne plantaže7 ali krčitev gozda8  na površini nad 30 ha","A.III.1",null,3,"BLED",null,7,"LUCOVA","MURSKA SOBOTA","intenzivni sadovnjak"]
[null,"Druge gostinske stavbe za kratkotrajno nastanitev",12120,null,"kos",null,"Pogozditev6, osnovanje gozdne plantaže7 ali krčitev gozda8 na površini najmanj 15 ha pri pogozditvi, osnovanju gozdne plantaže ali krčitvi in na površini 5 ha ali več, ko je poseg krčitve na varovanem območju po predpisih o ohranjanju narave","A.IIII.2",null,150,"BLOKE",null,8,"NERADNOVCI","MURSKA SOBOTA","kmetijsko"]
[null,"Druge nestanovanjske kmetijske stavbe",12714,null,"l/s",null,null,"A.V",null,4,"BOHINJ",null,9,"MARTINJE","MURSKA SOBOTA","kmetijsko zemljišče v zaraščanju"]
[null,"Druge poslovne stavbe",12203,null,"m",null,"Objekti za intenzivno rejo živali z najmanj 85.000 mesti za piščance ali z najmanj 60.000 mesti za kokoši","A.IV.1",null,5,"BOROVNICA",null,10,"BOREČA","MURSKA SOBOTA","kmetijsko zemljišče, poraslo z gozdnim drevjem"]
[null,"Druge stavbe, ki niso uvrščene drugje",12740,null,"m3",null,"Objekti za intenzivno rejo živali z najmanj 10.000 in manj kot 85.000 mesti za piščance ali z najmanj 10.000 in manj kot 60.000 mesti za kokoši ali z najmanj 10.000 mesti za druge vrste perutnine","A.IV.2",null,6,"BOVEC",null,11,"ŽENAVLJE","MURSKA SOBOTA","matičnjak"]
[null,"Drugi gradbeni inženirski objekti za šport, rekreacijo in prosti čas",24122,null,"mest",null,"Objekti za intenzivno rejo živaliz najmanj 3000 mesti za prašiče pitance (nad 30 kg teže)","A.IV.3",null,151,"BRASLOVČE",null,12,"ŠULINCI","MURSKA SOBOTA","neobdelano kmetijsko zemljišče"]
[null,"Drugi gradbeni inženirski objekti, ki niso uvrščeni drugje",24205,null,"MW",null,"Objekti za intenzivno rejo živali z najmanj 1500 mesti in manj kot 3000 mesti za prašiče pitance (nad 30 kg teže)","A.IV.4",null,7,"BRDA",null,13,"STANJEVCI","MURSKA SOBOTA","neplodno"]
[null,"Drugi kmetijski gradbeni inženirski objekti",24202,null,"Sm3",null,"Objekti za intenzivno rejo živali z najmanj 900 mesti za plemenske svinje","A.IV.5",null,8,"BREZOVICA",null,14,"GORNJI PETROVCI","MURSKA SOBOTA","odprto zemljišče brez ali z nepomembnim rastlinskim pokrovom"]
[null,"Dvostanovanjske stavbe",11210,null,"t",null,"Objekti za intenzivno rejo živali z najmanj 200 in manj kot 900 za plemenske svinje","A.IV.6",null,9,"BREŽICE",null,15,"ADRIJANCI","MURSKA SOBOTA","oljčnik"]
[null,"Ekološki otoki",32110,null,null,null,"Objekti za intenzivno rejo živali z zmogljivostjo namestitve najmanj 500 GVŽ, ko gre za govedo, konje, drobnico ali mešano rejo več vrst živali","A.IV.7",null,152,"CANKOVA",null,16,"PESKOVCI","MURSKA SOBOTA","ostali trajni nasadi"]
[null,"Elektrarne in drugi energetski objekti",23020,null,null,null,"Objekti za intenzivno rejo živali z zmogljivostjo namestitve najmanj 200 in manj kot 500 GVŽ, ko gre za govedo, konje, drobnico ali mešano rejo več vrst živali","A.IV.7.1",null,11,"CELJE",null,17,"ŠALOVCI","MURSKA SOBOTA","ostalo zamočvirjeno zemljišče"]
[null,"Enostanovanjske stavbe",11100,null,null,null,"Marikultura na površini, večji od 5 ha, ko gre za školjčišča, ali vzreja morskih rib na vzrejni površini, večji od 1000 m2","A.V.1",null,12,"CERKLJE NA GORENJSKEM",null,18,"KRPLIVNIK","MURSKA SOBOTA","plantaža gozdnega drevja"]
[null,"Garažne stavbe",12420,null,null,null,"Vzreja salmonidnih rib z odvzemom vode nad 100 l/s ali z zmogljivostjo letne proizvodnje nad 50 t","A.V.2",null,13,"CERKNICA",null,19,"DOMANJŠEVCI","MURSKA SOBOTA","pozidano in sorodno zemljišče"]
[null,"Glavne in regionalne železniške proge",21210,null,null,null,"Vzreja ciprinidnih rib v ribniku s površino nad 3 ha ali z zmogljivostjo letne proizvodnje nad 50 t","A.V.3",null,14,"CERKNO",null,20,"KRIŽEVCI","MURSKA SOBOTA","rastlinjak"]
[null,"Gostilne, restavracije in točilnice",12112,null,null,null,"Akvakultura v zaprtih sistemih za intenzivno vzrejo vodnih organizmov z zmogljivostjo letne proizvodnje nad 10 t","A.V.4",null,153,"CERKVENJAK",null,21,"PANOVCI","MURSKA SOBOTA","suho odprto zemljišče s posebnim rastlinskim pokrovom"]
[null,"Grajena območja urbanih vrtov",31160,null,null,null,"Raziskovanje in pridobivanje ogljikovodikov, če se pri tem načrtuje vbrizgavanje 1000 m3 ali več vode v vrtino na fazo lomljenja ali 7500 m3 ali več vode na vrtino v celotnem postopku lomljenja","B.1",null,196,"CIRKULANE",null,22,"KUKEČ","MURSKA SOBOTA","trajne rastline na njivskih površinah"]
[null,"Grajene gozdne vlake",31150,null,null,null,"Drugo raziskovanje ali pridobivanje ogljikovodikov in drugih mineralnih surovin z globinskim vrtanjem","B.1.1",null,15,"ČRENŠOVCI",null,23,"TRDKOVA","MURSKA SOBOTA","trajni travnik"]
[null,"Grajeni prostori na drevesu",33110,null,null,null,"Izkoriščanje jedrskih mineralnih surovin","B.2",null,16,"ČRNA NA KOROŠKEM",null,24,"MATJAŠEVCI","MURSKA SOBOTA","trstičje"]
[null,"Grajeni prostori na vodi",33120,null,null,null,"Pridobivanje nafte in zemeljskega plina, kjer načrpana količina presega 500 t na dan v primeru nafte in 500 000 standardnih kubičnih metrov (sm3) na dan v primeru plina*","B.3",null,17,"ČRNOMELJ",null,25,"DOLIČ","MURSKA SOBOTA","vinograd"]
[null,"Hotelske in podobne stavbe za kratkotrajno nastanitev",12111,null,null,null,"Drugo pridobivanje nafte in zemeljskega plina","B.3.1",null,18,"DESTRNIK",null,26,"KUZMA","MURSKA SOBOTA","voda"]
[null,"Industrijske stavbe",12510,null,null,null,"Kamnolomi in dnevni kopi, kjer površina kopa presega 25 ha, ali izkopavanje šote, kjer površina kopa presega 150 ha","B.4",null,19,"DIVAČA",null,27,"GORNJI SLAVEČI","MURSKA SOBOTA"]
[null,"Izkopi in odkopi",31120,null,null,null,"Drugi kamnolomi in dnevni kopi na površini najmanj 5 ha in ne glede na površino, če se uporablja razstrelivo","B.4.1",null,154,"DOBJE",null,28,"SOTINA","MURSKA SOBOTA"]
[null,"Jezovi, vodne pregrade in drugi vodni objekti",21520,null,null,null,"Pridobivanje mineralnih snovi pri čiščenju morskega ali rečnega dna","B.5",null,20,"DOBREPOLJE",null,29,"SERDICA","MURSKA SOBOTA"]
[null,"Konferenčne in kongresne stavbe",12204,null,null,null,"Izkoriščanje mineralnih surovin, razen B.2, B.3 in B.4","B.6",null,155,"DOBRNA",null,30,"OCINJE","MURSKA SOBOTA"]
[null,"Kulturna dediščina, ki se ne uporablja za druge namene",12730,null,null,null,"Rudarski objekti in rudarska infrastruktura","B.7",null,21,"DOBROVA-POLHOV GRADEC",null,31,"KRAMAROVCI","MURSKA SOBOTA"]
[null,"Letališke steze in ploščadi",21301,null,null,null,"Predelava ali odstranjevanje odpadkov, ki nastajajo pri raziskovanju, pridobivanju, bogatenju ali skladiščenju mineralnih surovin in obratovanju kamnolomov","B.8",null,156,"DOBROVNIK",null,32,"NUSKOVA","MURSKA SOBOTA"]
[null,"Letalski radio-navigacijski objekti",21302,null,null,null,"Površinsko pridobivanje premoga, zemeljskega plina, zemeljskega olja in rud ter bitumenskega skrilavca","B.9",null,22,"DOL PRI LJUBLJANI",null,33,"ROGAŠOVCI","MURSKA SOBOTA"]
[null,"Lokalna (dostopovna) komunikacijska omrežja",22242,null,null,null,"Naprava za proizvodnjo živil ali krmil, tudi olj ter maščob, iz živalskih surovin, živalskih in rastlinskih surovin ter rib in drugih morskih organizmov9 z zmogljivostjo vsaj 75 t izdelkov na dan","C.I.1",null,157,"DOLENJSKE TOPLICE",null,34,"SVETI JURIJ","MURSKA SOBOTA"]
[null,"Lokalne ceste in javne poti, nekategorizirane ceste in gozdne ceste",21121,null,null,null,"Druga proizvodnja živil ali krmil iz živalskih, ribjih ali mešanih surovin z zmogljivostjo najmanj 10 t izdelkov na dan","C.I.1.1",null,23,"DOMŽALE",null,35,"FIKŠINCI","MURSKA SOBOTA"]
[null,"Lokalni (distribucijski) elektroenergetski vodi",22241,null,null,null,"Naprava za proizvodnjo, konzerviranje ali pakiranje: rastlinskih olj in maščob, sladkorja, slada in piva, slaščic in sirupov, industrijskega škroba, drugih živil ali krmil iz izključno rastlinskih surovin z zmogljivostjo vsaj 300 t izdelkov na dan ali zmogljivostjo 600 t na dan, če naprava obratuje manj kot 90 zaporednih dni","C.I.2",null,24,"DORNAVA",null,36,"VEČESLAVCI","MURSKA SOBOTA"]
[null,"Lokalni (distribucijski) plinovodi",22210,null,null,null,"druga proizvodnja iz rastlinskih surovin z zmogljivostjo najmanj 50 t na dan","C.I.2.1",null,25,"DRAVOGRAD",null,37,"DOLNJI SLAVEČI","MURSKA SOBOTA"]
[null,"Lokalni cevovodi za toplo vodo, paro in stisnjen zrak",22222,null,null,null,"Obdelava ali predelava najmanj 200 t sprejetega mleka/dan","C.I.3",null,26,"DUPLEK",null,38,"GRAD","MURSKA SOBOTA"]
[null,"Lokalni vodovodi za pitno vodo in cevovodi za tehnološko vodo",22221,null,null,null,"Druga obdelava ali predelava mleka vsaj 50 t sprejetega mleka/dan","C.I.3.1",null,27,"GORENJA VAS-POLJANE",null,39,"VIDONCI","MURSKA SOBOTA"]
[null,"Marine",24121,null,null,null,"Klavnica z zmogljivostjo zakola najmanj 100 GVŽ10 ali proizvodnje 50 t klavnih trupov na dan","C.I.4",null,28,"GORIŠNICA",null,40,"OTOVCI","MURSKA SOBOTA"]
[null,"Merilna mesta za opazovanje naravnih pojavov, naravnih virov in stanja okolja",33140,null,null,null,"Druge klavnice z zmogljivostjo zakola najmanj 10 GVŽ ali proizvodnje 4 t klavnih trupov na dan","C.I.4.1",null,207,"GORJE",null,41,"MAČKOVCI","MURSKA SOBOTA"]
[null,"Mestne železniške proge",21220,null,null,null,"Obdelava živalskih stranskih proizvodov, vključno s predelanimi proizvodi, ki niso namenjeni prehrani ljudi, razen naprav iz poglavja E","C.I.5",null,29,"GORNJA RADGONA",null,42,"PROSEČKA VAS","MURSKA SOBOTA"]
[null,"Mostovi, viadukti, nadvozi, nadhodi",21410,null,null,null,"Industrijske naprave za proizvodnjo papirne kaše iz lesa ali podobnih vlaknatih snovi12","C.II.1",null,30,"GORNJI GRAD",null,43,"KOVAČEVCI","MURSKA SOBOTA"]
[null,"Muzeji, arhivi in knjižnice",12620,null,null,null,"Naprave za predelavo in proizvodnjo celuloze, razen C.II.1, s proizvodno zmogljivostjo več kot 100 t na dan","C.II.2",null,31,"GORNJI PETROVCI",null,44,"POZNANOVCI","MURSKA SOBOTA"]
[null,"Naftovodi in daljinski (prenosni) plinovodi",22110,null,null,null,"Druge industrijske naprave za predelavo ali proizvodnjo celuloze, razen C.II.1 in C.II.2, s proizvodno zmogljivostjo najmanj 1 t na dan","C.II.2.1",null,158,"GRAD",null,45,"RADOVCI","MURSKA SOBOTA"]
[null,"Nasipi",31110,null,null,null,"Industrijske naprave za proizvodnjo papirja, lepenke in kartona s proizvodno zmogljivostjo vsaj 200 t na dan","C.II.3",null,32,"GROSUPLJE",null,46,"KRUPLIVNIK","MURSKA SOBOTA"]
[null,"Nepokrita prezentirana arheološka najdišča in ruševine",33130,null,null,null,"Druge industrijske naprave za proizvodnjo papirja, lepenke in kartona s proizvodno zmogljivostjo najmanj 10 t na dan","C.II.3.1",null,159,"HAJDINA",null,47,"MOTOVILCI","MURSKA SOBOTA"]
[null,"Objekti kemične industrije",23030,null,null,null,"Industrijske naprave za proizvodnjo lesnih plošč s proizvodno zmogljivostjo najmanj 600 m3 plošč na dan","C.II.4",null,160,"HOČE-SLIVNICA",null,48,"PERTOČA","MURSKA SOBOTA"]
[null,"Objekti težke industrije, ki niso uvrščeni drugje",23040,null,null,null,"Industrijske naprave za predobdelavo (npr. pranje, beljenje, merceriziranje) ali za barvanje tekstilnih vlaken ali tkanin z zmogljivostjo najmanj 10 t na dan","C.II.5",null,161,"HODOŠ",null,49,"ROPOČA","MURSKA SOBOTA"]
[null,"Objekti za črpanje, filtriranje in zajem vode",22122,null,null,null,"Druge industrijske naprave za predobdelavo ali za barvanje tekstilnih vlaken ali tkanin","C.II.5.1",null,162,"HORJUL",null,50,"GERLINCI","MURSKA SOBOTA"]
[null,"Objekti za oglaševanje in informacijski panoji",32130,null,null,null,"Naprave za strojenje ali barvanje živalskih kož ali krzna ali za proizvodnjo usnja z zmogljivostjo 12 t izdelkov na dan","C.II.6",null,34,"HRASTNIK",null,51,"KRAŠČI","MURSKA SOBOTA"]
[null,"Objekti za pridobivanje in izkoriščanje mineralnih surovin",23010,null,null,null,"Druge naprave za strojenje ali barvanje živalskih kož ali krzna ali za proizvodnjo usnja z zmogljivostjo najmanj 1 t izdelkov na dan","C.II.6.1",null,35,"HRPELJE-KOZINA",null,52,"VADARCI","MURSKA SOBOTA"]
[null,"Objekti za ravnanje z odpadki",24203,null,null,null,"Industrijske naprave za proizvodnjo ali obdelavo izdelkov, ki temeljijo na elastomerih, z zmogljivostjo najmanj 25 t na dan","C.II.7",null,36,"IDRIJA",null,53,"BODONCI","MURSKA SOBOTA"]
[null,"Obrambni objekti",24201,null,null,null,"Druge industrijske naprave za proizvodnjo ali obdelavo izdelkov, ki temeljijo na elastomerih, z zmogljivostjo najmanj 1 t na dan","C.II.7.1",null,37,"IG",null,54,"PEČAROVCI","MURSKA SOBOTA"]
[null,"Oskrbne postaje",12303,null,null,null,"Integrirane naprave, ki so namenjene proizvodnji: osnovnih organskih kemikalij ali osnovnih anorganskih kemikalij ali fosfatnih, dušičnih ali kalijevih gnojil (enostavnih ali sestavljenih gnojil) ali iii. fosfatnih, dušičnih ali kalijevih gnojil (enostavnih ali sestavljenih gnojil) ali osnovnih fitofarmacevtskih proizvodov in biocidov ali osnovnih farmacevtskih proizvodov s kemičnimi ali biološkimi postopki ali eksplozivov","C.III.1",null,38,"ILIRSKA BISTRICA",null,55,"DANKOVCI","MURSKA SOBOTA"]
[null,"Podhodi",21422,null,null,null,"Druge industrijske naprave za obdelavo polizdelkov ali proizvodnjo snovi ali skupin snovi, kjer se uporabljajo kemični postopki, razen C.III.1, zlasti: pesticidov in biocidov, farmacevtskih proizvodov, barv in lakov, elastomerov in drugih polimerov, peroksidov.","C.III.2",null,39,"IVANČNA GORICA",null,56,"KUŠTANOVCI","MURSKA SOBOTA"]
[null,"Pokopališča",24204,null,null,null,"Skladišča kemičnih izdelkov z zmogljivostjo 200.000 t ali več","C.III.3",null,40,"IZOLA",null,57,"KOŠAROVCI","MURSKA SOBOTA"]
[null,"Pokopališke stavbe",12722,null,null,null,"druga skladišča kemičnih izdelkov z zmogljivostjo 25.000 t ali več","C.III.3.1",null,41,"JESENICE",null,58,"DOLINA","MURSKA SOBOTA"]
[null,"Pokriti vkopi in galerije",21423,null,null,null,"Naprava za obnovo ali uničenje eksplozivnih snovi","C.III.4",null,163,"JEZERSKO",null,59,"MOŠČANCI","MURSKA SOBOTA"]
[null,"Postajna poslopja, terminali, stavbe za izvajanje komunikacij ter z njimi povezane stavbe",12410,null,null,null,"Cevovodi za transport kemikalij s premerom več kot 800 mm in dolžino več kot 40 km","C.III.5",null,42,"JURŠINCI",null,60,"VANEČA","MURSKA SOBOTA"]
[null,"Predori",21421,null,null,null,"Drugi cevovodi za transport kemikalij","C.III.5.1",null,43,"KAMNIK",null,61,"ŠALAMENCI","MURSKA SOBOTA"]
[null,"Pristanišča in plovbne poti",21510,null,null,null,"Naprave za pridobivanje ali proizvodnjo azbesta ter za predelavo in transformacijo azbesta in proizvodov, ki vsebujejo azbest: za azbestnocementne proizvode z letno proizvodnjo več kot 20.000 t končnih proizvodov ali za torne materiale z letno proizvodnjo več kot 50 t končnih proizvodov ali za drugo uporabo azbesta pri porabi več kot 200 t na leto.","C.IV.1",null,44,"KANAL",null,62,"ZENKOVCI","MURSKA SOBOTA"]
[null,"Regionalne ceste",21112,null,null,null,"Druge naprave za pridobivanje ali proizvodnjo azbesta ter za predelavo in transformacijo azbesta in proizvodov, ki vsebujejo azbest","C.IV.1.1",null,45,"KIDRIČEVO",null,64,"BEZNOVCI","MURSKA SOBOTA"]
[null,"Rezervoarji, silosi in skladiščne stavbe",12520,null,null,null,"Steklarna, vključno z napravo za proizvodnjo steklenih vlaken ali odpadnim steklom kot surovino, talilna zmogljivost najmanj 20 t na dan","C.IV.2",null,46,"KOBARID",null,65,"TOPOLOVCI","MURSKA SOBOTA"]
[null,"Samostojna parkirišča",21122,null,null,null,"Druge steklarne ali naprave za proizvodnjo stekla, vključno s steklenimi vlakni s talilno zmogljivostjo najmanj 1 t na dan","C.IV.2.1",null,47,"KOBILJE",null,66,"DOMAJINCI","MURSKA SOBOTA"]
[null,"Sejemske dvorane, razstavišča",12302,null,null,null,"Naprava za taljenje mineralnih surovin, vključno s proizvodnjo mineralnih vlaken, s proizvodno zmogljivostjo najmanj 20 t na dan","C.IV.3",null,48,"KOČEVJE",null,67,"GORNJI ČRNCI","MURSKA SOBOTA"]
[null,"Sistem za namakanje in osuševanje, akvadukti",21530,null,null,null,"Naprava za taljenje mineralnih surovin, vključno s proizvodnjo mineralnih vlaken, s proizvodno zmogljivostjo najmanj 1 t na dan","C.IV.3.1",null,49,"KOMEN",null,68,"KOROVCI","MURSKA SOBOTA"]
[null,"Spominska obeležja",32140,null,null,null,"Proizvodnja cementa, vlaknatega cementa ali cementnega klinkerja s proizvodno zmogljivostjo 1000 t na dan","C.IV.4",null,164,"KOMENDA",null,69,"CANKOVA","MURSKA SOBOTA"]
[null,"Stanovanjske stavbe z oskrbovanimi stanovanji",11301,null,null,null,"Druga proizvodnja cementa ali cementnih izdelkov","C.IV.4.1",null,50,"KOPER",null,70,"SKAKOVCI","MURSKA SOBOTA"]
[null,"Stanovanjske stavbe za druge posebne družbene skupine",11302,null,null,null,"Naprava za proizvodnjo betona z zmogljivostjo najmanj 100 m3/h in naprava za proizvodnjo mavca, apna, kamna ali magnezijevega oksida s proizvodno zmogljivostjo najmanj 5 t na dan","C.IV.5",null,197,"KOSTANJEVICA NA KRKI",null,71,"STRUKOVCI","MURSKA SOBOTA"]
[null,"Stavbe bank, pošt, zavarovalnic",12202,null,null,null,"Naprava za proizvodnjo asfaltnih ali bitumenskih mešanic s proizvodno zmogljivostjo najmanj 50 t materiala na uro","C.IV.6",null,165,"KOSTEL",null,72,"PUŽEVCI","MURSKA SOBOTA"]
[null,"Stavbe javne uprave",12201,null,null,null,"Naprava za proizvodnjo keramičnih izdelkov z žganjem, zlasti strešnikov, zidnih opek, ognjevzdržnih opek, keramičnih ploščic, keramične posode ali porcelana, s proizvodno zmogljivostjo 75 t na dan ali z žgalnim volumnom peči nad 4 m3 in gostoto založbe več kot 300 kg/m3 na posamezno peč.","C.IV.7",null,51,"KOZJE",null,73,"LEMERJE","MURSKA SOBOTA"]
[null,"Stavbe za izobraževanje in znanstvenoraziskovalno delo",12630,null,null,null,"Druge naprave za proizvodnjo keramičnih izdelkov z žganjem, če je zmogljivost peči vsaj 4 m3, razen električnih peči brez sistema za izpuščanje plinov","C.IV.7.1",null,52,"KRANJ",null,74,"BREZOVCI","MURSKA SOBOTA"]
[null,"Stavbe za kulturo in razvedrilo",12610,null,null,null,"Integrirane naprave za začetno taljenje surovega železa in jekla","C.V.1",null,53,"KRANJSKA GORA",null,75,"PREDANOVCI","MURSKA SOBOTA"]
[null,"Stavbe za opravljanje verskih obredov",12721,null,null,null,"Druge naprave za praženje in sintranje kovinskih rud, vključno s sulfidnimi rudami","C.V.1.1",null,166,"KRIŽEVCI",null,76,"GORICA","MURSKA SOBOTA"]
[null,"Stavbe za rastlinsko pridelavo",12711,null,null,null,"Naprava za proizvodnjo surovega železa ali jekla (primarno ali sekundarno taljenje), vključno z neprekinjenim litjem, z zmogljivostjo najmanj 2,5 t na uro","C.V.2",null,54,"KRŠKO",null,77,"PUCONCI","MURSKA SOBOTA"]
[null,"Stavbe za rejo živali",12712,null,null,null,"Druge naprave za proizvodnjo surovega železa ali jekla","C.V.2.1",null,55,"KUNGOTA",null,78,"SEBEBORCI","MURSKA SOBOTA"]
[null,"Stavbe za skladiščenje pridelka",12713,null,null,null,"Naprave za vroče valjanje z zmogljivostjo najmanj 20 t neobdelanega jekla na uro","C.V.3",null,56,"KUZMA",null,79,"BOKRAČI","MURSKA SOBOTA"]
[null,"Stavbe za storitvene dejavnosti",12304,null,null,null,"Druge naprave za vroče valjanje","C.V.3.1",null,57,"LAŠKO",null,80,"KRNCI","MURSKA SOBOTA"]
[null,"Stavbe za šport",12650,null,null,null,"Kovačnice s kladivi, katerih energija presega 50 kJ na kladivo in skupna toplotna moč presega 20 MW","C.V.4",null,58,"LENART",null,81,"IVANOVCI","MURSKA SOBOTA"]
[null,"Stavbe za zdravstveno oskrbo",12640,null,null,null,"Druge kovačnice s kladivi, katerih energija presega 1 kJ na posamezno kladivo","C.V.4.1",null,59,"LENDAVA",null,82,"KANČEVCI","MURSKA SOBOTA"]
[null,"Športna igrišča",24110,null,null,null,"Livarne za železne zlitine z zmogljivostjo vsaj 20 t na dan","C.V.5",null,60,"LITIJA",null,83,"LONČAROVCI","MURSKA SOBOTA"]
[null,"Trgovske stavbe",12301,null,null,null,"Druge livarne za železne zlitine z zmogljivostjo najmanj 2 t na dan","C.V.5.1",null,61,"LJUBLJANA",null,84,"RATKOVCI","MURSKA SOBOTA"]
[null,"Tri- in večstanovanjske stavbe",11220,null,null,null,"Naprava za površinsko obdelavo kovin ali plastičnih materialov z uporabo elektrolitskih ali kemičnih postopkov, kjer skupen volumen kadi, v katerih poteka obdelava, presega 30 m3","C.V.6",null,62,"LJUBNO",null,85,"BERKOVCI","MURSKA SOBOTA"]
[null,"Urbana oprema",32120,null,null,null,"Druge naprave za površinsko obdelavo kovin ali plastičnih materialov z uporabo elektrolitskih ali kemičnih postopkov, kjer skupen volumen kadi, v katerih poteka obdelava, presega 15 m3 ali 10 m3, če gre za naprave, v katerih se uporabljajo snovi, ki vsebujejo kadmij, kobalt, šestvalentni krom, srebro, nikelj in cianid","C.V.6.1",null,63,"LJUTOMER",null,86,"IVANJŠEVCI","MURSKA SOBOTA"]
[null,"Utrjene brežine",31140,null,null,null,"Naprave za nanašanje zaščitnih prevlek iz staljenih kovin z vložkom najmanj 2 t neobdelanega jekla na uro","C.V.7",null,64,"LOGATEC",null,87,"SREDIŠČE","MURSKA SOBOTA"]
[null,"Utrjene površine",31130,null,null,null,"Druge naprave za nanašanje zaščitnih prevlek iz staljenih kovin z vložkom najmanj 0,5 t materiala na uro","C.V.7.1",null,208,"LOG-DRAGOMER",null,88,"PROSENJAKOVCI","MURSKA SOBOTA"]
[null,"Vodni stolpi in vodnjaki",22223,null,null,null,"Naprave za proizvodnjo neželeznih neobdelanih kovin iz rude, koncentratov ali sekundarnih surovin z metalurškimi, kemičnimi ali elektrolitskimi postopki","C.V.8",null,65,"LOŠKA DOLINA",null,89,"SELO","MURSKA SOBOTA"]
[null,null,null,null,null,null,"Naprave za eksplozijsko spajanje ali oblikovanje kovin, kjer se uporabi vsaj 10 kg razstreliva pri posameznem spajanju","C.V.9",null,66,"LOŠKI POTOK",null,90,"FOKOVCI","MURSKA SOBOTA"]
[null,null,null,null,null,null,"Talilnice, vključno z napravami za legiranje barvnih kovin, razen plemenitih, vključno s taljenjem odpadnih kovin (rafiniranje, vlivanje itn.), s talilno zmogljivostjo 4 t na dan za svinec in kadmij ali 20 t za druge kovine","C.V.10",null,167,"LOVRENC NA POHORJU",null,91,"ANDREJCI","MURSKA SOBOTA"]
[null,null,null,null,null,null,"Druge talilnice s talilno zmogljivostjo vsaj 0,5 t na dan za svinec ali kadmij ali vsaj 2 t na dan, ko gre za druge barvne kovine","C.V.10.1",null,67,"LUČE",null,92,"MORAVCI","MURSKA SOBOTA"]
[null,null,null,null,null,null,"Naprava za izdelavo ali sestavljanje motornih vozil, motorjev za motorna vozila in karoserij z zmogljivostjo vsaj 100.000 proizvodov na leto","C.V.11",null,68,"LUKOVICA",null,93,"TEŠANOVCI","MURSKA SOBOTA"]
[null,null,null,null,null,null,"Druge naprave za izdelavo ali sestavljanje motornih vozil, motorjev za motorna vozila in karoserij z zmogljivostjo vsaj 20000 proizvodov na leto","C.V.11.1",null,69,"MAJŠPERK",null,94,"VUČJA GOMILA","MURSKA SOBOTA"]
[null,null,null,null,null,null,"Naprave za preizkušanje motorjev, turbin ali reaktorjev (preizkusne mize) z najmanj 3 preizkusnimi mesti ali vhodno toplotno močjo vsaj 5 MW","C.V.12",null,198,"MAKOLE",null,95,"ČIKEČKA VAS","MURSKA SOBOTA"]
[null,null,null,null,null,null,"Ladjedelnice in naprave za izdelavo drugih plovil dolžine najmanj 50 m","C.V.13",null,70,"MARIBOR",null,96,"PORDAŠINCI","MURSKA SOBOTA"]
[null,null,null,null,null,null,"Naprave in objekti za sestavljanje ali popravilo zrakoplovov z dovoljeno vzletno maso (MTOM) najmanj 50 t","C.V.14",null,168,"MARKOVCI",null,97,"MOTVARJEVCI","MURSKA SOBOTA"]
[null,null,null,null,null,null,"Naprave in objekti za izdelavo železniške opreme (lokomotiv, vagonov, tračnic ipd.)","C.V.15",null,71,"MEDVODE",null,98,"BUKOVNICA","MURSKA SOBOTA"]
[null,null,null,null,null,null,"Rafinerije surove nafte (razen naprav za proizvodnjo maziv iz surove nafte) *","D.I.1",null,72,"MENGEŠ",null,99,"FILOVCI","MURSKA SOBOTA"]
[null,null,null,null,null,null,"Naprave za uplinjanje ali utekočinjanje 500 t ali več premoga ali bitumiziranega skrilavca na dan *","D.I.2",null,73,"METLIKA",null,100,"BOGOJINA","MURSKA SOBOTA"]
[null,null,null,null,null,null,"Druge naprave za uplinjanje in utekočinjanje premoga ali bitumiziranega skrilavca","D.I.2.1",null,74,"MEŽICA",null,101,"IVANCI","MURSKA SOBOTA"]
[null,null,null,null,null,null,"Naprave za proizvodnjo industrijskega oglja","D.I.3",null,169,"MIKLAVŽ NA DRAVSKEM POLJU",null,102,"MLAJTINCI","MURSKA SOBOTA"]
[null,null,null,null,null,null,"Naprava za proizvodnjo koksa (suha destilacija premoga)","D.I.4",null,75,"MIREN-KOSTANJEVICA",null,103,"LUKAČEVCI","MURSKA SOBOTA"]
[null,null,null,null,null,null,"Skladišča nafte in petrokemičnih izdelkov, razen C.II.3, z zmogljivostjo najmanj 200.000 t *","D.I.5",null,170,"MIRNA PEČ",null,104,"RAKIČAN","MURSKA SOBOTA"]
[null,null,null,null,null,null,"Druga skladišča nafte, petrokemičnih izdelkov ali drugih fosilnih goriv, razen plinov, z zmogljivostjo najmanj 50.000 t","D.I.5.1",null,76,"MISLINJA",null,105,"MURSKA SOBOTA","MURSKA SOBOTA"]
[null,null,null,null,null,null,"Skladišča utekočinjenega naftnega plina, zemeljskega plina in drugih vnetljivih plinov ter terminali  z zmogljivostjo najmanj 25.000 t","D.I.6",null,199,"MOKRONOG-TREBELNO",null,106,"NORŠINCI","MURSKA SOBOTA"]
[null,null,null,null,null,null,"druga skladišča utekočinjenega naftnega plina, zemeljskega plina in drugih vnetljivih plinov ter plinski terminali z zmogljivostjo najmanj 150 t","D.I.6.1",null,77,"MORAVČE",null,107,"MARTJANCI","MURSKA SOBOTA"]
[null,null,null,null,null,null,"Industrijske naprave za briketiranje premoga ali lignita","D.I.7",null,78,"MORAVSKE TOPLICE",null,108,"NEMČAVCI","MURSKA SOBOTA"]
[null,null,null,null,null,null,"Termoelektrarne in druge kurilne naprave izhodne toplotne moči najmanj 300 MW*","D.I.8",null,79,"MOZIRJE",null,109,"MARKIŠAVCI","MURSKA SOBOTA"]
[null,null,null,null,null,null,"Druge termoelektrarne in kurilne naprave za proizvodnjo elektrike, pare in tople vode z vhodno toplotno močjo najmanj 50 MW","D.I.8.1",null,80,"MURSKA SOBOTA",null,110,"POLANA","MURSKA SOBOTA"]
[null,null,null,null,null,null,"Območja geološkega shranjevanja ogljikovega dioksida","D.I.9",null,81,"MUTA",null,111,"ČERNELAVCI","MURSKA SOBOTA"]
[null,null,null,null,null,null,"Naprave za zajemanje tokov CO2 za namene geološkega shranjevanja iz naprav iz te priloge, označenih z »*«, ali kjer skupni letni zajem CO2 znaša 1,5 megatone ali več, in cevovodi s premerom več kot 800 mm in dolžino več kot 40 km za transport tokov CO2 za namene geološkega shranjevanja, vključno s pripadajočimi kompresorskimi postajami","D.I.10",null,82,"NAKLO",null,112,"VEŠČICA","MURSKA SOBOTA"]
[null,null,null,null,null,null,"Druge naprave za zajemanje ali transport tokov CO2 za namene geološkega shranjevanja","D.I.10.1",null,83,"NAZARJE",null,113,"KUPŠINCI","MURSKA SOBOTA"]
[null,null,null,null,null,null,"Jedrske elektrarne in drugi jedrski reaktorji, vključno z njihovo demontažo ali odstranitvijo13 *","D.II.1",null,84,"NOVA GORICA",null,114,"VANČA VAS","MURSKA SOBOTA"]
[null,null,null,null,null,null,"Jedrske naprave za raziskovanje izdelovanja in pretvorbe cepljivih in obogatenih materialov, katerih največja moč presega 1 KW neprekinjene toplotne obremenitve*","D.II.2",null,85,"NOVO MESTO",null,115,"RANKOVCI","MURSKA SOBOTA"]
[null,null,null,null,null,null,"Druge jedrske naprave za raziskovanje izdelovanja in pretvorbe cepljivih in obogatenih materialov","D.II.2.1",null,86,"ODRANCI",null,116,"BOREJCI","MURSKA SOBOTA"]
[null,null,null,null,null,null,"Naprave za proizvodnjo ali obogatitev jedrskega goriva*","D.II.3",null,171,"OPLOTNICA",null,117,"KRAJNA","MURSKA SOBOTA"]
[null,null,null,null,null,null,"Naprave za predelavo radioaktivnega jedrskega goriva ali visoko radioaktivnih odpadkov ali ponovno predelavo radioaktivnega jedrskega goriva*","D.II.4",null,87,"ORMOŽ",null,118,"GEDEROVCI","MURSKA SOBOTA"]
[null,null,null,null,null,null,"Globinsko vrtanje za skladiščenje jedrskih odpadkov","D.II.5",null,88,"OSILNICA",null,119,"SODIŠINCI","MURSKA SOBOTA"]
[null,null,null,null,null,null,"Trajna odlagališča izrabljenega jedrskega goriva ali izključno radioaktivnih odpadkov*","D.II.6",null,89,"PESNICA",null,120,"MURSKI PETROVCI","MURSKA SOBOTA"]
[null,null,null,null,null,null,"Skladišča za dolgoročno hranjenje (načrtovano za več kot 10 let) izključno izrabljenega jedrskega goriva ali radioaktivnih odpadkov na drugi lokaciji kakor tam, kjer poteka proizvodnja*","D.II.7",null,90,"PIRAN",null,121,"PETANJCI","MURSKA SOBOTA"]
[null,null,null,null,null,null,"Naprave za predelavo in skladiščenje radioaktivnih odpadkov","D.II.8",null,91,"PIVKA",null,122,"TIŠINA","MURSKA SOBOTA"]
[null,null,null,null,null,null,"Vetrne elektrarne s skupno električno močjo vsaj 30 MW","D.III.1",null,92,"PODČETRTEK",null,123,"TROPOVCI","MURSKA SOBOTA"]
[null,null,null,null,null,null,"Druge vetrne elektrarne s skupno električno močjo najmanj 15 MW, ko je lokacija posega na območju, varovanem po predpisih o ohranjanju narave ali z oddaljenostjo 1 km ali manj od stavb z varovanimi prostori","D.III.1.1",null,172,"PODLEHNIK",null,124,"GRADIŠČE","MURSKA SOBOTA"]
[null,null,null,null,null,null,"Hidroelektrarne nazivne moči vsaj 2 MW ali povezane z izvedbo posega E.II.6","D.III.2",null,93,"PODVELKA",null,125,"MURSKI ČRNCI","MURSKA SOBOTA"]
[null,null,null,null,null,null,"Druge hidroelektrarne nazivne moči vsaj 0,5 MW","D.III.2.1",null,200,"POLJČANE",null,126,"SATAHOVCI","MURSKA SOBOTA"]
[null,null,null,null,null,null,"Samostoječe naprave za izkoriščanje sončne energije z zmogljivostjo vsaj 250 KW ali na površini vsaj 0,5 ha","D.III.3",null,173,"POLZELA",null,127,"KROG","MURSKA SOBOTA"]
[null,null,null,null,null,null,"Kotlovnice na lesno biomaso izhodne toplotne moči vsaj 20 MW","D.III.4",null,94,"POSTOJNA",null,128,"BAKOVCI","MURSKA SOBOTA"]
[null,null,null,null,null,null,"Naprava za proizvodnjo bioplina14 (bioplinarna), razen E.1.5, ali obdelava neočiščenega bioplina s proizvodno zmogljivostjo najmanj 1 milijon sm3 plina na leto","D.III.5",null,174,"PREBOLD",null,129,"GANČANI","MURSKA SOBOTA"]
[null,null,null,null,null,null,"Naprave za proizvodnjo biogoriv s kemijskimi postopki z zmogljivostjo vsaj 50 t na leto","D.III.6",null,95,"PREDDVOR",null,130,"LIPA","MURSKA SOBOTA"]
[null,null,null,null,null,null,"Geotermalno vrtanje in druge naprave za izkoriščanje geotermičnega energetskega vira, razen plitvih geotermalnih sistemov15","D.III.7",null,175,"PREVALJE",null,131,"BELTINCI","MURSKA SOBOTA"]
[null,null,null,null,null,null,"Cevovodi za transport zemeljskega plina, nafte in naftnih derivatov premera nad 800 mm in dolžine nad 40 km*","D.IV.1",null,96,"PTUJ",null,132,"BRATONCI","MURSKA SOBOTA"]
[null,null,null,null,null,null,"Drugi cevovodi za transport zemeljskega plina, nafte in naftnih derivatov, razen priključkov na objekte javne infrastrukture, nad 1 km in cevovodi za transport zemeljskega plina z največjim delovnim tlakom 5 barov ali več in dolžine 1 km ali več, razen priključkov na objekte javne infrastrukture16","D.IV.1.1",null,97,"PUCONCI",null,133,"LIPOVCI","MURSKA SOBOTA"]
[null,null,null,null,null,null,"Industrijske naprave za prenos plina, pare ali tople vode s cevovodom dolžine nad 1 km ali premera nad 100 mm","D.IV.2",null,98,"RAČE-FRAM",null,134,"DOKLEŽOVJE","MURSKA SOBOTA"]
[null,null,null,null,null,null,"Sistemi daljinskega ogrevanja z zmogljivostjo vsaj 10 MW, razen gradnje posameznih priključkov17","D.IV.3",null,99,"RADEČE",null,135,"IŽAKOVCI","MURSKA SOBOTA"]
[null,null,null,null,null,null,"Nadzemni elektrovodi z napetostjo 220 KV ali več in dolžino več kot 15 km*","D.IV.4",null,100,"RADENCI",null,136,"MELINCI","MURSKA SOBOTA"]
[null,null,null,null,null,null,"Drugi visokonapetostni18 vodi za nadzemni  prenos električne energije dolžine 5 km ali več","D.IV.4.1",null,101,"RADLJE OB DRAVI",null,137,"ODRANCI","LENDAVA"]
[null,null,null,null,null,null,"Naprava za odstranjevanje19 ali predelavo20 odpadkov s toplotnimi postopki, ko gre za nevarne odpadke*","E.I.1.1",null,102,"RADOVLJICA",null,138,"TRNJE V PREKMURJU","LENDAVA"]
[null,null,null,null,null,null,"Naprava za odstranjevanje19 ali predelavo20 odpadkov s toplotnimi postopki, ko gre za nenevarne odpadke in zmogljivost znaša najmanj 100 t na dan* ","E.I.1.2",null,103,"RAVNE NA KOROŠKEM",null,139,"ŽIŽKI","LENDAVA"]
[null,null,null,null,null,null,"Naprava za odstranjevanje19 ali predelavo20 odpadkov s toplotnimi postopki, ko gre za nenevarne odpadke in zmogljivost znaša manj kot 100 t na dan","E.I.1.3",null,176,"RAZKRIŽJE",null,140,"ČRENŠOVCI","LENDAVA"]
[null,null,null,null,null,null,"Naprava za fizikalno- kemično obdelavo21 nevarnih odpadkov* ","E.I.2.1",null,209,"REČICA OB SAVINJI",null,141,"GORNJA BISTRICA","LENDAVA"]
[null,null,null,null,null,null,"Naprava za fizikalno-kemično obdelavo21 nenevarnih odpadkov z zmogljivostjo najmanj 100 t na dan ali več*","E.I.2.2",null,201,"RENČE-VOGRSKO",null,142,"SREDNJA BISTRICA","LENDAVA"]
[null,null,null,null,null,null,"Naprava za fizikalno-kemično obdelavo21 nenevarnih odpadkov z zmogljivostjo najmanj 50 t na dan","E.I.2.3",null,104,"RIBNICA",null,143,"DOLNJA BISTRICA","LENDAVA"]
[null,null,null,null,null,null,"Odlagališča22 odpadkov ko gre za nevarne odpadke*","E.I.3.1",null,177,"RIBNICA NA  POHORJU",null,144,"KOBILJE","LENDAVA"]
[null,null,null,null,null,null,"Odlagališča22 odpadkov ko gre za nenevarne odpadke in skupna zmogljivost znaša najmanj 25.000 t ali dnevna zmogljivost odlaganja najmanj 10 t","E.I.3.2",null,106,"ROGAŠKA SLATINA",null,145,"ŽITKOVCI","LENDAVA"]
[null,null,null,null,null,null,"Odlagališča22 odpadkov ko gre za druge nenevarne odpadke, razen inertnih, in skupna zmogljivost znaša manj kot 25.000 t in dnevna zmogljivost odlaganja manj kot 10 t","E.I.3.3",null,105,"ROGAŠOVCI",null,146,"DOBROVNIK","LENDAVA"]
[null,null,null,null,null,null,"Odlagališča22 odpadkov ko gre za izključno inertne odpadke z zmogljivostjo odlaganja 50 t na dan","E.I.3.4",null,107,"ROGATEC",null,147,"STREHOVCI","LENDAVA"]
[null,null,null,null,null,null,"Trajno podzemno skladiščenje odpadkov24","E.I.4",null,108,"RUŠE",null,148,"RENKOVCI","LENDAVA"]
[null,null,null,null,null,null,"Naprava za biološko obdelavo25 nevarnih odpadkov z zmogljivostjo vsaj 10 t na dan","E.I.5.1",null,178,"SELNICA OB DRAVI",null,149,"TURNIŠČE","LENDAVA"]
[null,null,null,null,null,null,"Naprava za biološko obdelavo25 nenevarnih odpadkov, vključno z anaerobno razgradnjo gnojevke, z zmogljivostjo 75 t na dan","E.I.5.2",null,109,"SEMIČ",null,150,"GOMILICA","LENDAVA"]
[null,null,null,null,null,null,"Naprava za biološko obdelavo25 nevarnih  odpadkov, če zmogljivost znaša vsaj 1 t/dan, ali nenevarnih odpadkov, če zmogljivost znaša vsaj 15 t/dan","E.I.5.3",null,110,"SEVNICA",null,151,"BREZOVICA V PREKMURJU","LENDAVA"]
[null,null,null,null,null,null,"Vnos odpadkov v tla, če gre za zemeljski izkop, mulj, blato iz čistilnih naprav ali umetno pripravljeno zemljino26 količine najmanj 500.000 m3 na območje površinskega pridobivanja mineralnih surovin","E.I.6.1",null,111,"SEŽANA",null,152,"NEDELICA","LENDAVA"]
[null,null,null,null,null,null,"Vnos odpadkov v tla, če gre za zemeljski izkop, mulj, blato iz čistilnih naprav ali umetno pripravljeno zemljino26 količine najmanj 250.000 m3 na kmetijska zemljišča","E.I.6.2",null,112,"SLOVENJ GRADEC",null,153,"RADMOŽANCI","LENDAVA"]
[null,null,null,null,null,null,"Vnos odpadkov v tla, če gre za zemeljski izkop, mulj, blato iz čistilnih naprav ali umetno pripravljeno zemljino26 najmanj 250.000 m3na druga območja","E.I.6.3",null,113,"SLOVENSKA BISTRICA",null,154,"KAMOVCI","LENDAVA"]
[null,null,null,null,null,null,"Naprave za druge postopke odstranjevanja ali predelave odpadkov, razen E.I.1 - E.I.6  ko gre za nevarne odpadke in zmogljivost znaša najmanj 20 t na dan","E.I.7.1",null,114,"SLOVENSKE KONJICE",null,155,"GENTEROVCI","LENDAVA"]
[null,null,null,null,null,null,"Naprave za druge postopke odstranjevanja ali predelave odpadkov, razen E.I.1 - E.I.6  ko gre za nevarne odpadke in zmogljivost znaša 5 t na dan ali več","E.I.7.2",null,179,"SODRAŽICA",null,156,"MOSTJE PRI LENDAVI","LENDAVA"]
[null,null,null,null,null,null,"Naprave za druge postopke odstranjevanja ali predelave odpadkov, razen E.I.1 - E.I.6  ko gre za nenevarne odpadke in zmogljivost znaša 100 t na dan ali več","E.I.7.3",null,180,"SOLČAVA",null,157,"DOLGA VAS PRI LENDAVI","LENDAVA"]
[null,null,null,null,null,null,"Naprave za druge postopke odstranjevanja ali predelave odpadkov, razen E.I.1 - E.I.6  ko gre za nenevarne odpadke in zmogljivost znaša vsaj 30 t na dan","E.I.7.4",null,202,"SREDIŠČE OB DRAVI",null,158,"BANUTA","LENDAVA"]
[null,null,null,null,null,null,"Predhodno skladiščenje nevarnih odpadkov z zmogljivostjo skladiščenja najmanj 50 t ali odpadnega železa z zmogljivostjo skladiščenja najmanj 500 t","E.I.8",null,115,"STARŠE",null,159,"MALA POLANA","LENDAVA"]
[null,null,null,null,null,null,"Naprava za predelavo ali odstranjevanje trupel živali, ki so poginile drugače kakor z zakolom, vključno z živalmi, pokončanimi zaradi izkoreninjenja kužnih živalskih bolezni","E.I.9",null,203,"STRAŽA",null,160,"VELIKA POLANA","LENDAVA"]
[null,null,null,null,null,null,"Čistilne naprave za komunalno odpadno vodo z zmogljivostjo večjo od ekvivalenta 150.000 prebivalcev*","E.I.10",null,204,"SV. TROJICA V SLOV. GORICAH",null,161,"HOTIZA","LENDAVA"]
[null,null,null,null,null,null,"Druge čistilne naprave za komunalno odpadno vodo z zmogljivostjo najmanj 5.000 PE","E.I.10.1",null,181,"SVETA ANA",null,162,"KAPCA","LENDAVA"]
[null,null,null,null,null,null,"Objekti za zbiranje in odvajanje odpadnih voda, skupaj z industrijskimi odpadnimi vodami ali padavinskimi vodami (kanalizacija), razen priključkov27 če je skupna dolžina vodov 15.000 m ali več ali če je dolžina vodov na območjih s posebnim statusm28, 2.000 m ali več","E.I.11",null,182,"SVETI ANDRAŽ V SLOV. GORICAH",null,163,"KOT PRI MURI","LENDAVA"]
[null,null,null,null,null,null,"Industrijske čistilne naprave z zmogljivostjo čiščenja najmanj 10.000 m3 odpadnih voda na dan","E.I.12",null,116,"SVETI JURIJ",null,164,"GABERJE","LENDAVA"]
[null,null,null,null,null,null,"Industrijske čistilne naprave z zmogljivostjo čiščenja najmanj 500 m3 odpadnih voda na dan","E.I.13",null,210,"SVETI JURIJ V SLOV. GORICAH",null,165,"LAKOŠ","LENDAVA"]
[null,null,null,null,null,null,"Globinsko vrtanje za raziskovanje vodnih zalog","E.II.1",null,205,"SVETI TOMAŽ",null,166,"LENDAVA","LENDAVA"]
[null,null,null,null,null,null,"Izkoriščanje mineralne ali termalne vode29","E.II.2",null,33,"ŠALOVCI",null,167,"ČENTIBA","LENDAVA"]
[null,null,null,null,null,null,"Naprave za črpanje podtalnice ali sistemi za umetno obnavljanje podtalnice z letno količino načrpane ali obnovljene vode vsaj 10 milijonov m3*","E.II.3",null,183,"ŠEMPETER-VRTOJBA",null,168,"DOLINA PRI LENDAVI","LENDAVA"]
[null,null,null,null,null,null,"Druge naprave za črpanje podtalnice ali sistemi za umetno obnavljanje podtalnice z letno količino načrpane ali obnovljene vode vsaj 2 milijona m3","E.II.3.1",null,117,"ŠENČUR",null,169,"PETIŠOVCI","LENDAVA"]
[null,null,null,null,null,null,"Prenos vodnih količin med porečji zaradi preprečevanja morebitnega pomanjkanja vode, in kjer količina prenesene vode presega 100 milijonov m3 na leto, ali v drugih primerih, kjer dolgoletni povprečni rečni pretok porečja, od koder se črpa, presega 2000 milijonov m3 na leto in kjer količina prenesene vode presega 5 % tega pretoka, razen prenosa pitne vode po vodovodu*","E.II.4",null,118,"ŠENTILJ",null,170,"PINCE","LENDAVA"]
[null,null,null,null,null,null,"Drugi prenosi vodnih količin med porečji","E.II.4.1",null,119,"ŠENTJERNEJ",null,171,"VRATJI VRH","GORNJA RADGONA"]
[null,null,null,null,null,null,"Akvadukti30 in daljinski vodovodi31 dolžine vsaj 10 km in pretoka najmanj 150 l/s","E.II.5",null,120,"ŠENTJUR PRI CELJU",null,172,"VRATJA VAS","GORNJA RADGONA"]
[null,null,null,null,null,null,"Jezovi in drugi objekti za zadrževanje ali trajno zagotavljanje rezerv vode, kjer nova ali dodatna količina zadržane ali uskladiščene vode presega 10 milijonov m3*","E.II.6",null,211,"ŠENTRUPERT",null,173,"PODGORJE","GORNJA RADGONA"]
[null,null,null,null,null,null,"Drugi jezovi in objekti za zadrževanje ali trajno zagotavljanje rezerv vode, kjer nova ali dodatna količina zadržane ali uskladiščene vode presega 1 milijon m3","E.II.6.1",null,121,"ŠKOCJAN",null,174,"KONJIŠČE","GORNJA RADGONA"]
[null,null,null,null,null,null,"Zadrževalnik proda ali hudourniške vode prostornine najmanj 250.000 m3","E.II.7",null,122,"ŠKOFJA LOKA",null,175,"DROBTINCI","GORNJA RADGONA"]
[null,null,null,null,null,null,"drugi zadrževalniki proda ali hudourniške vode prostornine vsaj 500 m3 ali višine vsaj 7 m","E.II.7.1",null,123,"ŠKOFLJICA",null,176,"GRABE","GORNJA RADGONA"]
[null,null,null,null,null,null,"Regulacije in objekti za zaščito pred poplavami v dolžini več kot 20.000 m, razen nujnih ukrepov ob naravnih in drugih nesrečah ter vzdrževanju in obnovi takih objektov","E.II.8",null,124,"ŠMARJE PRI JELŠAH",null,177,"NASOVA","GORNJA RADGONA"]
[null,null,null,null,null,null,"Protierozijski objekti na morski obali in obalni objekti, ki spremenijo obalo, npr. nasipi, valolomi, pomoli in drugi zaščitni objekti, razen vzdrževanja in obnove takih objektov","E.II.9",null,206,"ŠMARJEŠKE TOPLICE",null,178,"ŽIBERCI","GORNJA RADGONA"]
[null,null,null,null,null,null,"Pridobivanje zemljišč iz morja z gradnjo otokov ali izsušitvijo moskega dna","E.II.10",null,125,"ŠMARTNO OB PAKI",null,179,"ŽEPOVCI","GORNJA RADGONA"]
[null,null,null,null,null,null,"Drugo pridobivanje zemljišč iz morja","E.II.10.1",null,194,"ŠMARTNO PRI LITIJI",null,180,"ČRNCI","GORNJA RADGONA"]
[null,null,null,null,null,null,"Daljinske železniške proge mednarodnega ali nacionalnega pomena*32","F.1",null,126,"ŠOŠTANJ",null,181,"APAČE","GORNJA RADGONA"]
[null,null,null,null,null,null,"Nadgradnja ali rekonstrukcija železniške proge v dolžini 15 km ali več, s katero se doseže povečanje zmogljivosti prometa za 20 % ali več ali povečanje največje hitrosti za 20 % ali več","F.1.2",null,127,"ŠTORE",null,182,"SEGOVCI","GORNJA RADGONA"]
[null,null,null,null,null,null,"Tramvajske proge, nadzemne in podzemne železnice, viseče ali podobne proge posebne vrste, namenjene izključno ali večinoma za prevoz potnikov, razen F.1.1 in H.2","F.2",null,184,"TABOR",null,183,"LUTVERCI","GORNJA RADGONA"]
[null,null,null,null,null,null,"Železniška ranžirna ali tovorna postaja","F.3",null,10,"TIŠINA",null,184,"GORNJA RADGONA","GORNJA RADGONA"]
[null,null,null,null,null,null,"Nadgradnja ali rekonstrukcija železniške ranžirne ali tovorne postaje, s katero se doseže povečanje zmogljivosti prometa postaje za 20 % ali več","F.3.1",null,128,"TOLMIN",null,186,"MELE","GORNJA RADGONA"]
[null,null,null,null,null,null,"Terminali za intermodalni pretovor blaga in logistični centri","F.4",null,129,"TRBOVLJE",null,187,"ČREŠNJEVCI","GORNJA RADGONA"]
[null,null,null,null,null,null,"Gradnja avtocest in hitrih cest *","F.5",null,130,"TREBNJE",null,188,"POLICE","GORNJA RADGONA"]
[null,null,null,null,null,null,"Priključki na avtocesto ali hitro cesto, njihova rekonstrukcija ali dograditev","F.5.1",null,185,"TRNOVSKA VAS",null,189,"HERCEGOVŠČAK","GORNJA RADGONA"]
[null,null,null,null,null,null,"Gradnja novih cest s štirimi ali več pasovi ali nova razvrstitev pasov na obstoječi cesti in/ali širitev obstoječe ceste, da bo imela štiri pasove ali več, v dolžini 10 km ali več neprekinjenega poteka*33","F.6",null,186,"TRZIN",null,190,"LOMANOŠE","GORNJA RADGONA"]
[null,null,null,null,null,null,"Gradnja novih cest s štirimi ali več pasovi ali širitev obstoječe ceste, da bo imela štiri pasove ali več, v dolžini vsaj 5 km neprekinjenega poteka34","F.6.1",null,131,"TRŽIČ",null,191,"PLITVICA","GORNJA RADGONA"]
[null,null,null,null,null,null,"Glavne in regionalne ceste, dolžine nad 10 km35","F.7",null,132,"TURNIŠČE",null,192,"PLITVIČKI VRH","GORNJA RADGONA"]
[null,null,null,null,null,null,"Nove glavne in regionalne ceste, njihovo podaljšanje ali rekonstrukcija obstoječe ceste izven varovalnega pasu, tako da skupna neprekinjena dolžina ceste po novogradnji, podaljšanju ali rekonstrukciji znaša vsaj 5 km36","F.7.1",null,133,"VELENJE",null,193,"SPODNJA ŠČAVNICA","GORNJA RADGONA"]
[null,null,null,null,null,null,"Letališča37 z vzletno stezo osnovne dolžine najmanj 2100 m*","F.8",null,187,"VELIKA POLANA",null,194,"LASTOMERCI","GORNJA RADGONA"]
[null,null,null,null,null,null,"Druga letališča razen vzletišč in drugih urejenih površin, ki jih pod predpisanimi pogoji uporabljajo določene vrste in kategorizacije zrakoplovov","F.8.1",null,134,"VELIKE LAŠČE",null,195,"ZBIGOVCI","GORNJA RADGONA"]
[null,null,null,null,null,null,"Plovne poti, pristanišča in objekti za plovbo po celinskih vodah, ki dovoljujejo prehod plovil z bruto tonažo nad 1350*38","F.9",null,188,"VERŽEJ",null,196,"OREHOVSKI VRH","GORNJA RADGONA"]
[null,null,null,null,null,null,"Druge plovbne poti, ureditve in naprave, namenjene plovbi po celinskih vodah39","F.9.1",null,135,"VIDEM",null,197,"OREHOVCI","GORNJA RADGONA"]
[null,null,null,null,null,null,"Pristanišča za mednarodni in/ali domači javni promet ter druga pristanišča (razen pomolov za trajekte), ki lahko sprejmejo plovila z bruto tonažo nad 1350*40","F.10",null,136,"VIPAVA",null,198,"BORAČEVA","GORNJA RADGONA"]
[null,null,null,null,null,null,"Posebna pristanišča ne glede na zmogljivost plovil, vključno z ribiškimi, ter samostojne pristaniške naprave41","F.10.1",null,137,"VITANJE",null,199,"ŠRATOVCI","GORNJA RADGONA"]
[null,null,null,null,null,null,"Posegi, ki so namenjeni industrijskim dejavnostim iz poglavja C te priloge (industrijske cone), če presegajo 5 ha","G.I.1",null,138,"VODICE",null,200,"RADENCI","GORNJA RADGONA"]
[null,null,null,null,null,null,"Druge industrijske cone, če presegajo 1 ha","G.I.1.1",null,139,"VOJNIK",null,201,"RIHTAROVCI","GORNJA RADGONA"]
[null,null,null,null,null,null,"Posegi, namenjeni trgovski, športni, rekreativni, zabaviščni, kulturni, izobraževalni, zdravstveni dejavnosti (urbanistični projekti), če presegajo 10 ha","G.I.2",null,189,"VRANSKO",null,202,"KAPELSKI VRH","GORNJA RADGONA"]
[null,null,null,null,null,null,"Drugi urbanistični projekti, če presegajo 5 ha","G.I.2.1",null,140,"VRHNIKA",null,203,"OČESLAVCI","GORNJA RADGONA"]
[null,null,null,null,null,null,"Posegi, namenjeni pretežno bivanju in spremljajočim dejavnostim (območja stanovanj), če presegajo 10 ha","G.I.3",null,141,"VUZENICA",null,204,"JANŽEV VRH","GORNJA RADGONA"]
[null,null,null,null,null,null,"Stavba, ki presega bruto tlorisno površino 30.000 m2 ali nadzemno višino 70 m ali podzemno globino 30 m44","G.II.1",null,142,"ZAGORJE OB SAVI",null,205,"STAVEŠINCI","GORNJA RADGONA"]
[null,null,null,null,null,null,"Druge stavbe, ki presegajo bruto tlorisno površino 10.000 m2 ali nadzemno višino 50 m ali podzemno globino 10 m","G.II.1.1",null,143,"ZAVRČ",null,206,"IVANJŠEVCI","GORNJA RADGONA"]
[null,null,null,null,null,null,"Parkirišče za tovorna vozila površine 1 ha ali več","G.II.2",null,144,"ZREČE",null,207,"RADVENCI","GORNJA RADGONA"]
[null,null,null,null,null,null,"Krematorij","G.II.3",null,190,"ŽALEC",null,208,"NEGOVA","GORNJA RADGONA"]
[null,null,null,null,null,null,"Izvajanje zemeljskih del, ki se ne izvajajo pri gradnji drugih objektov iz te uredbe, na površini vsaj 1 ha, če se s tem teren poglablja ali zvišuje za najmanj 2 m","G.II.4",null,146,"ŽELEZNIKI",null,209,"KUNOVA","GORNJA RADGONA"]
[null,null,null,null,null,null,"Smučišče in tekaške proge, ki zahtevajo krčitev gozda ali drugo trajno spremembo rabe zemljišča, izvedbo gradbenih del ali drugačno preoblikovanje morfologije zemljišča, ali s smučarsko progo dolžine nad 5 km, na površini 50 ha ali na nadmorski višini nad 1500 m (zgornja točka)","H.1",null,191,"ŽETALE",null,210,"GORNJI IVANJCI","GORNJA RADGONA"]
[null,null,null,null,null,null,"Druga smučišča in smučarske proge, če ne zahtevajo krčitve gozda ali druge trajne spremembe rabe zemljišča, izvedbe gradbenih del ali drugačnega preoblikovanja morfologije zemljišča","H.1.1",null,147,"ŽIRI",null,211,"SPODNJI IVANJCI","GORNJA RADGONA"]
[null,null,null,null,null,null,"Stalne žičniške naprave45, ki lahko prepeljejo 1500 oseb na uro","H.2",null,192,"ŽIROVNICA",null,212,"OKOSLAVCI","GORNJA RADGONA"]
[null,null,null,null,null,null,"Druge stalne žičniške naprave z zmogljivostjo prevoza najmanj 700 oseb na uro","H.2.1",null,193,"ŽUŽEMBERK",null,213,"DRAGOTINCI","GORNJA RADGONA"]
[null,null,null,null,null,null,"Smučarska skakalnica (razen otroške in mladinske)","H.3",null,null,null,null,214,"ROŽIČKI VRH","GORNJA RADGONA"]
[null,null,null,null,null,null,"Naprava ali objekt, namenjen odvzemu vode za umetno zasneževanje površine nad 4 ha","H.4",null,null,null,null,215,"STANETINCI","GORNJA RADGONA"]
[null,null,null,null,null,null,"Druge naprave in objekti za umetno zasneževanje","H.4.1",null,null,null,null,216,"HRAŠENSKI-RAČKI VRH","GORNJA RADGONA"]
[null,null,null,null,null,null,"Športno, turistično pristanišče (marina) ali krajevno pristanišče, vključno z lokalnimi privezi za male ribiče","H.5",null,null,null,null,217,"MURŠČAK","GORNJA RADGONA"]
[null,null,null,null,null,null,"Počitniško, apartmajsko ali vikend naselje, hoteli zunaj urbanih območij46 in z njimi povezani posegi na površini ureditvenega območja vsaj 2 ha ali s posamičnimi stavbami bruto tlorisne površine nad 3000 m2","H.6",null,null,null,null,218,"HRASTJE-MOTA","GORNJA RADGONA"]
[null,null,null,null,null,null,"Stalna območja za kampiranje in postavljanje počitniških prikolic (kampi) za vsaj 100 enot","H.7",null,null,null,null,219,"MURSKI VRH","GORNJA RADGONA"]
[null,null,null,null,null,null,"Športna dvorana ali igrišče, ki lahko sprejme najmanj 1000 obiskovalcev","H.8",null,null,null,null,220,"SELIŠČI","GORNJA RADGONA"]
[null,null,null,null,null,null,"Tematski, adrenalinski ali zabaviščni parki47 na površini več kot 1 ha, ali ki lahko sprejmejo najmanj 500 obiskovalcev","H.9",null,null,null,null,221,"SLAPTINCI","GORNJA RADGONA"]
[null,null,null,null,null,null,"Igrišče za golf nad 25 ha","H.10",null,null,null,null,222,"JAMNA","GORNJA RADGONA"]
[null,null,null,null,null,null,"Druga igrišča za golf","H.10.1",null,null,null,null,223,"BLAGUŠ","GORNJA RADGONA"]
[null,null,null,null,null,null,"Stalna dirkalna ali preizkusna proga za motorna vozila alipoligon varne vožnje, razen občasnih tekmovalnih prog na javnih cestah","H.11",null,null,null,null,224,"GRABONOŠ","GORNJA RADGONA"]
[null,null,null,null,null,null,null,null,null,null,null,null,225,"KRALJEVCI","GORNJA RADGONA"]
[null,null,null,null,null,null,null,null,null,null,null,null,226,"SOVJAK","GORNJA RADGONA"]
[null,null,null,null,null,null,null,null,null,null,null,null,227,"TERBEGOVCI","GORNJA RADGONA"]
[null,null,null,null,null,null,null,null,null,null,null,null,228,"GALUŠAK","GORNJA RADGONA"]
[null,null,null,null,null,null,null,null,null,null,null,null,229,"KOKOLAJNŠČAK","GORNJA RADGONA"]
[null,null,null,null,null,null,null,null,null,null,null,null,230,"VUČJA VAS","LJUTOMER"]
[null,null,null,null,null,null,null,null,null,null,null,null,231,"BUČEČOVCI","LJUTOMER"]
[null,null,null,null,null,null,null,null,null,null,null,null,232,"STARA NOVA VAS","LJUTOMER"]
[null,null,null,null,null,null,null,null,null,null,null,null,233,"BUNČANI","LJUTOMER"]
[null,null,null,null,null,null,null,null,null,null,null,null,234,"VERŽEJ","LJUTOMER"]
[null,null,null,null,null,null,null,null,null,null,null,null,235,"ILJAŠEVCI","LJUTOMER"]
[null,null,null,null,null,null,null,null,null,null,null,null,236,"KRIŽEVCI","LJUTOMER"]
[null,null,null,null,null,null,null,null,null,null,null,null,237,"GRLAVA","LJUTOMER"]
[null,null,null,null,null,null,null,null,null,null,null,null,238,"KRIŠTANCI","LJUTOMER"]
[null,null,null,null,null,null,null,null,null,null,null,null,239,"KRAPJE","LJUTOMER"]
[null,null,null,null,null,null,null,null,null,null,null,null,240,"MOTA","LJUTOMER"]
[null,null,null,null,null,null,null,null,null,null,null,null,241,"CVEN","LJUTOMER"]
[null,null,null,null,null,null,null,null,null,null,null,null,242,"BABINCI","LJUTOMER"]
[null,null,null,null,null,null,null,null,null,null,null,null,243,"NORŠINCI","LJUTOMER"]
[null,null,null,null,null,null,null,null,null,null,null,null,244,"LUKAVCI","LJUTOMER"]
[null,null,null,null,null,null,null,null,null,null,null,null,245,"KLJUČAROVCI PRI LJUTOMERU","LJUTOMER"]
[null,null,null,null,null,null,null,null,null,null,null,null,246,"BORECI","LJUTOMER"]
[null,null,null,null,null,null,null,null,null,null,null,null,247,"LOGAROVCI","LJUTOMER"]
[null,null,null,null,null,null,null,null,null,null,null,null,248,"PRECETINCI","LJUTOMER"]
[null,null,null,null,null,null,null,null,null,null,null,null,249,"KURŠINCI","LJUTOMER"]
[null,null,null,null,null,null,null,null,null,null,null,null,250,"BERKOVCI","LJUTOMER"]
[null,null,null,null,null,null,null,null,null,null,null,null,251,"BOLEHNEČICI","LJUTOMER"]
[null,null,null,null,null,null,null,null,null,null,null,null,252,"BUČKOVCI","LJUTOMER"]
[null,null,null,null,null,null,null,null,null,null,null,null,253,"DRAKOVCI","LJUTOMER"]
[null,null,null,null,null,null,null,null,null,null,null,null,254,"MORAVCI","LJUTOMER"]
[null,null,null,null,null,null,null,null,null,null,null,null,255,"GODEMARCI","LJUTOMER"]
[null,null,null,null,null,null,null,null,null,null,null,null,256,"RADOSLAVCI","LJUTOMER"]
[null,null,null,null,null,null,null,null,null,null,null,null,257,"BRANOSLAVCI","LJUTOMER"]
[null,null,null,null,null,null,null,null,null,null,null,null,258,"CEZANJEVCI","LJUTOMER"]
[null,null,null,null,null,null,null,null,null,null,null,null,259,"LJUTOMER","LJUTOMER"]
[null,null,null,null,null,null,null,null,null,null,null,null,260,"KAMENŠČAK","LJUTOMER"]
[null,null,null,null,null,null,null,null,null,null,null,null,261,"STARA CESTA","LJUTOMER"]
[null,null,null,null,null,null,null,null,null,null,null,null,262,"DESNJAK","LJUTOMER"]
[null,null,null,null,null,null,null,null,null,null,null,null,263,"MEKOTNJAK","LJUTOMER"]
[null,null,null,null,null,null,null,null,null,null,null,null,264,"RADOMERJE","LJUTOMER"]
[null,null,null,null,null,null,null,null,null,null,null,null,265,"GRESOVŠČAK","LJUTOMER"]
[null,null,null,null,null,null,null,null,null,null,null,null,266,"PLEŠIVICA","LJUTOMER"]
[null,null,null,null,null,null,null,null,null,null,null,null,267,"ILOVCI","LJUTOMER"]
[null,null,null,null,null,null,null,null,null,null,null,null,268,"SLAMNJAK","LJUTOMER"]
[null,null,null,null,null,null,null,null,null,null,null,null,269,"RINČETOVA GRABA","LJUTOMER"]
[null,null,null,null,null,null,null,null,null,null,null,null,270,"NUNSKA GRABA","LJUTOMER"]
[null,null,null,null,null,null,null,null,null,null,null,null,271,"PRESIKA","LJUTOMER"]
[null,null,null,null,null,null,null,null,null,null,null,null,272,"STROČJA VAS","LJUTOMER"]
[null,null,null,null,null,null,null,null,null,null,null,null,273,"PRISTAVA","LJUTOMER"]
[null,null,null,null,null,null,null,null,null,null,null,null,274,"GLOBOKA","LJUTOMER"]
[null,null,null,null,null,null,null,null,null,null,null,null,275,"VEŠČICA","LJUTOMER"]
[null,null,null,null,null,null,null,null,null,null,null,null,276,"RAZKRIŽJE","LJUTOMER"]
[null,null,null,null,null,null,null,null,null,null,null,null,277,"ŠAFARSKO","LJUTOMER"]
[null,null,null,null,null,null,null,null,null,null,null,null,278,"GIBINA","LJUTOMER"]
[null,null,null,null,null,null,null,null,null,null,null,null,279,"TRNOVCI","ORMOŽ"]
[null,null,null,null,null,null,null,null,null,null,null,null,280,"RUCMANCI","ORMOŽ"]
[null,null,null,null,null,null,null,null,null,null,null,null,281,"RAKOVCI","ORMOŽ"]
[null,null,null,null,null,null,null,null,null,null,null,null,282,"SAVCI","ORMOŽ"]
[null,null,null,null,null,null,null,null,null,null,null,null,283,"TOMAŽ","ORMOŽ"]
[null,null,null,null,null,null,null,null,null,null,null,null,284,"MALA VAS","ORMOŽ"]
[null,null,null,null,null,null,null,null,null,null,null,null,285,"BRATONEČICE","ORMOŽ"]
[null,null,null,null,null,null,null,null,null,null,null,null,286,"SENIK PRI TOMAŽU","ORMOŽ"]
[null,null,null,null,null,null,null,null,null,null,null,null,287,"KLJUČAROVCI PRI ORMOŽU","ORMOŽ"]
[null,null,null,null,null,null,null,null,null,null,null,null,288,"KORAČICE","ORMOŽ"]
[null,null,null,null,null,null,null,null,null,null,null,null,289,"PRŠETINCI","ORMOŽ"]
[null,null,null,null,null,null,null,null,null,null,null,null,290,"LAHONCI","ORMOŽ"]
[null,null,null,null,null,null,null,null,null,null,null,null,291,"ŽVAB","ORMOŽ"]
[null,null,null,null,null,null,null,null,null,null,null,null,292,"RUNEČ","ORMOŽ"]
[null,null,null,null,null,null,null,null,null,null,null,null,293,"STANOVNO","ORMOŽ"]
[null,null,null,null,null,null,null,null,null,null,null,null,294,"IVANJKOVCI","ORMOŽ"]
[null,null,null,null,null,null,null,null,null,null,null,null,295,"ŽEROVINCI","ORMOŽ"]
[null,null,null,null,null,null,null,null,null,null,null,null,296,"CEROVEC - STANKA VRAZA","ORMOŽ"]
[null,null,null,null,null,null,null,null,null,null,null,null,297,"VELIČANE","ORMOŽ"]
[null,null,null,null,null,null,null,null,null,null,null,null,298,"MIHALOVCI","ORMOŽ"]
[null,null,null,null,null,null,null,null,null,null,null,null,299,"MALI BREBROVNIK","ORMOŽ"]
[null,null,null,null,null,null,null,null,null,null,null,null,300,"VELIKI BREBROVNIK","ORMOŽ"]
[null,null,null,null,null,null,null,null,null,null,null,null,301,"VINSKI VRH","ORMOŽ"]
[null,null,null,null,null,null,null,null,null,null,null,null,302,"MIKLAVŽ","ORMOŽ"]
[null,null,null,null,null,null,null,null,null,null,null,null,303,"HERMANCI","ORMOŽ"]
[null,null,null,null,null,null,null,null,null,null,null,null,304,"GOMILA","ORMOŽ"]
[null,null,null,null,null,null,null,null,null,null,null,null,305,"KOG","ORMOŽ"]
[null,null,null,null,null,null,null,null,null,null,null,null,306,"VUZMETINCI","ORMOŽ"]
[null,null,null,null,null,null,null,null,null,null,null,null,307,"KAJŽAR","ORMOŽ"]
[null,null,null,null,null,null,null,null,null,null,null,null,308,"ZASAVCI","ORMOŽ"]
[null,null,null,null,null,null,null,null,null,null,null,null,309,"LAČAVES","ORMOŽ"]
[null,null,null,null,null,null,null,null,null,null,null,null,310,"JASTREBCI","ORMOŽ"]
[null,null,null,null,null,null,null,null,null,null,null,null,311,"VODRANCI","ORMOŽ"]
[null,null,null,null,null,null,null,null,null,null,null,null,312,"VITAN","ORMOŽ"]
[null,null,null,null,null,null,null,null,null,null,null,null,313,"ŠALOVCI PRI SREDIŠČU","ORMOŽ"]
[null,null,null,null,null,null,null,null,null,null,null,null,314,"HUM","ORMOŽ"]
[null,null,null,null,null,null,null,null,null,null,null,null,315,"PAVLOVSKI VRH","ORMOŽ"]
[null,null,null,null,null,null,null,null,null,null,null,null,316,"LIBANJA","ORMOŽ"]
[null,null,null,null,null,null,null,null,null,null,null,null,317,"PAVLOVCI","ORMOŽ"]
[null,null,null,null,null,null,null,null,null,null,null,null,318,"HARDEK","ORMOŽ"]
[null,null,null,null,null,null,null,null,null,null,null,null,319,"LITMERK","ORMOŽ"]
[null,null,null,null,null,null,null,null,null,null,null,null,320,"LEŠNICA PRI ORMOŽU","ORMOŽ"]
[null,null,null,null,null,null,null,null,null,null,null,null,321,"ŠARDINJE","ORMOŽ"]
[null,null,null,null,null,null,null,null,null,null,null,null,322,"VIČANCI","ORMOŽ"]
[null,null,null,null,null,null,null,null,null,null,null,null,323,"SENEŠCI","ORMOŽ"]
[null,null,null,null,null,null,null,null,null,null,null,null,324,"SODINCI","ORMOŽ"]
[null,null,null,null,null,null,null,null,null,null,null,null,325,"STRJANCI","ORMOŽ"]
[null,null,null,null,null,null,null,null,null,null,null,null,326,"BRESNICA","ORMOŽ"]
[null,null,null,null,null,null,null,null,null,null,null,null,327,"PODGORCI","ORMOŽ"]
[null,null,null,null,null,null,null,null,null,null,null,null,328,"OSLUŠEVCI","ORMOŽ"]
[null,null,null,null,null,null,null,null,null,null,null,null,329,"CVETKOVCI","ORMOŽ"]
[null,null,null,null,null,null,null,null,null,null,null,null,330,"TRGOVIŠČE","ORMOŽ"]
[null,null,null,null,null,null,null,null,null,null,null,null,331,"VELIKA NEDELJA","ORMOŽ"]
[null,null,null,null,null,null,null,null,null,null,null,null,332,"ORMOŽ","ORMOŽ"]
[null,null,null,null,null,null,null,null,null,null,null,null,333,"PUŠENCI","ORMOŽ"]
[null,null,null,null,null,null,null,null,null,null,null,null,334,"FRANKOVCI","ORMOŽ"]
[null,null,null,null,null,null,null,null,null,null,null,null,335,"LOPERŠICE","ORMOŽ"]
[null,null,null,null,null,null,null,null,null,null,null,null,336,"OBREŽ","ORMOŽ"]
[null,null,null,null,null,null,null,null,null,null,null,null,337,"GRABE PRI SREDIŠČU","ORMOŽ"]
[null,null,null,null,null,null,null,null,null,null,null,null,338,"SREDIŠČE","ORMOŽ"]
[null,null,null,null,null,null,null,null,null,null,null,null,339,"NOVINCI","PTUJ"]
[null,null,null,null,null,null,null,null,null,null,null,null,340,"SLAVŠINA","PTUJ"]
[null,null,null,null,null,null,null,null,null,null,null,null,341,"RJAVCI","PTUJ"]
[null,null,null,null,null,null,null,null,null,null,null,null,342,"HVALETINCI","PTUJ"]
[null,null,null,null,null,null,null,null,null,null,null,null,343,"VITOMARCI","PTUJ"]
[null,null,null,null,null,null,null,null,null,null,null,null,344,"DRBETINCI","PTUJ"]
[null,null,null,null,null,null,null,null,null,null,null,null,345,"TRNOVSKA VAS","PTUJ"]
[null,null,null,null,null,null,null,null,null,null,null,null,346,"BIŠ","PTUJ"]
[null,null,null,null,null,null,null,null,null,null,null,null,347,"BIŠEČKI VRH","PTUJ"]
[null,null,null,null,null,null,null,null,null,null,null,null,348,"TRNOVSKI VRH","PTUJ"]
[null,null,null,null,null,null,null,null,null,null,null,null,349,"LOČKI VRH","PTUJ"]
[null,null,null,null,null,null,null,null,null,null,null,null,350,"LOČIČ","PTUJ"]
[null,null,null,null,null,null,null,null,null,null,null,null,351,"SVETINCI","PTUJ"]
[null,null,null,null,null,null,null,null,null,null,null,null,352,"DESENCI","PTUJ"]
[null,null,null,null,null,null,null,null,null,null,null,null,353,"GRLINCI","PTUJ"]
[null,null,null,null,null,null,null,null,null,null,null,null,354,"ZAGORCI","PTUJ"]
[null,null,null,null,null,null,null,null,null,null,null,null,355,"SENČAK","PTUJ"]
[null,null,null,null,null,null,null,null,null,null,null,null,356,"SAKUŠAK","PTUJ"]
[null,null,null,null,null,null,null,null,null,null,null,null,357,"BODKOVCI","PTUJ"]
[null,null,null,null,null,null,null,null,null,null,null,null,358,"JURŠINCI","PTUJ"]
[null,null,null,null,null,null,null,null,null,null,null,null,359,"DRAGOVIČ","PTUJ"]
[null,null,null,null,null,null,null,null,null,null,null,null,360,"GRADIŠČAK","PTUJ"]
[null,null,null,null,null,null,null,null,null,null,null,null,361,"LEVANJCI","PTUJ"]
[null,null,null,null,null,null,null,null,null,null,null,null,362,"DOLIČ","PTUJ"]
[null,null,null,null,null,null,null,null,null,null,null,null,363,"DESTRNIK","PTUJ"]
[null,null,null,null,null,null,null,null,null,null,null,null,364,"VINTAROVCI","PTUJ"]
[null,null,null,null,null,null,null,null,null,null,null,null,365,"JIRŠOVCI","PTUJ"]
[null,null,null,null,null,null,null,null,null,null,null,null,366,"KRČEVINA PRI VURBERGU","PTUJ"]
[null,null,null,null,null,null,null,null,null,null,null,null,367,"GRAJENŠČAK","PTUJ"]
[null,null,null,null,null,null,null,null,null,null,null,null,368,"DRSTELJA","PTUJ"]
[null,null,null,null,null,null,null,null,null,null,null,null,369,"JANEŽOVCI","PTUJ"]
[null,null,null,null,null,null,null,null,null,null,null,null,370,"JANEŽOVSKI VRH","PTUJ"]
[null,null,null,null,null,null,null,null,null,null,null,null,371,"ZGORNJI VELOVLEK","PTUJ"]
[null,null,null,null,null,null,null,null,null,null,null,null,372,"SPODNJI VELOVLEK","PTUJ"]
[null,null,null,null,null,null,null,null,null,null,null,null,373,"MOSTJE","PTUJ"]
[null,null,null,null,null,null,null,null,null,null,null,null,374,"KUKAVA","PTUJ"]
[null,null,null,null,null,null,null,null,null,null,null,null,375,"ROTMAN","PTUJ"]
[null,null,null,null,null,null,null,null,null,null,null,null,376,"HLAPONCI","PTUJ"]
[null,null,null,null,null,null,null,null,null,null,null,null,377,"POLENŠAK","PTUJ"]
[null,null,null,null,null,null,null,null,null,null,null,null,378,"BRATISLAVCI","PTUJ"]
[null,null,null,null,null,null,null,null,null,null,null,null,379,"POLENCI","PTUJ"]
[null,null,null,null,null,null,null,null,null,null,null,null,380,"PRERAD","PTUJ"]
[null,null,null,null,null,null,null,null,null,null,null,null,381,"TIBOLCI","PTUJ"]
[null,null,null,null,null,null,null,null,null,null,null,null,382,"SLOMI","PTUJ"]
[null,null,null,null,null,null,null,null,null,null,null,null,383,"MEZGOVCI","PTUJ"]
[null,null,null,null,null,null,null,null,null,null,null,null,384,"DORNAVA","PTUJ"]
[null,null,null,null,null,null,null,null,null,null,null,null,385,"PODVINCI","PTUJ"]
[null,null,null,null,null,null,null,null,null,null,null,null,386,"PACINJE","PTUJ"]
[null,null,null,null,null,null,null,null,null,null,null,null,387,"KICAR","PTUJ"]
[null,null,null,null,null,null,null,null,null,null,null,null,388,"ROGOZNICA","PTUJ"]
[null,null,null,null,null,null,null,null,null,null,null,null,389,"NOVA VAS PRI PTUJU","PTUJ"]
[null,null,null,null,null,null,null,null,null,null,null,null,390,"MESTNI VRH","PTUJ"]
[null,null,null,null,null,null,null,null,null,null,null,null,391,"GRAJENA","PTUJ"]
[null,null,null,null,null,null,null,null,null,null,null,null,392,"KRČEVINA PRI PTUJU","PTUJ"]
[null,null,null,null,null,null,null,null,null,null,null,null,393,"SLOVENJA VAS","PTUJ"]
[null,null,null,null,null,null,null,null,null,null,null,null,394,"GEREČJA VAS","PTUJ"]
[null,null,null,null,null,null,null,null,null,null,null,null,395,"HAJDOŠE","PTUJ"]
[null,null,null,null,null,null,null,null,null,null,null,null,396,"SKORBA","PTUJ"]
[null,null,null,null,null,null,null,null,null,null,null,null,397,"HAJDINA","PTUJ"]
[null,null,null,null,null,null,null,null,null,null,null,null,399,"DRAŽENCI","PTUJ"]
[null,null,null,null,null,null,null,null,null,null,null,null,400,"PTUJ","PTUJ"]
[null,null,null,null,null,null,null,null,null,null,null,null,401,"BRSTJE","PTUJ"]
[null,null,null,null,null,null,null,null,null,null,null,null,402,"SPUHLJA","PTUJ"]
[null,null,null,null,null,null,null,null,null,null,null,null,403,"BOROVCI","PTUJ"]
[null,null,null,null,null,null,null,null,null,null,null,null,404,"PRVENCI","PTUJ"]
[null,null,null,null,null,null,null,null,null,null,null,null,405,"SOBETINCI","PTUJ"]
[null,null,null,null,null,null,null,null,null,null,null,null,406,"ZAGOJIČI","PTUJ"]
[null,null,null,null,null,null,null,null,null,null,null,null,407,"MOŠKANJCI","PTUJ"]
[null,null,null,null,null,null,null,null,null,null,null,null,408,"GORIŠNICA","PTUJ"]
[null,null,null,null,null,null,null,null,null,null,null,null,409,"ZAMUŠANI","PTUJ"]
[null,null,null,null,null,null,null,null,null,null,null,null,410,"FORMIN","PTUJ"]
[null,null,null,null,null,null,null,null,null,null,null,null,411,"GAJEVCI","PTUJ"]
[null,null,null,null,null,null,null,null,null,null,null,null,412,"MALA VAS","PTUJ"]
[null,null,null,null,null,null,null,null,null,null,null,null,413,"MURETINCI","PTUJ"]
[null,null,null,null,null,null,null,null,null,null,null,null,414,"STOJNCI","PTUJ"]
[null,null,null,null,null,null,null,null,null,null,null,null,415,"BUKOVCI","PTUJ"]
[null,null,null,null,null,null,null,null,null,null,null,null,416,"NOVA VAS PRI MARKOVCIH","PTUJ"]
[null,null,null,null,null,null,null,null,null,null,null,null,417,"MARKOVCI","PTUJ"]
[null,null,null,null,null,null,null,null,null,null,null,null,418,"ZABOVCI","PTUJ"]
[null,null,null,null,null,null,null,null,null,null,null,null,419,"ŠTURMOVCI","PTUJ"]
[null,null,null,null,null,null,null,null,null,null,null,null,420,"POBREŽJE","PTUJ"]
[null,null,null,null,null,null,null,null,null,null,null,null,421,"LANCOVA VAS","PTUJ"]
[null,null,null,null,null,null,null,null,null,null,null,null,422,"SELA","PTUJ"]
[null,null,null,null,null,null,null,null,null,null,null,null,423,"TRNOVEC","PTUJ"]
[null,null,null,null,null,null,null,null,null,null,null,null,424,"APAČE","PTUJ"]
[null,null,null,null,null,null,null,null,null,null,null,null,425,"LOVRENC NA DRAVSKEM POLJU","PTUJ"]
[null,null,null,null,null,null,null,null,null,null,null,null,426,"ŽUPEČJA VAS","PTUJ"]
[null,null,null,null,null,null,null,null,null,null,null,null,427,"PLETERJE","PTUJ"]
[null,null,null,null,null,null,null,null,null,null,null,null,428,"MIHOVCE","PTUJ"]
[null,null,null,null,null,null,null,null,null,null,null,null,429,"DRAGONJA VAS","PTUJ"]
[null,null,null,null,null,null,null,null,null,null,null,null,430,"CIRKOVCE","PTUJ"]
[null,null,null,null,null,null,null,null,null,null,null,null,431,"STAROŠINCE","PTUJ"]
[null,null,null,null,null,null,null,null,null,null,null,null,432,"SPODNJE JABLANE","PTUJ"]
[null,null,null,null,null,null,null,null,null,null,null,null,433,"ZGORNJE JABLANE","PTUJ"]
[null,null,null,null,null,null,null,null,null,null,null,null,434,"PONGRCE","PTUJ"]
[null,null,null,null,null,null,null,null,null,null,null,null,435,"ŠIKOLE","PTUJ"]
[null,null,null,null,null,null,null,null,null,null,null,null,436,"SESTRŽE","PTUJ"]
[null,null,null,null,null,null,null,null,null,null,null,null,437,"PODLOŽE","PTUJ"]
[null,null,null,null,null,null,null,null,null,null,null,null,438,"LEŠJE","PTUJ"]
[null,null,null,null,null,null,null,null,null,null,null,null,439,"PTUJSKA GORA","PTUJ"]
[null,null,null,null,null,null,null,null,null,null,null,null,440,"DOKLECE","PTUJ"]
[null,null,null,null,null,null,null,null,null,null,null,null,441,"STOGOVCI","PTUJ"]
[null,null,null,null,null,null,null,null,null,null,null,null,442,"SKRBLJE","PTUJ"]
[null,null,null,null,null,null,null,null,null,null,null,null,443,"JANŠKI VRH","PTUJ"]
[null,null,null,null,null,null,null,null,null,null,null,null,444,"BOLEČKA VAS","PTUJ"]
[null,null,null,null,null,null,null,null,null,null,null,null,445,"ZGORNJA PRISTAVA","PTUJ"]
[null,null,null,null,null,null,null,null,null,null,null,null,446,"JUROVCI","PTUJ"]
[null,null,null,null,null,null,null,null,null,null,null,null,447,"DRAVINJSKI VRH","PTUJ"]
[null,null,null,null,null,null,null,null,null,null,null,null,448,"VAREJA","PTUJ"]
[null,null,null,null,null,null,null,null,null,null,null,null,449,"LJUBSTAVA","PTUJ"]
[null,null,null,null,null,null,null,null,null,null,null,null,450,"MAJSKI VRH","PTUJ"]
[null,null,null,null,null,null,null,null,null,null,null,null,451,"GORCA","PTUJ"]
[null,null,null,null,null,null,null,null,null,null,null,null,452,"DOLENA","PTUJ"]
[null,null,null,null,null,null,null,null,null,null,null,null,453,"RODNI VRH","PTUJ"]
[null,null,null,null,null,null,null,null,null,null,null,null,454,"JABLOVEC","PTUJ"]
[null,null,null,null,null,null,null,null,null,null,null,null,455,"ZAKL","PTUJ"]
[null,null,null,null,null,null,null,null,null,null,null,null,456,"DEŽNO","PTUJ"]
[null,null,null,null,null,null,null,null,null,null,null,null,457,"PODLEHNIK","PTUJ"]
[null,null,null,null,null,null,null,null,null,null,null,null,458,"SPODNJI LESKOVEC","PTUJ"]
[null,null,null,null,null,null,null,null,null,null,null,null,459,"REPIŠČE","PTUJ"]
[null,null,null,null,null,null,null,null,null,null,null,null,460,"DRAVCI","PTUJ"]
[null,null,null,null,null,null,null,null,null,null,null,null,461,"GRADIŠČA","PTUJ"]
[null,null,null,null,null,null,null,null,null,null,null,null,462,"DOLANE","PTUJ"]
[null,null,null,null,null,null,null,null,null,null,null,null,463,"VELIKI VRH","PTUJ"]
[null,null,null,null,null,null,null,null,null,null,null,null,464,"BELSKI VRH","PTUJ"]
[null,null,null,null,null,null,null,null,null,null,null,null,465,"HRASTOVEC","PTUJ"]
[null,null,null,null,null,null,null,null,null,null,null,null,466,"ZAVRČ","PTUJ"]
[null,null,null,null,null,null,null,null,null,null,null,null,467,"GORIČAK","PTUJ"]
[null,null,null,null,null,null,null,null,null,null,null,null,468,"DRENOVEC","PTUJ"]
[null,null,null,null,null,null,null,null,null,null,null,null,469,"TURŠKI VRH","PTUJ"]
[null,null,null,null,null,null,null,null,null,null,null,null,470,"KORENJAK","PTUJ"]
[null,null,null,null,null,null,null,null,null,null,null,null,471,"PESTIKE","PTUJ"]
[null,null,null,null,null,null,null,null,null,null,null,null,472,"GORENJSKI VRH","PTUJ"]
[null,null,null,null,null,null,null,null,null,null,null,null,473,"BREZOVEC","PTUJ"]
[null,null,null,null,null,null,null,null,null,null,null,null,474,"CIRKULANE","PTUJ"]
[null,null,null,null,null,null,null,null,null,null,null,null,475,"GRUŠKOVEC","PTUJ"]
[null,null,null,null,null,null,null,null,null,null,null,null,476,"MEJE","PTUJ"]
[null,null,null,null,null,null,null,null,null,null,null,null,477,"MEDRIBNIK","PTUJ"]
[null,null,null,null,null,null,null,null,null,null,null,null,478,"PARADIŽ","PTUJ"]
[null,null,null,null,null,null,null,null,null,null,null,null,479,"PRISTAVA","PTUJ"]
[null,null,null,null,null,null,null,null,null,null,null,null,480,"POHORJE","PTUJ"]
[null,null,null,null,null,null,null,null,null,null,null,null,481,"SLATINA","PTUJ"]
[null,null,null,null,null,null,null,null,null,null,null,null,482,"MALI OKIČ","PTUJ"]
[null,null,null,null,null,null,null,null,null,null,null,null,483,"VELIKI OKIČ","PTUJ"]
[null,null,null,null,null,null,null,null,null,null,null,null,484,"GRADIŠČE","PTUJ"]
[null,null,null,null,null,null,null,null,null,null,null,null,485,"SKORIŠNJAK","PTUJ"]
[null,null,null,null,null,null,null,null,null,null,null,null,486,"BELAVŠEK","PTUJ"]
[null,null,null,null,null,null,null,null,null,null,null,null,487,"ZGORNJI LESKOVEC","PTUJ"]
[null,null,null,null,null,null,null,null,null,null,null,null,488,"TRDOBOJCI","PTUJ"]
[null,null,null,null,null,null,null,null,null,null,null,null,489,"MALA VARNICA","PTUJ"]
[null,null,null,null,null,null,null,null,null,null,null,null,490,"VELIKA VARNICA","PTUJ"]
[null,null,null,null,null,null,null,null,null,null,null,null,491,"LOŽINA","PTUJ"]
[null,null,null,null,null,null,null,null,null,null,null,null,492,"GRUŠKOVJE","PTUJ"]
[null,null,null,null,null,null,null,null,null,null,null,null,493,"SEDLAŠEK","PTUJ"]
[null,null,null,null,null,null,null,null,null,null,null,null,494,"STANOŠINA","PTUJ"]
[null,null,null,null,null,null,null,null,null,null,null,null,495,"KOZMINCI","PTUJ"]
[null,null,null,null,null,null,null,null,null,null,null,null,496,"STRAJNA","PTUJ"]
[null,null,null,null,null,null,null,null,null,null,null,null,497,"DOBRINA","PTUJ"]
[null,null,null,null,null,null,null,null,null,null,null,null,498,"KOČICE","PTUJ"]
[null,null,null,null,null,null,null,null,null,null,null,null,499,"SITEŽ","PTUJ"]
[null,null,null,null,null,null,null,null,null,null,null,null,500,"BOLFENK","PTUJ"]
[null,null,null,null,null,null,null,null,null,null,null,null,501,"SVEČA","PTUJ"]
[null,null,null,null,null,null,null,null,null,null,null,null,502,"STOPERCE","PTUJ"]
[null,null,null,null,null,null,null,null,null,null,null,null,503,"KUPČINJI VRH","PTUJ"]
[null,null,null,null,null,null,null,null,null,null,null,null,504,"NADOLE","PTUJ"]
[null,null,null,null,null,null,null,null,null,null,null,null,505,"ČERMOŽIŠE","PTUJ"]
[null,null,null,null,null,null,null,null,null,null,null,null,506,"ŽETALE","PTUJ"]
[null,null,null,null,null,null,null,null,null,null,null,null,507,"LOKAVEC","MARIBOR"]
[null,null,null,null,null,null,null,null,null,null,null,null,508,"ROŽENGRUNT","MARIBOR"]
[null,null,null,null,null,null,null,null,null,null,null,null,509,"ZGORNJA ŠČAVNICA","MARIBOR"]
[null,null,null,null,null,null,null,null,null,null,null,null,510,"SPODNJI DRAŽEN VRH","MARIBOR"]
[null,null,null,null,null,null,null,null,null,null,null,null,511,"ŽITENCE","MARIBOR"]
[null,null,null,null,null,null,null,null,null,null,null,null,512,"LEDINEK","MARIBOR"]
[null,null,null,null,null,null,null,null,null,null,null,null,513,"KREMBERK","MARIBOR"]
[null,null,null,null,null,null,null,null,null,null,null,null,514,"KRIVI VRH","MARIBOR"]
[null,null,null,null,null,null,null,null,null,null,null,null,515,"ZGORNJA ROČICA","MARIBOR"]
[null,null,null,null,null,null,null,null,null,null,null,null,516,"DRVANJA","MARIBOR"]
[null,null,null,null,null,null,null,null,null,null,null,null,517,"IHOVA","MARIBOR"]
[null,null,null,null,null,null,null,null,null,null,null,null,518,"TRIJE KRALJI","MARIBOR"]
[null,null,null,null,null,null,null,null,null,null,null,null,519,"TROTKOVA","MARIBOR"]
[null,null,null,null,null,null,null,null,null,null,null,null,520,"BENEDIKT","MARIBOR"]
[null,null,null,null,null,null,null,null,null,null,null,null,521,"SPODNJA ROČICA","MARIBOR"]
[null,null,null,null,null,null,null,null,null,null,null,null,522,"SPODNJI ŽERJAVCI","MARIBOR"]
[null,null,null,null,null,null,null,null,null,null,null,null,523,"ZGORNJI ŽERJAVCI","MARIBOR"]
[null,null,null,null,null,null,null,null,null,null,null,null,524,"ŽICE","MARIBOR"]
[null,null,null,null,null,null,null,null,null,null,null,null,525,"SPODNJI GASTERAJ","MARIBOR"]
[null,null,null,null,null,null,null,null,null,null,null,null,526,"SREDNJI GASTERAJ","MARIBOR"]
[null,null,null,null,null,null,null,null,null,null,null,null,527,"ZGORNJI GASTERAJ","MARIBOR"]
[null,null,null,null,null,null,null,null,null,null,null,null,528,"MALNA","MARIBOR"]
[null,null,null,null,null,null,null,null,null,null,null,null,529,"JUROVSKI DOL","MARIBOR"]
[null,null,null,null,null,null,null,null,null,null,null,null,530,"PARTINJE","MARIBOR"]
[null,null,null,null,null,null,null,null,null,null,null,null,531,"VARDA","MARIBOR"]
[null,null,null,null,null,null,null,null,null,null,null,null,532,"LENART V SLOVENSKIH GORICAH","MARIBOR"]
[null,null,null,null,null,null,null,null,null,null,null,null,533,"SPODNJI PORČIČ","MARIBOR"]
[null,null,null,null,null,null,null,null,null,null,null,null,534,"ZGORNJI PORČIČ","MARIBOR"]
[null,null,null,null,null,null,null,null,null,null,null,null,535,"STARI PORČIČ","MARIBOR"]
[null,null,null,null,null,null,null,null,null,null,null,null,536,"GRADIŠČE V SLOVENSKIH GORICAH","MARIBOR"]
[null,null,null,null,null,null,null,null,null,null,null,null,537,"ZGORNJE VERJANE","MARIBOR"]
[null,null,null,null,null,null,null,null,null,null,null,null,538,"OSEK","MARIBOR"]
[null,null,null,null,null,null,null,null,null,null,null,null,539,"BRENGOVA","MARIBOR"]
[null,null,null,null,null,null,null,null,null,null,null,null,540,"COGETINCI","MARIBOR"]
[null,null,null,null,null,null,null,null,null,null,null,null,541,"CERKVENJAK","MARIBOR"]
[null,null,null,null,null,null,null,null,null,null,null,null,542,"ANDRENCI","MARIBOR"]
[null,null,null,null,null,null,null,null,null,null,null,null,543,"ŽUPETINCI","MARIBOR"]
[null,null,null,null,null,null,null,null,null,null,null,null,544,"SMOLINCI","MARIBOR"]
[null,null,null,null,null,null,null,null,null,null,null,null,545,"ČAGONA","MARIBOR"]
[null,null,null,null,null,null,null,null,null,null,null,null,546,"SPODNJE VERJANE","MARIBOR"]
[null,null,null,null,null,null,null,null,null,null,null,null,547,"SPODNJA SENARSKA","MARIBOR"]
[null,null,null,null,null,null,null,null,null,null,null,null,548,"ZGORNJA SENARSKA","MARIBOR"]
[null,null,null,null,null,null,null,null,null,null,null,null,549,"RADEHOVA","MARIBOR"]
[null,null,null,null,null,null,null,null,null,null,null,null,550,"ZAMARKOVA","MARIBOR"]
[null,null,null,null,null,null,null,null,null,null,null,null,551,"MOČNA","MARIBOR"]
[null,null,null,null,null,null,null,null,null,null,null,null,552,"VINIČKA VAS","MARIBOR"]
[null,null,null,null,null,null,null,null,null,null,null,null,553,"ZGORNJA VOLIČINA","MARIBOR"]
[null,null,null,null,null,null,null,null,null,null,null,null,554,"SPODNJA VOLIČINA","MARIBOR"]
[null,null,null,null,null,null,null,null,null,null,null,null,555,"ŠETAROVA","MARIBOR"]
[null,null,null,null,null,null,null,null,null,null,null,null,556,"GOČOVA","MARIBOR"]
[null,null,null,null,null,null,null,null,null,null,null,null,557,"NADBIŠEC","MARIBOR"]
[null,null,null,null,null,null,null,null,null,null,null,null,558,"ZAVRH","MARIBOR"]
[null,null,null,null,null,null,null,null,null,null,null,null,559,"ČRMLJENŠAK","MARIBOR"]
[null,null,null,null,null,null,null,null,null,null,null,null,561,"STRAŽE","MARIBOR"]
[null,null,null,null,null,null,null,null,null,null,null,null,562,"ROGOZNICA","MARIBOR"]
[null,null,null,null,null,null,null,null,null,null,null,null,563,"CERŠAK","MARIBOR"]
[null,null,null,null,null,null,null,null,null,null,null,null,564,"ŠENTILJ V SLOVENSKIH GORICAH","MARIBOR"]
[null,null,null,null,null,null,null,null,null,null,null,null,565,"SELNICA OB MURI","MARIBOR"]
[null,null,null,null,null,null,null,null,null,null,null,null,566,"SLADKI VRH","MARIBOR"]
[null,null,null,null,null,null,null,null,null,null,null,null,567,"ZGORNJA VELKA","MARIBOR"]
[null,null,null,null,null,null,null,null,null,null,null,null,568,"TRATE","MARIBOR"]
[null,null,null,null,null,null,null,null,null,null,null,null,569,"SPODNJA VELKA","MARIBOR"]
[null,null,null,null,null,null,null,null,null,null,null,null,570,"PLODERŠNICA","MARIBOR"]
[null,null,null,null,null,null,null,null,null,null,null,null,571,"ROČICA","MARIBOR"]
[null,null,null,null,null,null,null,null,null,null,null,null,572,"SPODNJE HLAPJE","MARIBOR"]
[null,null,null,null,null,null,null,null,null,null,null,null,573,"ZGORNJE HLAPJE","MARIBOR"]
[null,null,null,null,null,null,null,null,null,null,null,null,574,"POČENIK","MARIBOR"]
[null,null,null,null,null,null,null,null,null,null,null,null,575,"ŠOMAT","MARIBOR"]
[null,null,null,null,null,null,null,null,null,null,null,null,576,"SREBOTJE","MARIBOR"]
[null,null,null,null,null,null,null,null,null,null,null,null,577,"ZGORNJI JAKOBSKI DOL","MARIBOR"]
[null,null,null,null,null,null,null,null,null,null,null,null,578,"POLIČKA VAS","MARIBOR"]
[null,null,null,null,null,null,null,null,null,null,null,null,579,"POLIČKI VRH","MARIBOR"]
[null,null,null,null,null,null,null,null,null,null,null,null,580,"VAJGEN","MARIBOR"]
[null,null,null,null,null,null,null,null,null,null,null,null,581,"KANIŽA","MARIBOR"]
[null,null,null,null,null,null,null,null,null,null,null,null,582,"ŠTRIHOVEC","MARIBOR"]
[null,null,null,null,null,null,null,null,null,null,null,null,583,"CIRKNICA","MARIBOR"]
[null,null,null,null,null,null,null,null,null,null,null,null,584,"ZGORNJE DOBRENJE","MARIBOR"]
[null,null,null,null,null,null,null,null,null,null,null,null,585,"KRESNICA","MARIBOR"]
[null,null,null,null,null,null,null,null,null,null,null,null,586,"PODIGRAC","MARIBOR"]
[null,null,null,null,null,null,null,null,null,null,null,null,587,"CIRINGA","MARIBOR"]
[null,null,null,null,null,null,null,null,null,null,null,null,588,"SVEČINA","MARIBOR"]
[null,null,null,null,null,null,null,null,null,null,null,null,589,"SLATINA","MARIBOR"]
[null,null,null,null,null,null,null,null,null,null,null,null,590,"ŠPIČNIK","MARIBOR"]
[null,null,null,null,null,null,null,null,null,null,null,null,591,"SLATINSKI DOL","MARIBOR"]
[null,null,null,null,null,null,null,null,null,null,null,null,592,"PLAČ","MARIBOR"]
[null,null,null,null,null,null,null,null,null,null,null,null,593,"ZGORNJE VRTIČE","MARIBOR"]
[null,null,null,null,null,null,null,null,null,null,null,null,594,"SPODNJE VRTIČE","MARIBOR"]
[null,null,null,null,null,null,null,null,null,null,null,null,595,"PLINTOVEC","MARIBOR"]
[null,null,null,null,null,null,null,null,null,null,null,null,596,"ZGORNJA KUNGOTA","MARIBOR"]
[null,null,null,null,null,null,null,null,null,null,null,null,597,"JEDLOVNIK","MARIBOR"]
[null,null,null,null,null,null,null,null,null,null,null,null,598,"GRUŠENA","MARIBOR"]
[null,null,null,null,null,null,null,null,null,null,null,null,599,"JURSKI VRH","MARIBOR"]
[null,null,null,null,null,null,null,null,null,null,null,null,600,"PESNICA","MARIBOR"]
[null,null,null,null,null,null,null,null,null,null,null,null,601,"VRŠNIK","MARIBOR"]
[null,null,null,null,null,null,null,null,null,null,null,null,602,"GAJ NAD MARIBOROM","MARIBOR"]
[null,null,null,null,null,null,null,null,null,null,null,null,603,"KOZJAK","MARIBOR"]
[null,null,null,null,null,null,null,null,null,null,null,null,604,"GRADIŠKA","MARIBOR"]
[null,null,null,null,null,null,null,null,null,null,null,null,605,"SPODNJE DOBRENJE","MARIBOR"]
[null,null,null,null,null,null,null,null,null,null,null,null,606,"RANCA","MARIBOR"]
[null,null,null,null,null,null,null,null,null,null,null,null,607,"JELENČE","MARIBOR"]
[null,null,null,null,null,null,null,null,null,null,null,null,608,"GAČNIK","MARIBOR"]
[null,null,null,null,null,null,null,null,null,null,null,null,609,"JARENINSKI DOL","MARIBOR"]
[null,null,null,null,null,null,null,null,null,null,null,null,610,"JARENINSKI VRH","MARIBOR"]
[null,null,null,null,null,null,null,null,null,null,null,null,611,"VUKOVSKI VRH","MARIBOR"]
[null,null,null,null,null,null,null,null,null,null,null,null,612,"VUKOVSKI DOL","MARIBOR"]
[null,null,null,null,null,null,null,null,null,null,null,null,613,"FLEKUŠEK","MARIBOR"]
[null,null,null,null,null,null,null,null,null,null,null,null,614,"SPODNJI JAKOBSKI DOL","MARIBOR"]
[null,null,null,null,null,null,null,null,null,null,null,null,615,"VUKOVJE","MARIBOR"]
[null,null,null,null,null,null,null,null,null,null,null,null,616,"KUŠERNIK","MARIBOR"]
[null,null,null,null,null,null,null,null,null,null,null,null,617,"VOSEK","MARIBOR"]
[null,null,null,null,null,null,null,null,null,null,null,null,618,"PESNIŠKI DVOR","MARIBOR"]
[null,null,null,null,null,null,null,null,null,null,null,null,619,"DOLNJA POČEHOVA","MARIBOR"]
[null,null,null,null,null,null,null,null,null,null,null,null,620,"MALI ROŠPOH","MARIBOR"]
[null,null,null,null,null,null,null,null,null,null,null,null,621,"MORSKI JAREK","MARIBOR"]
[null,null,null,null,null,null,null,null,null,null,null,null,622,"ŠOBER","MARIBOR"]
[null,null,null,null,null,null,null,null,null,null,null,null,623,"ZGORNJI SLEMEN","MARIBOR"]
[null,null,null,null,null,null,null,null,null,null,null,null,624,"VELIKI BOČ","MARIBOR"]
[null,null,null,null,null,null,null,null,null,null,null,null,625,"GRADIŠČE","MARIBOR"]
[null,null,null,null,null,null,null,null,null,null,null,null,626,"ZGORNJI BOČ","MARIBOR"]
[null,null,null,null,null,null,null,null,null,null,null,null,627,"SPODNJI BOČ","MARIBOR"]
[null,null,null,null,null,null,null,null,null,null,null,null,628,"ZGORNJA SELNICA","MARIBOR"]
[null,null,null,null,null,null,null,null,null,null,null,null,629,"JANŽEVA GORA","MARIBOR"]
[null,null,null,null,null,null,null,null,null,null,null,null,630,"GEREČJA VAS","MARIBOR"]
[null,null,null,null,null,null,null,null,null,null,null,null,631,"SPODNJA SELNICA","MARIBOR"]
[null,null,null,null,null,null,null,null,null,null,null,null,632,"SPODNJI SLEMEN","MARIBOR"]
[null,null,null,null,null,null,null,null,null,null,null,null,633,"SREDNJE","MARIBOR"]
[null,null,null,null,null,null,null,null,null,null,null,null,634,"JELOVEC","MARIBOR"]
[null,null,null,null,null,null,null,null,null,null,null,null,635,"BRESTRNICA","MARIBOR"]
[null,null,null,null,null,null,null,null,null,null,null,null,636,"KAMNICA","MARIBOR"]
[null,null,null,null,null,null,null,null,null,null,null,null,637,"ROŠPOH","MARIBOR"]
[null,null,null,null,null,null,null,null,null,null,null,null,638,"KRČEVINA","MARIBOR"]
[null,null,null,null,null,null,null,null,null,null,null,null,639,"POČEHOVA","MARIBOR"]
[null,null,null,null,null,null,null,null,null,null,null,null,640,"PEKEL","MARIBOR"]
[null,null,null,null,null,null,null,null,null,null,null,null,641,"DRAGUČOVA","MARIBOR"]
[null,null,null,null,null,null,null,null,null,null,null,null,642,"PERNICA","MARIBOR"]
[null,null,null,null,null,null,null,null,null,null,null,null,643,"LOŽANE","MARIBOR"]
[null,null,null,null,null,null,null,null,null,null,null,null,644,"RUPERČE","MARIBOR"]
[null,null,null,null,null,null,null,null,null,null,null,null,645,"GRUŠOVA","MARIBOR"]
[null,null,null,null,null,null,null,null,null,null,null,null,646,"METAVA","MARIBOR"]
[null,null,null,null,null,null,null,null,null,null,null,null,647,"TRČOVA","MARIBOR"]
[null,null,null,null,null,null,null,null,null,null,null,null,648,"NEBOVA","MARIBOR"]
[null,null,null,null,null,null,null,null,null,null,null,null,649,"CELESTRINA","MARIBOR"]
[null,null,null,null,null,null,null,null,null,null,null,null,650,"MALEČNIK","MARIBOR"]
[null,null,null,null,null,null,null,null,null,null,null,null,651,"HRENCA","MARIBOR"]
[null,null,null,null,null,null,null,null,null,null,null,null,652,"VODOLE","MARIBOR"]
[null,null,null,null,null,null,null,null,null,null,null,null,653,"KOŠAKI","MARIBOR"]
[null,null,null,null,null,null,null,null,null,null,null,null,654,"OREŠJE","MARIBOR"]
[null,null,null,null,null,null,null,null,null,null,null,null,655,"MELJE","MARIBOR"]
[null,null,null,null,null,null,null,null,null,null,null,null,656,"BREZJE","MARIBOR"]
[null,null,null,null,null,null,null,null,null,null,null,null,657,"MARIBOR-GRAD","MARIBOR"]
[null,null,null,null,null,null,null,null,null,null,null,null,658,"KOROŠKA VRATA","MARIBOR"]
[null,null,null,null,null,null,null,null,null,null,null,null,659,"TABOR","MARIBOR"]
[null,null,null,null,null,null,null,null,null,null,null,null,660,"STUDENCI","MARIBOR"]
[null,null,null,null,null,null,null,null,null,null,null,null,661,"LIMBUŠ","MARIBOR"]
[null,null,null,null,null,null,null,null,null,null,null,null,662,"LAZNICA","MARIBOR"]
[null,null,null,null,null,null,null,null,null,null,null,null,663,"BISTRICA PRI LIMBUŠU","MARIBOR"]
[null,null,null,null,null,null,null,null,null,null,null,null,664,"BISTRICA PRI RUŠAH","MARIBOR"]
[null,null,null,null,null,null,null,null,null,null,null,null,665,"RUŠE","MARIBOR"]
[null,null,null,null,null,null,null,null,null,null,null,null,666,"ČINŽAT","MARIBOR"]
[null,null,null,null,null,null,null,null,null,null,null,null,667,"RUTA","MARIBOR"]
[null,null,null,null,null,null,null,null,null,null,null,null,668,"RDEČI BREG","MARIBOR"]
[null,null,null,null,null,null,null,null,null,null,null,null,669,"LOVRENC NA POHORJU","MARIBOR"]
[null,null,null,null,null,null,null,null,null,null,null,null,670,"RECENJAK","MARIBOR"]
[null,null,null,null,null,null,null,null,null,null,null,null,671,"KUMEN","MARIBOR"]
[null,null,null,null,null,null,null,null,null,null,null,null,672,"SMOLNIK","MARIBOR"]
[null,null,null,null,null,null,null,null,null,null,null,null,673,"LOBNICA","MARIBOR"]
[null,null,null,null,null,null,null,null,null,null,null,null,674,"ZGORNJI VRHOV DOL","MARIBOR"]
[null,null,null,null,null,null,null,null,null,null,null,null,675,"HRASTJE","MARIBOR"]
[null,null,null,null,null,null,null,null,null,null,null,null,676,"PEKRE","MARIBOR"]
[null,null,null,null,null,null,null,null,null,null,null,null,677,"ZGORNJE RADVANJE","MARIBOR"]
[null,null,null,null,null,null,null,null,null,null,null,null,678,"SPODNJE RADVANJE","MARIBOR"]
[null,null,null,null,null,null,null,null,null,null,null,null,679,"RAZVANJE","MARIBOR"]
[null,null,null,null,null,null,null,null,null,null,null,null,680,"TEZNO","MARIBOR"]
[null,null,null,null,null,null,null,null,null,null,null,null,681,"POBREŽJE","MARIBOR"]
[null,null,null,null,null,null,null,null,null,null,null,null,682,"ZRKOVCI","MARIBOR"]
[null,null,null,null,null,null,null,null,null,null,null,null,683,"DOGOŠE","MARIBOR"]
[null,null,null,null,null,null,null,null,null,null,null,null,684,"ZGORNJI DUPLEK","MARIBOR"]
[null,null,null,null,null,null,null,null,null,null,null,null,685,"ZAVRŠKA VAS","MARIBOR"]
[null,null,null,null,null,null,null,null,null,null,null,null,686,"ZIMICA","MARIBOR"]
[null,null,null,null,null,null,null,null,null,null,null,null,687,"JABLANCE","MARIBOR"]
[null,null,null,null,null,null,null,null,null,null,null,null,688,"ZGORNJA KORENA","MARIBOR"]
[null,null,null,null,null,null,null,null,null,null,null,null,689,"SPODNJA KORENA","MARIBOR"]
[null,null,null,null,null,null,null,null,null,null,null,null,690,"ŽIKARCE","MARIBOR"]
[null,null,null,null,null,null,null,null,null,null,null,null,691,"CIGLENCE","MARIBOR"]
[null,null,null,null,null,null,null,null,null,null,null,null,692,"SPODNJI DUPLEK","MARIBOR"]
[null,null,null,null,null,null,null,null,null,null,null,null,693,"MIKLAVŽ NA DRAVSKEM POLJU","MARIBOR"]
[null,null,null,null,null,null,null,null,null,null,null,null,694,"ROGOZA","MARIBOR"]
[null,null,null,null,null,null,null,null,null,null,null,null,695,"BOHOVA","MARIBOR"]
[null,null,null,null,null,null,null,null,null,null,null,null,696,"SPODNJE HOČE","MARIBOR"]
[null,null,null,null,null,null,null,null,null,null,null,null,697,"ZGORNJE HOČE","MARIBOR"]
[null,null,null,null,null,null,null,null,null,null,null,null,698,"PIVOLA","MARIBOR"]
[null,null,null,null,null,null,null,null,null,null,null,null,699,"HOČKO POHORJE","MARIBOR"]
[null,null,null,null,null,null,null,null,null,null,null,null,700,"SLIVNIŠKO POHORJE","MARIBOR"]
[null,null,null,null,null,null,null,null,null,null,null,null,701,"POLANA","MARIBOR"]
[null,null,null,null,null,null,null,null,null,null,null,null,702,"RANČE","MARIBOR"]
[null,null,null,null,null,null,null,null,null,null,null,null,703,"RADIZEL","MARIBOR"]
[null,null,null,null,null,null,null,null,null,null,null,null,704,"ČRETA","MARIBOR"]
[null,null,null,null,null,null,null,null,null,null,null,null,705,"SLIVNICA","MARIBOR"]
[null,null,null,null,null,null,null,null,null,null,null,null,706,"OREHOVA VAS","MARIBOR"]
[null,null,null,null,null,null,null,null,null,null,null,null,707,"HOTINJA VAS","MARIBOR"]
[null,null,null,null,null,null,null,null,null,null,null,null,708,"SKOKE","MARIBOR"]
[null,null,null,null,null,null,null,null,null,null,null,null,709,"LOKA PRI ROŠNJI","MARIBOR"]
[null,null,null,null,null,null,null,null,null,null,null,null,710,"DVORJANE","MARIBOR"]
[null,null,null,null,null,null,null,null,null,null,null,null,711,"VURBERK","MARIBOR"]
[null,null,null,null,null,null,null,null,null,null,null,null,712,"STARŠE","MARIBOR"]
[null,null,null,null,null,null,null,null,null,null,null,null,713,"ZLATOLIČJE","MARIBOR"]
[null,null,null,null,null,null,null,null,null,null,null,null,714,"PREPOLJE","MARIBOR"]
[null,null,null,null,null,null,null,null,null,null,null,null,715,"MARJETA NA DRAVSKEM POLJU","MARIBOR"]
[null,null,null,null,null,null,null,null,null,null,null,null,716,"RAČE","MARIBOR"]
[null,null,null,null,null,null,null,null,null,null,null,null,717,"FRAM","MARIBOR"]
[null,null,null,null,null,null,null,null,null,null,null,null,718,"KOPIVNIK","MARIBOR"]
[null,null,null,null,null,null,null,null,null,null,null,null,719,"PLANICA","MARIBOR"]
[null,null,null,null,null,null,null,null,null,null,null,null,720,"LOKA PRI FRAMU","MARIBOR"]
[null,null,null,null,null,null,null,null,null,null,null,null,721,"MORJE","MARIBOR"]
[null,null,null,null,null,null,null,null,null,null,null,null,722,"JEŠENCA","MARIBOR"]
[null,null,null,null,null,null,null,null,null,null,null,null,723,"PODOVA","MARIBOR"]
[null,null,null,null,null,null,null,null,null,null,null,null,724,"GORICA","MARIBOR"]
[null,null,null,null,null,null,null,null,null,null,null,null,725,"KOT","SLOVENSKA BISTRICA"]
[null,null,null,null,null,null,null,null,null,null,null,null,726,"PLANINA","SLOVENSKA BISTRICA"]
[null,null,null,null,null,null,null,null,null,null,null,null,727,"SMREČNO","SLOVENSKA BISTRICA"]
[null,null,null,null,null,null,null,null,null,null,null,null,728,"BOJTINA","SLOVENSKA BISTRICA"]
[null,null,null,null,null,null,null,null,null,null,null,null,729,"FRAJHAJM","SLOVENSKA BISTRICA"]
[null,null,null,null,null,null,null,null,null,null,null,null,730,"ŠMARTNO NA POHORJU","SLOVENSKA BISTRICA"]
[null,null,null,null,null,null,null,null,null,null,null,null,731,"OŠELJ","SLOVENSKA BISTRICA"]
[null,null,null,null,null,null,null,null,null,null,null,null,732,"URH","SLOVENSKA BISTRICA"]
[null,null,null,null,null,null,null,null,null,null,null,null,733,"REP","SLOVENSKA BISTRICA"]
[null,null,null,null,null,null,null,null,null,null,null,null,734,"MALO TINJE","SLOVENSKA BISTRICA"]
[null,null,null,null,null,null,null,null,null,null,null,null,735,"TINJSKA GORA","SLOVENSKA BISTRICA"]
[null,null,null,null,null,null,null,null,null,null,null,null,736,"VISOLE","SLOVENSKA BISTRICA"]
[null,null,null,null,null,null,null,null,null,null,null,null,737,"JURIŠNA VAS","SLOVENSKA BISTRICA"]
[null,null,null,null,null,null,null,null,null,null,null,null,738,"PREBUKOVJE","SLOVENSKA BISTRICA"]
[null,null,null,null,null,null,null,null,null,null,null,null,739,"KALŠE","SLOVENSKA BISTRICA"]
[null,null,null,null,null,null,null,null,null,null,null,null,740,"OGLJENŠAK","SLOVENSKA BISTRICA"]
[null,null,null,null,null,null,null,null,null,null,null,null,741,"BUKOVEC","SLOVENSKA BISTRICA"]
[null,null,null,null,null,null,null,null,null,null,null,null,742,"ZGORNJA POLSKAVA","SLOVENSKA BISTRICA"]
[null,null,null,null,null,null,null,null,null,null,null,null,743,"GABERNIK","SLOVENSKA BISTRICA"]
[null,null,null,null,null,null,null,null,null,null,null,null,744,"RITOZNOJ","SLOVENSKA BISTRICA"]
[null,null,null,null,null,null,null,null,null,null,null,null,745,"KOVAČA VAS","SLOVENSKA BISTRICA"]
[null,null,null,null,null,null,null,null,null,null,null,null,746,"ŠENTOVEC","SLOVENSKA BISTRICA"]
[null,null,null,null,null,null,null,null,null,null,null,null,747,"POKOŠE","SLOVENSKA BISTRICA"]
[null,null,null,null,null,null,null,null,null,null,null,null,748,"SPODNJA POLSKAVA","SLOVENSKA BISTRICA"]
[null,null,null,null,null,null,null,null,null,null,null,null,749,"STRAŽGONJCA","PTUJ"]
[null,null,null,null,null,null,null,null,null,null,null,null,750,"VRHLOGA","SLOVENSKA BISTRICA"]
[null,null,null,null,null,null,null,null,null,null,null,null,751,"ČREŠNJEVEC","SLOVENSKA BISTRICA"]
[null,null,null,null,null,null,null,null,null,null,null,null,752,"SPODNJA NOVA VAS","SLOVENSKA BISTRICA"]
[null,null,null,null,null,null,null,null,null,null,null,null,753,"SLOVENSKA BISTRICA","SLOVENSKA BISTRICA"]
[null,null,null,null,null,null,null,null,null,null,null,null,754,"ZGORNJA BISTRICA","SLOVENSKA BISTRICA"]
[null,null,null,null,null,null,null,null,null,null,null,null,755,"SPODNJA LOŽNICA","SLOVENSKA BISTRICA"]
[null,null,null,null,null,null,null,null,null,null,null,null,756,"ZGORNJA LOŽNICA","SLOVENSKA BISTRICA"]
[null,null,null,null,null,null,null,null,null,null,null,null,757,"GLADOMES","SLOVENSKA BISTRICA"]
[null,null,null,null,null,null,null,null,null,null,null,null,758,"OKOŠKA VAS","SLOVENSKA BISTRICA"]
[null,null,null,null,null,null,null,null,null,null,null,null,759,"ZLOGONA GORA","SLOVENSKA BISTRICA"]
[null,null,null,null,null,null,null,null,null,null,null,null,760,"KORITNO","SLOVENSKA BISTRICA"]
[null,null,null,null,null,null,null,null,null,null,null,null,761,"BOŽJE","SLOVENSKA BISTRICA"]
[null,null,null,null,null,null,null,null,null,null,null,null,762,"BREZJE PRI OPLOTNICI","SLOVENSKA BISTRICA"]
[null,null,null,null,null,null,null,null,null,null,null,null,763,"OPLOTNICA","SLOVENSKA BISTRICA"]
[null,null,null,null,null,null,null,null,null,null,null,null,764,"ZGORNJE GRUŠOVJE","SLOVENSKA BISTRICA"]
[null,null,null,null,null,null,null,null,null,null,null,null,765,"VRHOLE PRI KONJICAH","SLOVENSKA BISTRICA"]
[null,null,null,null,null,null,null,null,null,null,null,null,766,"CIGONCA","SLOVENSKA BISTRICA"]
[null,null,null,null,null,null,null,null,null,null,null,null,767,"ŽABLJEK","SLOVENSKA BISTRICA"]
[null,null,null,null,null,null,null,null,null,null,null,null,768,"HOŠNICA","SLOVENSKA BISTRICA"]
[null,null,null,null,null,null,null,null,null,null,null,null,769,"LAPORJE","SLOVENSKA BISTRICA"]
[null,null,null,null,null,null,null,null,null,null,null,null,770,"VRHOLE PRI LAPORJU","SLOVENSKA BISTRICA"]
[null,null,null,null,null,null,null,null,null,null,null,null,771,"PRETREŽ","SLOVENSKA BISTRICA"]
[null,null,null,null,null,null,null,null,null,null,null,null,772,"ŠTATENBERG","SLOVENSKA BISTRICA"]
[null,null,null,null,null,null,null,null,null,null,null,null,773,"PEČKE","SLOVENSKA BISTRICA"]
[null,null,null,null,null,null,null,null,null,null,null,null,774,"STOPNO","SLOVENSKA BISTRICA"]
[null,null,null,null,null,null,null,null,null,null,null,null,775,"DEŽNO","SLOVENSKA BISTRICA"]
[null,null,null,null,null,null,null,null,null,null,null,null,776,"JELOVEC","SLOVENSKA BISTRICA"]
[null,null,null,null,null,null,null,null,null,null,null,null,777,"MODRAŽE","SLOVENSKA BISTRICA"]
[null,null,null,null,null,null,null,null,null,null,null,null,778,"BREZJE PRI POLJČANAH","SLOVENSKA BISTRICA"]
[null,null,null,null,null,null,null,null,null,null,null,null,779,"PEKEL","SLOVENSKA BISTRICA"]
[null,null,null,null,null,null,null,null,null,null,null,null,780,"STANOVSKO","SLOVENSKA BISTRICA"]
[null,null,null,null,null,null,null,null,null,null,null,null,781,"LUŠEČKA VAS","SLOVENSKA BISTRICA"]
[null,null,null,null,null,null,null,null,null,null,null,null,782,"POLJČANE","SLOVENSKA BISTRICA"]
[null,null,null,null,null,null,null,null,null,null,null,null,783,"STUDENICE","SLOVENSKA BISTRICA"]
[null,null,null,null,null,null,null,null,null,null,null,null,784,"HRASTOVEC","SLOVENSKA BISTRICA"]
[null,null,null,null,null,null,null,null,null,null,null,null,785,"STARI GRAD","SLOVENSKA BISTRICA"]
[null,null,null,null,null,null,null,null,null,null,null,null,786,"MLAKE","SLOVENJ GRADEC"]
[null,null,null,null,null,null,null,null,null,null,null,null,787,"PERNICE","SLOVENJ GRADEC"]
[null,null,null,null,null,null,null,null,null,null,null,null,788,"BRANIK","SLOVENJ GRADEC"]
[null,null,null,null,null,null,null,null,null,null,null,null,789,"PODLIPJE","SLOVENJ GRADEC"]
[null,null,null,null,null,null,null,null,null,null,null,null,790,"BREZOVEC","SLOVENJ GRADEC"]
[null,null,null,null,null,null,null,null,null,null,null,null,791,"SUHI VRH","SLOVENJ GRADEC"]
[null,null,null,null,null,null,null,null,null,null,null,null,792,"RADELCA","SLOVENJ GRADEC"]
[null,null,null,null,null,null,null,null,null,null,null,null,793,"VAS","SLOVENJ GRADEC"]
[null,null,null,null,null,null,null,null,null,null,null,null,794,"REMŠNIK","SLOVENJ GRADEC"]
[null,null,null,null,null,null,null,null,null,null,null,null,795,"BREZNI VRH","SLOVENJ GRADEC"]
[null,null,null,null,null,null,null,null,null,null,null,null,796,"ZGORNJA KAPLA","SLOVENJ GRADEC"]
[null,null,null,null,null,null,null,null,null,null,null,null,797,"SPODNJA KAPLA","SLOVENJ GRADEC"]
[null,null,null,null,null,null,null,null,null,null,null,null,798,"ZGORNJI VURMAT","SLOVENJ GRADEC"]
[null,null,null,null,null,null,null,null,null,null,null,null,799,"OŽBALT","SLOVENJ GRADEC"]
[null,null,null,null,null,null,null,null,null,null,null,null,800,"JAVNIK","SLOVENJ GRADEC"]
[null,null,null,null,null,null,null,null,null,null,null,null,801,"BREZNO","SLOVENJ GRADEC"]
[null,null,null,null,null,null,null,null,null,null,null,null,802,"KOZJI VRH","SLOVENJ GRADEC"]
[null,null,null,null,null,null,null,null,null,null,null,null,803,"SPODNJA VIŽINGA","SLOVENJ GRADEC"]
[null,null,null,null,null,null,null,null,null,null,null,null,804,"RADLJE OB DRAVI","SLOVENJ GRADEC"]
[null,null,null,null,null,null,null,null,null,null,null,null,805,"DOBRAVA","SLOVENJ GRADEC"]
[null,null,null,null,null,null,null,null,null,null,null,null,806,"ZGORNJA VIŽINGA","SLOVENJ GRADEC"]
[null,null,null,null,null,null,null,null,null,null,null,null,807,"SPODNJA MUTA","SLOVENJ GRADEC"]
[null,null,null,null,null,null,null,null,null,null,null,null,808,"ZGORNJA MUTA","SLOVENJ GRADEC"]
[null,null,null,null,null,null,null,null,null,null,null,null,809,"ZGORNJA GORTINA","SLOVENJ GRADEC"]
[null,null,null,null,null,null,null,null,null,null,null,null,810,"SPODNJA GORTINA","SLOVENJ GRADEC"]
[null,null,null,null,null,null,null,null,null,null,null,null,811,"DRAVČE","SLOVENJ GRADEC"]
[null,null,null,null,null,null,null,null,null,null,null,null,812,"ŠENTJANŽ NAD DRAVČAMI","SLOVENJ GRADEC"]
[null,null,null,null,null,null,null,null,null,null,null,null,813,"VUZENICA","SLOVENJ GRADEC"]
[null,null,null,null,null,null,null,null,null,null,null,null,814,"ŠENTVID","SLOVENJ GRADEC"]
[null,null,null,null,null,null,null,null,null,null,null,null,815,"PRIMOŽ NA POHORJU","SLOVENJ GRADEC"]
[null,null,null,null,null,null,null,null,null,null,null,null,816,"PLANINA","SLOVENJ GRADEC"]
[null,null,null,null,null,null,null,null,null,null,null,null,817,"VUHRED","SLOVENJ GRADEC"]
[null,null,null,null,null,null,null,null,null,null,null,null,818,"ORLICA","SLOVENJ GRADEC"]
[null,null,null,null,null,null,null,null,null,null,null,null,819,"JANŽEVSKI VRH","SLOVENJ GRADEC"]
[null,null,null,null,null,null,null,null,null,null,null,null,820,"PODVELKA","SLOVENJ GRADEC"]
[null,null,null,null,null,null,null,null,null,null,null,null,821,"RDEČI BREG II","SLOVENJ GRADEC"]
[null,null,null,null,null,null,null,null,null,null,null,null,822,"LEHEN","SLOVENJ GRADEC"]
[null,null,null,null,null,null,null,null,null,null,null,null,823,"RIBNICA NA POHORJU","SLOVENJ GRADEC"]
[null,null,null,null,null,null,null,null,null,null,null,null,824,"HUDI KOT","SLOVENJ GRADEC"]
[null,null,null,null,null,null,null,null,null,null,null,null,825,"LIBELIČE","SLOVENJ GRADEC"]
[null,null,null,null,null,null,null,null,null,null,null,null,826,"LIBELIŠKA GORA","SLOVENJ GRADEC"]
[null,null,null,null,null,null,null,null,null,null,null,null,827,"ČRNEŠKA GORA","SLOVENJ GRADEC"]
[null,null,null,null,null,null,null,null,null,null,null,null,828,"ČRNEČE","SLOVENJ GRADEC"]
[null,null,null,null,null,null,null,null,null,null,null,null,829,"DRAVOGRAD","SLOVENJ GRADEC"]
[null,null,null,null,null,null,null,null,null,null,null,null,830,"GRAD","SLOVENJ GRADEC"]
[null,null,null,null,null,null,null,null,null,null,null,null,831,"VIČ","SLOVENJ GRADEC"]
[null,null,null,null,null,null,null,null,null,null,null,null,832,"GORIŠKI VRH","SLOVENJ GRADEC"]
[null,null,null,null,null,null,null,null,null,null,null,null,833,"OJSTRICA","SLOVENJ GRADEC"]
[null,null,null,null,null,null,null,null,null,null,null,null,834,"DUH NA OJSTRICI","SLOVENJ GRADEC"]
[null,null,null,null,null,null,null,null,null,null,null,null,835,"VELKA","SLOVENJ GRADEC"]
[null,null,null,null,null,null,null,null,null,null,null,null,836,"KOZJI VRH","SLOVENJ GRADEC"]
[null,null,null,null,null,null,null,null,null,null,null,null,837,"VRATA","SLOVENJ GRADEC"]
[null,null,null,null,null,null,null,null,null,null,null,null,838,"TRBONJE","SLOVENJ GRADEC"]
[null,null,null,null,null,null,null,null,null,null,null,null,839,"DANIJEL PRI TRBONJAH","SLOVENJ GRADEC"]
[null,null,null,null,null,null,null,null,null,null,null,null,840,"OTIŠKI VRH I","SLOVENJ GRADEC"]
[null,null,null,null,null,null,null,null,null,null,null,null,841,"OTIŠKI VRH II","SLOVENJ GRADEC"]
[null,null,null,null,null,null,null,null,null,null,null,null,842,"DOBROVA","SLOVENJ GRADEC"]
[null,null,null,null,null,null,null,null,null,null,null,null,843,"SELOVEC","SLOVENJ GRADEC"]
[null,null,null,null,null,null,null,null,null,null,null,null,844,"ŠENTJANŽ PRI DRAVOGRADU","SLOVENJ GRADEC"]
[null,null,null,null,null,null,null,null,null,null,null,null,845,"PAMEČE","SLOVENJ GRADEC"]
[null,null,null,null,null,null,null,null,null,null,null,null,846,"GRADIŠČE","SLOVENJ GRADEC"]
[null,null,null,null,null,null,null,null,null,null,null,null,847,"VRHE","SLOVENJ GRADEC"]
[null,null,null,null,null,null,null,null,null,null,null,null,848,"SELE","SLOVENJ GRADEC"]
[null,null,null,null,null,null,null,null,null,null,null,null,849,"STARI TRG","SLOVENJ GRADEC"]
[null,null,null,null,null,null,null,null,null,null,null,null,850,"SLOVENJ GRADEC","SLOVENJ GRADEC"]
[null,null,null,null,null,null,null,null,null,null,null,null,851,"LEGEN","SLOVENJ GRADEC"]
[null,null,null,null,null,null,null,null,null,null,null,null,852,"GOLAVABUKA","SLOVENJ GRADEC"]
[null,null,null,null,null,null,null,null,null,null,null,null,853,"ŠMARTNO PRI SLOVENJ GRADCU","SLOVENJ GRADEC"]
[null,null,null,null,null,null,null,null,null,null,null,null,854,"PODGORJE","SLOVENJ GRADEC"]
[null,null,null,null,null,null,null,null,null,null,null,null,855,"ZGORNJI RAZBOR","SLOVENJ GRADEC"]
[null,null,null,null,null,null,null,null,null,null,null,null,856,"SPODNJI RAZBOR","SLOVENJ GRADEC"]
[null,null,null,null,null,null,null,null,null,null,null,null,857,"VELUNA","SLOVENJ GRADEC"]
[null,null,null,null,null,null,null,null,null,null,null,null,858,"GRAŠKA GORA","SLOVENJ GRADEC"]
[null,null,null,null,null,null,null,null,null,null,null,null,859,"VODRIŽ","SLOVENJ GRADEC"]
[null,null,null,null,null,null,null,null,null,null,null,null,860,"ŠMIKLAVŽ","SLOVENJ GRADEC"]
[null,null,null,null,null,null,null,null,null,null,null,null,861,"DOBRAVA","SLOVENJ GRADEC"]
[null,null,null,null,null,null,null,null,null,null,null,null,862,"BRDA","SLOVENJ GRADEC"]
[null,null,null,null,null,null,null,null,null,null,null,null,863,"ŠENTILJ POD TURJAKOM","SLOVENJ GRADEC"]
[null,null,null,null,null,null,null,null,null,null,null,null,864,"MISLINJA","SLOVENJ GRADEC"]
[null,null,null,null,null,null,null,null,null,null,null,null,865,"GORNJI DOLIČ","SLOVENJ GRADEC"]
[null,null,null,null,null,null,null,null,null,null,null,null,866,"ŠENTVID NAD VALDEKOM","SLOVENJ GRADEC"]
[null,null,null,null,null,null,null,null,null,null,null,null,867,"ZAVRŠE","SLOVENJ GRADEC"]
[null,null,null,null,null,null,null,null,null,null,null,null,868,"KOZJAK","SLOVENJ GRADEC"]
[null,null,null,null,null,null,null,null,null,null,null,null,869,"BELŠAK","RAVNE NA KOROŠKEM"]
[null,null,null,null,null,null,null,null,null,null,null,null,870,"JAMNICA","RAVNE NA KOROŠKEM"]
[null,null,null,null,null,null,null,null,null,null,null,null,871,"STROJNA","RAVNE NA KOROŠKEM"]
[null,null,null,null,null,null,null,null,null,null,null,null,872,"ZELEN BREG","RAVNE NA KOROŠKEM"]
[null,null,null,null,null,null,null,null,null,null,null,null,873,"SUHI VRH","RAVNE NA KOROŠKEM"]
[null,null,null,null,null,null,null,null,null,null,null,null,874,"ŠENTANEL","RAVNE NA KOROŠKEM"]
[null,null,null,null,null,null,null,null,null,null,null,null,875,"DOLGA BRDA","RAVNE NA KOROŠKEM"]
[null,null,null,null,null,null,null,null,null,null,null,null,876,"BREZNICA","RAVNE NA KOROŠKEM"]
[null,null,null,null,null,null,null,null,null,null,null,null,877,"STRAŽIŠČE","RAVNE NA KOROŠKEM"]
[null,null,null,null,null,null,null,null,null,null,null,null,878,"TOLSTI VRH","RAVNE NA KOROŠKEM"]
[null,null,null,null,null,null,null,null,null,null,null,null,879,"KOROŠKI SELOVEC","RAVNE NA KOROŠKEM"]
[null,null,null,null,null,null,null,null,null,null,null,null,880,"BRDINJE","RAVNE NA KOROŠKEM"]
[null,null,null,null,null,null,null,null,null,null,null,null,882,"RAVNE","RAVNE NA KOROŠKEM"]
[null,null,null,null,null,null,null,null,null,null,null,null,883,"DOBJA VAS","RAVNE NA KOROŠKEM"]
[null,null,null,null,null,null,null,null,null,null,null,null,884,"FARNA VAS","RAVNE NA KOROŠKEM"]
[null,null,null,null,null,null,null,null,null,null,null,null,885,"POLJANA","RAVNE NA KOROŠKEM"]
[null,null,null,null,null,null,null,null,null,null,null,null,886,"LOKOVICA","RAVNE NA KOROŠKEM"]
[null,null,null,null,null,null,null,null,null,null,null,null,887,"LOM","RAVNE NA KOROŠKEM"]
[null,null,null,null,null,null,null,null,null,null,null,null,888,"MEŽA TAKRAJ","RAVNE NA KOROŠKEM"]
[null,null,null,null,null,null,null,null,null,null,null,null,889,"MEŽICA","RAVNE NA KOROŠKEM"]
[null,null,null,null,null,null,null,null,null,null,null,null,890,"MEŽA ONKRAJ","RAVNE NA KOROŠKEM"]
[null,null,null,null,null,null,null,null,null,null,null,null,891,"PREVALJE","RAVNE NA KOROŠKEM"]
[null,null,null,null,null,null,null,null,null,null,null,null,892,"LEŠE","RAVNE NA KOROŠKEM"]
[null,null,null,null,null,null,null,null,null,null,null,null,893,"ZAGRAD","RAVNE NA KOROŠKEM"]
[null,null,null,null,null,null,null,null,null,null,null,null,894,"NAVRŠKI VRH","RAVNE NA KOROŠKEM"]
[null,null,null,null,null,null,null,null,null,null,null,null,895,"PREŠKI VRH","RAVNE NA KOROŠKEM"]
[null,null,null,null,null,null,null,null,null,null,null,null,896,"KOTLJE","RAVNE NA KOROŠKEM"]
[null,null,null,null,null,null,null,null,null,null,null,null,897,"PODGORA","RAVNE NA KOROŠKEM"]
[null,null,null,null,null,null,null,null,null,null,null,null,898,"URŠLJA GORA I","RAVNE NA KOROŠKEM"]
[null,null,null,null,null,null,null,null,null,null,null,null,899,"URŠLJA GORA II","RAVNE NA KOROŠKEM"]
[null,null,null,null,null,null,null,null,null,null,null,null,900,"ŽERJAV","RAVNE NA KOROŠKEM"]
[null,null,null,null,null,null,null,null,null,null,null,null,901,"PLAT","RAVNE NA KOROŠKEM"]
[null,null,null,null,null,null,null,null,null,null,null,null,902,"PODPECA","RAVNE NA KOROŠKEM"]
[null,null,null,null,null,null,null,null,null,null,null,null,903,"TOPLA","RAVNE NA KOROŠKEM"]
[null,null,null,null,null,null,null,null,null,null,null,null,904,"KOPRIVNA","RAVNE NA KOROŠKEM"]
[null,null,null,null,null,null,null,null,null,null,null,null,905,"BISTRA","RAVNE NA KOROŠKEM"]
[null,null,null,null,null,null,null,null,null,null,null,null,906,"ČRNA","RAVNE NA KOROŠKEM"]
[null,null,null,null,null,null,null,null,null,null,null,null,907,"LUDRANSKI VRH","RAVNE NA KOROŠKEM"]
[null,null,null,null,null,null,null,null,null,null,null,null,908,"JAVORJE","RAVNE NA KOROŠKEM"]
[null,null,null,null,null,null,null,null,null,null,null,null,909,"LOGARSKA DOLINA","MOZIRJE"]
[null,null,null,null,null,null,null,null,null,null,null,null,910,"SOLČAVA","MOZIRJE"]
[null,null,null,null,null,null,null,null,null,null,null,null,911,"RADUHA","MOZIRJE"]
[null,null,null,null,null,null,null,null,null,null,null,null,912,"KONJSKI VRH","MOZIRJE"]
[null,null,null,null,null,null,null,null,null,null,null,null,913,"PRIMOŽ PRI LJUBNEM","MOZIRJE"]
[null,null,null,null,null,null,null,null,null,null,null,null,914,"TER","MOZIRJE"]
[null,null,null,null,null,null,null,null,null,null,null,null,915,"RADEGUNDA","MOZIRJE"]
[null,null,null,null,null,null,null,null,null,null,null,null,916,"ŠMIHEL","MOZIRJE"]
[null,null,null,null,null,null,null,null,null,null,null,null,917,"LEPA NJIVA","MOZIRJE"]
[null,null,null,null,null,null,null,null,null,null,null,null,918,"LJUBIJA","MOZIRJE"]
[null,null,null,null,null,null,null,null,null,null,null,null,919,"BREZJE","MOZIRJE"]
[null,null,null,null,null,null,null,null,null,null,null,null,920,"MOZIRJE","MOZIRJE"]
[null,null,null,null,null,null,null,null,null,null,null,null,921,"REČICA OB SAVINJI","MOZIRJE"]
[null,null,null,null,null,null,null,null,null,null,null,null,922,"POLJANE","MOZIRJE"]
[null,null,null,null,null,null,null,null,null,null,null,null,923,"LJUBNO","MOZIRJE"]
[null,null,null,null,null,null,null,null,null,null,null,null,924,"SAVINA","MOZIRJE"]
[null,null,null,null,null,null,null,null,null,null,null,null,925,"KRNICA","MOZIRJE"]
[null,null,null,null,null,null,null,null,null,null,null,null,926,"LUČE","MOZIRJE"]
[null,null,null,null,null,null,null,null,null,null,null,null,927,"PODVEŽA","MOZIRJE"]
[null,null,null,null,null,null,null,null,null,null,null,null,928,"PODVOLOVLJEK","MOZIRJE"]
[null,null,null,null,null,null,null,null,null,null,null,null,929,"LENART PRI GORNJEM GRADU","MOZIRJE"]
[null,null,null,null,null,null,null,null,null,null,null,null,930,"FLORJAN PRI GORNJEM GRADU","MOZIRJE"]
[null,null,null,null,null,null,null,null,null,null,null,null,931,"RADMIRJE","MOZIRJE"]
[null,null,null,null,null,null,null,null,null,null,null,null,932,"ŠENTJANŽ","MOZIRJE"]
[null,null,null,null,null,null,null,null,null,null,null,null,933,"HOMEC","MOZIRJE"]
[null,null,null,null,null,null,null,null,null,null,null,null,934,"ZGORNJE POBREŽJE","MOZIRJE"]
[null,null,null,null,null,null,null,null,null,null,null,null,935,"SPODNJA REČICA","MOZIRJE"]
[null,null,null,null,null,null,null,null,null,null,null,null,936,"PRIHOVA","MOZIRJE"]
[null,null,null,null,null,null,null,null,null,null,null,null,937,"LOKE","MOZIRJE"]
[null,null,null,null,null,null,null,null,null,null,null,null,938,"KOKARJE","MOZIRJE"]
[null,null,null,null,null,null,null,null,null,null,null,null,939,"PUSTO POLJE","MOZIRJE"]
[null,null,null,null,null,null,null,null,null,null,null,null,940,"ŠMARTNO OB DRETI","MOZIRJE"]
[null,null,null,null,null,null,null,null,null,null,null,null,941,"BOČNA","MOZIRJE"]
[null,null,null,null,null,null,null,null,null,null,null,null,942,"GORNJI GRAD","MOZIRJE"]
[null,null,null,null,null,null,null,null,null,null,null,null,943,"ŠMIKLAVŽ","MOZIRJE"]
[null,null,null,null,null,null,null,null,null,null,null,null,944,"TIROSEK","MOZIRJE"]
[null,null,null,null,null,null,null,null,null,null,null,null,945,"BELE VODE","VELENJE"]
[null,null,null,null,null,null,null,null,null,null,null,null,946,"ŠENTVID PRI ZAVODNJAH","VELENJE"]
[null,null,null,null,null,null,null,null,null,null,null,null,947,"ZAVODNJE","VELENJE"]
[null,null,null,null,null,null,null,null,null,null,null,null,948,"TOPOLŠICA","VELENJE"]
[null,null,null,null,null,null,null,null,null,null,null,null,949,"RAVNE","VELENJE"]
[null,null,null,null,null,null,null,null,null,null,null,null,950,"PLEŠIVEC","VELENJE"]
[null,null,null,null,null,null,null,null,null,null,null,null,951,"HRASTOVEC","VELENJE"]
[null,null,null,null,null,null,null,null,null,null,null,null,952,"CIRKOVCE","VELENJE"]
[null,null,null,null,null,null,null,null,null,null,null,null,953,"PAKA","VELENJE"]
[null,null,null,null,null,null,null,null,null,null,null,null,954,"LIPJE","ŽALEC"]
[null,null,null,null,null,null,null,null,null,null,null,null,955,"BEVČE","VELENJE"]
[null,null,null,null,null,null,null,null,null,null,null,null,957,"ŠKALE","VELENJE"]
[null,null,null,null,null,null,null,null,null,null,null,null,958,"GABERKE","VELENJE"]
[null,null,null,null,null,null,null,null,null,null,null,null,959,"ŠOŠTANJ","VELENJE"]
[null,null,null,null,null,null,null,null,null,null,null,null,960,"FLORJAN PRI ŠOŠTANJU","VELENJE"]
[null,null,null,null,null,null,null,null,null,null,null,null,961,"SKORNO PRI ŠOŠTANJU","VELENJE"]
[null,null,null,null,null,null,null,null,null,null,null,null,962,"GORENJE","VELENJE"]
[null,null,null,null,null,null,null,null,null,null,null,null,963,"LOKOVICA","VELENJE"]
[null,null,null,null,null,null,null,null,null,null,null,null,964,"VELENJE","VELENJE"]
[null,null,null,null,null,null,null,null,null,null,null,null,965,"LAZE","VELENJE"]
[null,null,null,null,null,null,null,null,null,null,null,null,966,"LOŽNICA","VELENJE"]
[null,null,null,null,null,null,null,null,null,null,null,null,967,"KAVČE","VELENJE"]
[null,null,null,null,null,null,null,null,null,null,null,null,968,"PODKRAJ","VELENJE"]
[null,null,null,null,null,null,null,null,null,null,null,null,969,"VELIKI VRH","VELENJE"]
[null,null,null,null,null,null,null,null,null,null,null,null,970,"GAVCE","VELENJE"]
[null,null,null,null,null,null,null,null,null,null,null,null,971,"PAŠKA VAS","VELENJE"]
[null,null,null,null,null,null,null,null,null,null,null,null,972,"ŠMARTNO OB PAKI","VELENJE"]
[null,null,null,null,null,null,null,null,null,null,null,null,973,"REČICA OB PAKI","VELENJE"]
[null,null,null,null,null,null,null,null,null,null,null,null,974,"PRELSKA","ŽALEC"]
[null,null,null,null,null,null,null,null,null,null,null,null,975,"VINSKA GORA","ŽALEC"]
[null,null,null,null,null,null,null,null,null,null,null,null,976,"ČRNOVA","ŽALEC"]
[null,null,null,null,null,null,null,null,null,null,null,null,977,"ŽELEZNO","ŽALEC"]
[null,null,null,null,null,null,null,null,null,null,null,null,978,"STUDENCE","ŽALEC"]
[null,null,null,null,null,null,null,null,null,null,null,null,979,"PONIKVA","ŽALEC"]
[null,null,null,null,null,null,null,null,null,null,null,null,980,"ANDRAŽ","ŽALEC"]
[null,null,null,null,null,null,null,null,null,null,null,null,981,"DOBRIČ","ŽALEC"]
[null,null,null,null,null,null,null,null,null,null,null,null,982,"PODVIN","ŽALEC"]
[null,null,null,null,null,null,null,null,null,null,null,null,983,"MALE BRASLOVČE","ŽALEC"]
[null,null,null,null,null,null,null,null,null,null,null,null,984,"LETUŠ","ŽALEC"]
[null,null,null,null,null,null,null,null,null,null,null,null,985,"DOBROVLJE","ŽALEC"]
[null,null,null,null,null,null,null,null,null,null,null,null,986,"PODVRH","ŽALEC"]
[null,null,null,null,null,null,null,null,null,null,null,null,987,"BRASLOVČE","ŽALEC"]
[null,null,null,null,null,null,null,null,null,null,null,null,988,"SPODNJE GORČE","ŽALEC"]
[null,null,null,null,null,null,null,null,null,null,null,null,989,"ŠMATEVŽ","ŽALEC"]
[null,null,null,null,null,null,null,null,null,null,null,null,990,"TRNAVA","ŽALEC"]
[null,null,null,null,null,null,null,null,null,null,null,null,991,"ORLA VAS","ŽALEC"]
[null,null,null,null,null,null,null,null,null,null,null,null,992,"POLZELA","ŽALEC"]
[null,null,null,null,null,null,null,null,null,null,null,null,993,"ZALOŽE","ŽALEC"]
[null,null,null,null,null,null,null,null,null,null,null,null,994,"ZALOG","ŽALEC"]
[null,null,null,null,null,null,null,null,null,null,null,null,995,"ŠEMPETER V SAVINJSKI DOLINI","ŽALEC"]
[null,null,null,null,null,null,null,null,null,null,null,null,996,"ŽALEC","ŽALEC"]
[null,null,null,null,null,null,null,null,null,null,null,null,997,"GOTOVLJE","ŽALEC"]
[null,null,null,null,null,null,null,null,null,null,null,null,998,"VELIKA PIREŠICA","ŽALEC"]
[null,null,null,null,null,null,null,null,null,null,null,null,999,"GORICA","ŽALEC"]
[null,null,null,null,null,null,null,null,null,null,null,null,1000,"LEVEC","ŽALEC"]
[null,null,null,null,null,null,null,null,null,null,null,null,1001,"PETROVČE","ŽALEC"]
[null,null,null,null,null,null,null,null,null,null,null,null,1002,"KASAZE","ŽALEC"]
[null,null,null,null,null,null,null,null,null,null,null,null,1003,"ZABUKOVICA","ŽALEC"]
[null,null,null,null,null,null,null,null,null,null,null,null,1004,"GORNJA VAS","ŽALEC"]
[null,null,null,null,null,null,null,null,null,null,null,null,1005,"PREBOLD","ŽALEC"]
[null,null,null,null,null,null,null,null,null,null,null,null,1006,"LATKOVA VAS","ŽALEC"]
[null,null,null,null,null,null,null,null,null,null,null,null,1007,"GRAJSKA VAS","ŽALEC"]
[null,null,null,null,null,null,null,null,null,null,null,null,1008,"GOMILSKO","ŽALEC"]
[null,null,null,null,null,null,null,null,null,null,null,null,1009,"OJSTRIŠKA VAS","ŽALEC"]
[null,null,null,null,null,null,null,null,null,null,null,null,1010,"PREKOPA","ŽALEC"]
[null,null,null,null,null,null,null,null,null,null,null,null,1011,"TEŠOVA","ŽALEC"]
[null,null,null,null,null,null,null,null,null,null,null,null,1012,"VRANSKO","ŽALEC"]
[null,null,null,null,null,null,null,null,null,null,null,null,1013,"JERONIM","ŽALEC"]
[null,null,null,null,null,null,null,null,null,null,null,null,1014,"LOČICA","ŽALEC"]
[null,null,null,null,null,null,null,null,null,null,null,null,1015,"ZAPLANINA","ŽALEC"]
[null,null,null,null,null,null,null,null,null,null,null,null,1016,"ČRNI VRH","ŽALEC"]
[null,null,null,null,null,null,null,null,null,null,null,null,1017,"MIKLAVŽ","ŽALEC"]
[null,null,null,null,null,null,null,null,null,null,null,null,1018,"MARIJA REKA","ŽALEC"]
[null,null,null,null,null,null,null,null,null,null,null,null,1019,"MATKE","ŽALEC"]
[null,null,null,null,null,null,null,null,null,null,null,null,1020,"PONGRAC","ŽALEC"]
[null,null,null,null,null,null,null,null,null,null,null,null,1021,"LIBOJE","ŽALEC"]
[null,null,null,null,null,null,null,null,null,null,null,null,1022,"REČICA","LAŠKO"]
[null,null,null,null,null,null,null,null,null,null,null,null,1023,"SLIVNO","LAŠKO"]
[null,null,null,null,null,null,null,null,null,null,null,null,1024,"RIFENGOZD","LAŠKO"]
[null,null,null,null,null,null,null,null,null,null,null,null,1025,"REKA","LAŠKO"]
[null,null,null,null,null,null,null,null,null,null,null,null,1026,"LAŠKO","LAŠKO"]
[null,null,null,null,null,null,null,null,null,null,null,null,1027,"ŠMIHEL","LAŠKO"]
[null,null,null,null,null,null,null,null,null,null,null,null,1028,"SEDRAŽ","LAŠKO"]
[null,null,null,null,null,null,null,null,null,null,null,null,1029,"LAHOMŠEK","LAŠKO"]
[null,null,null,null,null,null,null,null,null,null,null,null,1030,"LAHOMNO","LAŠKO"]
[null,null,null,null,null,null,null,null,null,null,null,null,1031,"OLEŠČE","LAŠKO"]
[null,null,null,null,null,null,null,null,null,null,null,null,1032,"ŠENTRUPERT","LAŠKO"]
[null,null,null,null,null,null,null,null,null,null,null,null,1033,"TROBNI DOL","LAŠKO"]
[null,null,null,null,null,null,null,null,null,null,null,null,1034,"MRZLO POLJE","LAŠKO"]
[null,null,null,null,null,null,null,null,null,null,null,null,1035,"JURKLOŠTER","LAŠKO"]
[null,null,null,null,null,null,null,null,null,null,null,null,1036,"VRH NAD LAŠKIM","LAŠKO"]
[null,null,null,null,null,null,null,null,null,null,null,null,1037,"LAŽIŠE","LAŠKO"]
[null,null,null,null,null,null,null,null,null,null,null,null,1038,"PLAZOVJE","LAŠKO"]
[null,null,null,null,null,null,null,null,null,null,null,null,1039,"RIMSKE TOPLICE","LAŠKO"]
[null,null,null,null,null,null,null,null,null,null,null,null,1040,"LOŽE","LAŠKO"]
[null,null,null,null,null,null,null,null,null,null,null,null,1041,"LOKAVEC","LAŠKO"]
[null,null,null,null,null,null,null,null,null,null,null,null,1042,"PANEČE","LAŠKO"]
[null,null,null,null,null,null,null,null,null,null,null,null,1043,"MARIJINA VAS","LAŠKO"]
[null,null,null,null,null,null,null,null,null,null,null,null,1044,"BRDCE NAD DOBRNO","CELJE"]
[null,null,null,null,null,null,null,null,null,null,null,null,1045,"KLANC","CELJE"]
[null,null,null,null,null,null,null,null,null,null,null,null,1046,"ZAVRH","CELJE"]
[null,null,null,null,null,null,null,null,null,null,null,null,1047,"ČREŠKOVA","CELJE"]
[null,null,null,null,null,null,null,null,null,null,null,null,1048,"SOCKA","CELJE"]
[null,null,null,null,null,null,null,null,null,null,null,null,1049,"LIPA","CELJE"]
[null,null,null,null,null,null,null,null,null,null,null,null,1050,"DOL","CELJE"]
[null,null,null,null,null,null,null,null,null,null,null,null,1051,"VERPETE","CELJE"]
[null,null,null,null,null,null,null,null,null,null,null,null,1052,"PODGORJE","CELJE"]
[null,null,null,null,null,null,null,null,null,null,null,null,1053,"LOKA","CELJE"]
[null,null,null,null,null,null,null,null,null,null,null,null,1054,"NOVAKE","CELJE"]
[null,null,null,null,null,null,null,null,null,null,null,null,1055,"HOMEC","CELJE"]
[null,null,null,null,null,null,null,null,null,null,null,null,1056,"DOBRNA","CELJE"]
[null,null,null,null,null,null,null,null,null,null,null,null,1057,"RUPE","CELJE"]
[null,null,null,null,null,null,null,null,null,null,null,null,1058,"ROŽNI VRH","CELJE"]
[null,null,null,null,null,null,null,null,null,null,null,null,1059,"LEMBERG","CELJE"]
[null,null,null,null,null,null,null,null,null,null,null,null,1060,"STRMEC PRI VOJNIKU","CELJE"]
[null,null,null,null,null,null,null,null,null,null,null,null,1061,"VIŠNJA VAS","CELJE"]
[null,null,null,null,null,null,null,null,null,null,null,null,1062,"MALE DOLE","CELJE"]
[null,null,null,null,null,null,null,null,null,null,null,null,1063,"BEZOVICA","CELJE"]
[null,null,null,null,null,null,null,null,null,null,null,null,1064,"TOMAŽ","CELJE"]
[null,null,null,null,null,null,null,null,null,null,null,null,1065,"VOJNIK TRG","CELJE"]
[null,null,null,null,null,null,null,null,null,null,null,null,1066,"VOJNIK OKOLICA","CELJE"]
[null,null,null,null,null,null,null,null,null,null,null,null,1067,"BREZOVA","CELJE"]
[null,null,null,null,null,null,null,null,null,null,null,null,1068,"ŠMARTNO","CELJE"]
[null,null,null,null,null,null,null,null,null,null,null,null,1069,"ŠENTJUNGERT","CELJE"]
[null,null,null,null,null,null,null,null,null,null,null,null,1070,"ARCLIN","CELJE"]
[null,null,null,null,null,null,null,null,null,null,null,null,1071,"ŠKOFJA VAS","CELJE"]
[null,null,null,null,null,null,null,null,null,null,null,null,1072,"ŠMIKLAVŽ","CELJE"]
[null,null,null,null,null,null,null,null,null,null,null,null,1073,"TRNOVLJE","CELJE"]
[null,null,null,null,null,null,null,null,null,null,null,null,1074,"SPODNJA HUDINJA","CELJE"]
[null,null,null,null,null,null,null,null,null,null,null,null,1075,"OSTROŽNO","CELJE"]
[null,null,null,null,null,null,null,null,null,null,null,null,1076,"MEDLOG","CELJE"]
[null,null,null,null,null,null,null,null,null,null,null,null,1077,"CELJE","CELJE"]
[null,null,null,null,null,null,null,null,null,null,null,null,1078,"LISCE","CELJE"]
[null,null,null,null,null,null,null,null,null,null,null,null,1079,"KOŠNICA","CELJE"]
[null,null,null,null,null,null,null,null,null,null,null,null,1080,"TREMERJE","CELJE"]
[null,null,null,null,null,null,null,null,null,null,null,null,1081,"ZAGRAD","CELJE"]
[null,null,null,null,null,null,null,null,null,null,null,null,1082,"TEHARJE","CELJE"]
[null,null,null,null,null,null,null,null,null,null,null,null,1083,"BUKOVŽLAK","CELJE"]
[null,null,null,null,null,null,null,null,null,null,null,null,1084,"PEČOVJE","CELJE"]
[null,null,null,null,null,null,null,null,null,null,null,null,1085,"KOMPOLE","CELJE"]
[null,null,null,null,null,null,null,null,null,null,null,null,1086,"PROŽINSKA VAS","CELJE"]
[null,null,null,null,null,null,null,null,null,null,null,null,1087,"SVETINA","CELJE"]
[null,null,null,null,null,null,null,null,null,null,null,null,1088,"PADEŠKI VRH","SLOVENSKE KONJICE"]
[null,null,null,null,null,null,null,null,null,null,null,null,1089,"RESNIK","SLOVENSKE KONJICE"]
[null,null,null,null,null,null,null,null,null,null,null,null,1090,"SKOMARJE","SLOVENSKE KONJICE"]
[null,null,null,null,null,null,null,null,null,null,null,null,1091,"HUDINJA","SLOVENSKE KONJICE"]
[null,null,null,null,null,null,null,null,null,null,null,null,1092,"PAKA I","SLOVENSKE KONJICE"]
[null,null,null,null,null,null,null,null,null,null,null,null,1093,"SPODNJI DOLIČ","SLOVENSKE KONJICE"]
[null,null,null,null,null,null,null,null,null,null,null,null,1094,"BREZEN","SLOVENSKE KONJICE"]
[null,null,null,null,null,null,null,null,null,null,null,null,1095,"VITANJE","SLOVENSKE KONJICE"]
[null,null,null,null,null,null,null,null,null,null,null,null,1096,"STENICA","SLOVENSKE KONJICE"]
[null,null,null,null,null,null,null,null,null,null,null,null,1097,"LJUBNICA","SLOVENSKE KONJICE"]
[null,null,null,null,null,null,null,null,null,null,null,null,1098,"LOŠKA GORA","SLOVENSKE KONJICE"]
[null,null,null,null,null,null,null,null,null,null,null,null,1099,"GORENJE PRI ZREČAH","SLOVENSKE KONJICE"]
[null,null,null,null,null,null,null,null,null,null,null,null,1100,"ZREČE","SLOVENSKE KONJICE"]
[null,null,null,null,null,null,null,null,null,null,null,null,1101,"RADANA VAS","SLOVENSKE KONJICE"]
[null,null,null,null,null,null,null,null,null,null,null,null,1102,"KRIŽEVEC","SLOVENSKE KONJICE"]
[null,null,null,null,null,null,null,null,null,null,null,null,1103,"STRANICE","SLOVENSKE KONJICE"]
[null,null,null,null,null,null,null,null,null,null,null,null,1104,"PRELOGE","SLOVENSKE KONJICE"]
[null,null,null,null,null,null,null,null,null,null,null,null,1105,"ŠKALCE","SLOVENSKE KONJICE"]
[null,null,null,null,null,null,null,null,null,null,null,null,1106,"BEZINA","SLOVENSKE KONJICE"]
[null,null,null,null,null,null,null,null,null,null,null,null,1107,"TEPANJE","SLOVENSKE KONJICE"]
[null,null,null,null,null,null,null,null,null,null,null,null,1108,"PEROVEC","SLOVENSKE KONJICE"]
[null,null,null,null,null,null,null,null,null,null,null,null,1109,"SPODNJE GRUŠOVJE","SLOVENSKE KONJICE"]
[null,null,null,null,null,null,null,null,null,null,null,null,1110,"LIČENCA","SLOVENSKE KONJICE"]
[null,null,null,null,null,null,null,null,null,null,null,null,1111,"JERNEJ PRI LOČAH","SLOVENSKE KONJICE"]
[null,null,null,null,null,null,null,null,null,null,null,null,1112,"KOBLE","SLOVENSKE KONJICE"]
[null,null,null,null,null,null,null,null,null,null,null,null,1113,"ŽIČE","SLOVENSKE KONJICE"]
[null,null,null,null,null,null,null,null,null,null,null,null,1114,"KONJIŠKA VAS","SLOVENSKE KONJICE"]
[null,null,null,null,null,null,null,null,null,null,null,null,1115,"SLOVENSKE KONJICE","SLOVENSKE KONJICE"]
[null,null,null,null,null,null,null,null,null,null,null,null,1116,"SLEMENE","SLOVENSKE KONJICE"]
[null,null,null,null,null,null,null,null,null,null,null,null,1117,"TOLSTI VRH","SLOVENSKE KONJICE"]
[null,null,null,null,null,null,null,null,null,null,null,null,1118,"LIPOGLAV","SLOVENSKE KONJICE"]
[null,null,null,null,null,null,null,null,null,null,null,null,1119,"LOČE","SLOVENSKE KONJICE"]
[null,null,null,null,null,null,null,null,null,null,null,null,1120,"ZGORNJE LAŽE","SLOVENSKE KONJICE"]
[null,null,null,null,null,null,null,null,null,null,null,null,1121,"ZBELOVSKA GORA","SLOVENSKE KONJICE"]
[null,null,null,null,null,null,null,null,null,null,null,null,1122,"DRAMLJE","ŠENTJUR PRI CELJU"]
[null,null,null,null,null,null,null,null,null,null,null,null,1123,"PLETOVARJE","ŠENTJUR PRI CELJU"]
[null,null,null,null,null,null,null,null,null,null,null,null,1124,"SLATINA","ŠENTJUR PRI CELJU"]
[null,null,null,null,null,null,null,null,null,null,null,null,1125,"OSTROŽNO","ŠENTJUR PRI CELJU"]
[null,null,null,null,null,null,null,null,null,null,null,null,1126,"DOLGA GORA","ŠENTJUR PRI CELJU"]
[null,null,null,null,null,null,null,null,null,null,null,null,1127,"PONKVICA","ŠENTJUR PRI CELJU"]
[null,null,null,null,null,null,null,null,null,null,null,null,1128,"PONIKVA","ŠENTJUR PRI CELJU"]
[null,null,null,null,null,null,null,null,null,null,null,null,1129,"ZAGAJ","ŠENTJUR PRI CELJU"]
[null,null,null,null,null,null,null,null,null,null,null,null,1130,"VODULE","ŠENTJUR PRI CELJU"]
[null,null,null,null,null,null,null,null,null,null,null,null,1131,"MARIJA DOBJE","ŠENTJUR PRI CELJU"]
[null,null,null,null,null,null,null,null,null,null,null,null,1132,"PRIMOŽ","ŠENTJUR PRI CELJU"]
[null,null,null,null,null,null,null,null,null,null,null,null,1133,"GORIČICA","ŠENTJUR PRI CELJU"]
[null,null,null,null,null,null,null,null,null,null,null,null,1134,"ZLATEČE","ŠENTJUR PRI CELJU"]
[null,null,null,null,null,null,null,null,null,null,null,null,1135,"LOKARJE","ŠENTJUR PRI CELJU"]
[null,null,null,null,null,null,null,null,null,null,null,null,1136,"KAMENO","ŠENTJUR PRI CELJU"]
[null,null,null,null,null,null,null,null,null,null,null,null,1137,"GROBELNO","ŠENTJUR PRI CELJU"]
[null,null,null,null,null,null,null,null,null,null,null,null,1138,"ŠENTJUR PRI CELJU","ŠENTJUR PRI CELJU"]
[null,null,null,null,null,null,null,null,null,null,null,null,1139,"PODGRAD","ŠENTJUR PRI CELJU"]
[null,null,null,null,null,null,null,null,null,null,null,null,1140,"KRAJNČICA","ŠENTJUR PRI CELJU"]
[null,null,null,null,null,null,null,null,null,null,null,null,1141,"RIFNIK","ŠENTJUR PRI CELJU"]
[null,null,null,null,null,null,null,null,null,null,null,null,1142,"TRATNA","ŠENTJUR PRI CELJU"]
[null,null,null,null,null,null,null,null,null,null,null,null,1143,"GORICA PRI SLIVNICI","ŠENTJUR PRI CELJU"]
[null,null,null,null,null,null,null,null,null,null,null,null,1144,"VODRUŽ","ŠENTJUR PRI CELJU"]
[null,null,null,null,null,null,null,null,null,null,null,null,1145,"PLANINCA","ŠENTJUR PRI CELJU"]
[null,null,null,null,null,null,null,null,null,null,null,null,1146,"VEZOVJE","ŠENTJUR PRI CELJU"]
[null,null,null,null,null,null,null,null,null,null,null,null,1147,"SLIVNICA PRI CELJU","ŠENTJUR PRI CELJU"]
[null,null,null,null,null,null,null,null,null,null,null,null,1148,"JAVORJE","ŠENTJUR PRI CELJU"]
[null,null,null,null,null,null,null,null,null,null,null,null,1149,"VODUCE","ŠENTJUR PRI CELJU"]
[null,null,null,null,null,null,null,null,null,null,null,null,1150,"KALOBJE","ŠENTJUR PRI CELJU"]
[null,null,null,null,null,null,null,null,null,null,null,null,1151,"BREZJE","ŠENTJUR PRI CELJU"]
[null,null,null,null,null,null,null,null,null,null,null,null,1152,"SUHO","ŠENTJUR PRI CELJU"]
[null,null,null,null,null,null,null,null,null,null,null,null,1153,"PARIDOL","ŠENTJUR PRI CELJU"]
[null,null,null,null,null,null,null,null,null,null,null,null,1154,"DOBRINA","ŠENTJUR PRI CELJU"]
[null,null,null,null,null,null,null,null,null,null,null,null,1155,"LOKA PRI ŽUSMU","ŠENTJUR PRI CELJU"]
[null,null,null,null,null,null,null,null,null,null,null,null,1156,"LOPACA","ŠENTJUR PRI CELJU"]
[null,null,null,null,null,null,null,null,null,null,null,null,1157,"STRAŠKA GORCA","ŠENTJUR PRI CELJU"]
[null,null,null,null,null,null,null,null,null,null,null,null,1158,"PRESEČNO","ŠENTJUR PRI CELJU"]
[null,null,null,null,null,null,null,null,null,null,null,null,1159,"PLANINSKA VAS","ŠENTJUR PRI CELJU"]
[null,null,null,null,null,null,null,null,null,null,null,null,1160,"LOKE PRI PLANINI","ŠENTJUR PRI CELJU"]
[null,null,null,null,null,null,null,null,null,null,null,null,1161,"PLANINA","ŠENTJUR PRI CELJU"]
[null,null,null,null,null,null,null,null,null,null,null,null,1162,"GOLOBINJEK","ŠENTJUR PRI CELJU"]
[null,null,null,null,null,null,null,null,null,null,null,null,1163,"ŠENTVID PRI PLANINI","ŠENTJUR PRI CELJU"]
[null,null,null,null,null,null,null,null,null,null,null,null,1164,"ZGORNJI GABRNIK","ŠMARJE PRI JELŠAH"]
[null,null,null,null,null,null,null,null,null,null,null,null,1165,"DREVENIK","ŠMARJE PRI JELŠAH"]
[null,null,null,null,null,null,null,null,null,null,null,null,1166,"ČAČA VAS","ŠMARJE PRI JELŠAH"]
[null,null,null,null,null,null,null,null,null,null,null,null,1167,"NEGONJE","ŠMARJE PRI JELŠAH"]
[null,null,null,null,null,null,null,null,null,null,null,null,1168,"RATANSKA VAS","ŠMARJE PRI JELŠAH"]
[null,null,null,null,null,null,null,null,null,null,null,null,1169,"CEROVEC","ŠMARJE PRI JELŠAH"]
[null,null,null,null,null,null,null,null,null,null,null,null,1170,"SPODNJE SEČOVO","ŠMARJE PRI JELŠAH"]
[null,null,null,null,null,null,null,null,null,null,null,null,1171,"SVETI FLORJAN","ŠMARJE PRI JELŠAH"]
[null,null,null,null,null,null,null,null,null,null,null,null,1172,"STRMEC","ŠMARJE PRI JELŠAH"]
[null,null,null,null,null,null,null,null,null,null,null,null,1173,"TLAKE","ŠMARJE PRI JELŠAH"]
[null,null,null,null,null,null,null,null,null,null,null,null,1174,"TRŠKA GORCA","ŠMARJE PRI JELŠAH"]
[null,null,null,null,null,null,null,null,null,null,null,null,1175,"DONAČKA GORA","ŠMARJE PRI JELŠAH"]
[null,null,null,null,null,null,null,null,null,null,null,null,1176,"TRLIČNO","ŠMARJE PRI JELŠAH"]
[null,null,null,null,null,null,null,null,null,null,null,null,1177,"DOBOVEC","ŠMARJE PRI JELŠAH"]
[null,null,null,null,null,null,null,null,null,null,null,null,1178,"ROGATEC","ŠMARJE PRI JELŠAH"]
[null,null,null,null,null,null,null,null,null,null,null,null,1179,"TRŽIŠČE","ŠMARJE PRI JELŠAH"]
[null,null,null,null,null,null,null,null,null,null,null,null,1180,"TOPOLE","ŠMARJE PRI JELŠAH"]
[null,null,null,null,null,null,null,null,null,null,null,null,1181,"TEKAČEVO","ŠMARJE PRI JELŠAH"]
[null,null,null,null,null,null,null,null,null,null,null,null,1182,"SPODNJA KOSTRIVNICA","ŠMARJE PRI JELŠAH"]
[null,null,null,null,null,null,null,null,null,null,null,null,1183,"LEMBERG OKOLICA","ŠMARJE PRI JELŠAH"]
[null,null,null,null,null,null,null,null,null,null,null,null,1184,"LEMBERG TRG","ŠMARJE PRI JELŠAH"]
[null,null,null,null,null,null,null,null,null,null,null,null,1185,"PIJOVCI","ŠMARJE PRI JELŠAH"]
[null,null,null,null,null,null,null,null,null,null,null,null,1186,"SLADKA GORA","ŠMARJE PRI JELŠAH"]
[null,null,null,null,null,null,null,null,null,null,null,null,1187,"VRH","ŠMARJE PRI JELŠAH"]
[null,null,null,null,null,null,null,null,null,null,null,null,1188,"DVOR","ŠMARJE PRI JELŠAH"]
[null,null,null,null,null,null,null,null,null,null,null,null,1189,"BOBOVO","ŠMARJE PRI JELŠAH"]
[null,null,null,null,null,null,null,null,null,null,null,null,1190,"PRELOGE","ŠMARJE PRI JELŠAH"]
[null,null,null,null,null,null,null,null,null,null,null,null,1191,"GRLIČE","ŠMARJE PRI JELŠAH"]
[null,null,null,null,null,null,null,null,null,null,null,null,1192,"KAČJI DOL","ŠMARJE PRI JELŠAH"]
[null,null,null,null,null,null,null,null,null,null,null,null,1193,"MALE RODNE","ŠMARJE PRI JELŠAH"]
[null,null,null,null,null,null,null,null,null,null,null,null,1194,"VELIKE RODNE","ŠMARJE PRI JELŠAH"]
[null,null,null,null,null,null,null,null,null,null,null,null,1195,"RJAVICA","ŠMARJE PRI JELŠAH"]
[null,null,null,null,null,null,null,null,null,null,null,null,1196,"BRESTOVEC","ŠMARJE PRI JELŠAH"]
[null,null,null,null,null,null,null,null,null,null,null,null,1197,"CESTE","ŠMARJE PRI JELŠAH"]
[null,null,null,null,null,null,null,null,null,null,null,null,1198,"PLAT","ŠMARJE PRI JELŠAH"]
[null,null,null,null,null,null,null,null,null,null,null,null,1199,"KRISTAN VRH","ŠMARJE PRI JELŠAH"]
[null,null,null,null,null,null,null,null,null,null,null,null,1200,"ŠMARJE PRI JELŠAH","ŠMARJE PRI JELŠAH"]
[null,null,null,null,null,null,null,null,null,null,null,null,1201,"ZADRŽE","ŠMARJE PRI JELŠAH"]
[null,null,null,null,null,null,null,null,null,null,null,null,1202,"SENOVICA","ŠMARJE PRI JELŠAH"]
[null,null,null,null,null,null,null,null,null,null,null,null,1203,"BODREŽ","ŠMARJE PRI JELŠAH"]
[null,null,null,null,null,null,null,null,null,null,null,null,1204,"ZGORNJE SELCE","ŠENTJUR PRI CELJU"]
[null,null,null,null,null,null,null,null,null,null,null,null,1205,"PLATINOVEC","ŠMARJE PRI JELŠAH"]
[null,null,null,null,null,null,null,null,null,null,null,null,1206,"JEŠOVEC","ŠMARJE PRI JELŠAH"]
[null,null,null,null,null,null,null,null,null,null,null,null,1207,"BRECLJEVO","ŠMARJE PRI JELŠAH"]
[null,null,null,null,null,null,null,null,null,null,null,null,1208,"DOL","ŠMARJE PRI JELŠAH"]
[null,null,null,null,null,null,null,null,null,null,null,null,1209,"KORETNO","ŠMARJE PRI JELŠAH"]
[null,null,null,null,null,null,null,null,null,null,null,null,1210,"PRISTAVA","ŠMARJE PRI JELŠAH"]
[null,null,null,null,null,null,null,null,null,null,null,null,1211,"HAJNSKO","ŠMARJE PRI JELŠAH"]
[null,null,null,null,null,null,null,null,null,null,null,null,1212,"NEZBIŠE","ŠMARJE PRI JELŠAH"]
[null,null,null,null,null,null,null,null,null,null,null,null,1213,"KAMENCE","ŠMARJE PRI JELŠAH"]
[null,null,null,null,null,null,null,null,null,null,null,null,1214,"RAJNKOVEC","ŠMARJE PRI JELŠAH"]
[null,null,null,null,null,null,null,null,null,null,null,null,1215,"NIMNO","ŠMARJE PRI JELŠAH"]
[null,null,null,null,null,null,null,null,null,null,null,null,1216,"VIDOVICA","ŠMARJE PRI JELŠAH"]
[null,null,null,null,null,null,null,null,null,null,null,null,1217,"VONARJE","ŠMARJE PRI JELŠAH"]
[null,null,null,null,null,null,null,null,null,null,null,null,1218,"EMA","ŠMARJE PRI JELŠAH"]
[null,null,null,null,null,null,null,null,null,null,null,null,1219,"SODNA VAS","ŠMARJE PRI JELŠAH"]
[null,null,null,null,null,null,null,null,null,null,null,null,1220,"ROGINSKA GORCA","ŠMARJE PRI JELŠAH"]
[null,null,null,null,null,null,null,null,null,null,null,null,1221,"ZIBIKA","ŠMARJE PRI JELŠAH"]
[null,null,null,null,null,null,null,null,null,null,null,null,1222,"VRŠNA VAS","ŠMARJE PRI JELŠAH"]
[null,null,null,null,null,null,null,null,null,null,null,null,1223,"OREHOVEC","ŠMARJE PRI JELŠAH"]
[null,null,null,null,null,null,null,null,null,null,null,null,1224,"BABNA REKA","ŠMARJE PRI JELŠAH"]
[null,null,null,null,null,null,null,null,null,null,null,null,1225,"GROBELCE","ŠMARJE PRI JELŠAH"]
[null,null,null,null,null,null,null,null,null,null,null,null,1226,"BABNA GORA","ŠMARJE PRI JELŠAH"]
[null,null,null,null,null,null,null,null,null,null,null,null,1227,"TINSKO","ŠMARJE PRI JELŠAH"]
[null,null,null,null,null,null,null,null,null,null,null,null,1228,"SOPOTE","ŠMARJE PRI JELŠAH"]
[null,null,null,null,null,null,null,null,null,null,null,null,1229,"PODČETRTEK","ŠMARJE PRI JELŠAH"]
[null,null,null,null,null,null,null,null,null,null,null,null,1230,"IMENO","ŠMARJE PRI JELŠAH"]
[null,null,null,null,null,null,null,null,null,null,null,null,1231,"VIRŠTANJ","ŠMARJE PRI JELŠAH"]
[null,null,null,null,null,null,null,null,null,null,null,null,1232,"DOBLEŽIČE","ŠMARJE PRI JELŠAH"]
[null,null,null,null,null,null,null,null,null,null,null,null,1233,"VERAČE","ŠMARJE PRI JELŠAH"]
[null,null,null,null,null,null,null,null,null,null,null,null,1234,"BUČE","ŠMARJE PRI JELŠAH"]
[null,null,null,null,null,null,null,null,null,null,null,null,1235,"DRENSKO REBRO","ŠMARJE PRI JELŠAH"]
[null,null,null,null,null,null,null,null,null,null,null,null,1236,"ZAGORJE","ŠMARJE PRI JELŠAH"]
[null,null,null,null,null,null,null,null,null,null,null,null,1237,"PILŠTANJ","ŠMARJE PRI JELŠAH"]
[null,null,null,null,null,null,null,null,null,null,null,null,1238,"ZDOLE","ŠMARJE PRI JELŠAH"]
[null,null,null,null,null,null,null,null,null,null,null,null,1239,"VRENSKA GORCA","ŠMARJE PRI JELŠAH"]
[null,null,null,null,null,null,null,null,null,null,null,null,1240,"SEDLARJEVO","ŠMARJE PRI JELŠAH"]
[null,null,null,null,null,null,null,null,null,null,null,null,1241,"LASTNIČ","ŠMARJE PRI JELŠAH"]
[null,null,null,null,null,null,null,null,null,null,null,null,1242,"KOZJE","ŠMARJE PRI JELŠAH"]
[null,null,null,null,null,null,null,null,null,null,null,null,1243,"VETRNIK","ŠMARJE PRI JELŠAH"]
[null,null,null,null,null,null,null,null,null,null,null,null,1244,"GORJANE","ŠMARJE PRI JELŠAH"]
[null,null,null,null,null,null,null,null,null,null,null,null,1245,"PODSREDA","ŠMARJE PRI JELŠAH"]
[null,null,null,null,null,null,null,null,null,null,null,null,1246,"DEKMANCA","ŠMARJE PRI JELŠAH"]
[null,null,null,null,null,null,null,null,null,null,null,null,1247,"TREBČE","ŠMARJE PRI JELŠAH"]
[null,null,null,null,null,null,null,null,null,null,null,null,1248,"HRASTJE","ŠMARJE PRI JELŠAH"]
[null,null,null,null,null,null,null,null,null,null,null,null,1249,"PLES","ŠMARJE PRI JELŠAH"]
[null,null,null,null,null,null,null,null,null,null,null,null,1250,"KUNŠPERK","ŠMARJE PRI JELŠAH"]
[null,null,null,null,null,null,null,null,null,null,null,null,1251,"ZAGAJ","ŠMARJE PRI JELŠAH"]
[null,null,null,null,null,null,null,null,null,null,null,null,1252,"KRIŽE","BREŽICE"]
[null,null,null,null,null,null,null,null,null,null,null,null,1253,"OREŠJE","BREŽICE"]
[null,null,null,null,null,null,null,null,null,null,null,null,1254,"BUKOVJE","BREŽICE"]
[null,null,null,null,null,null,null,null,null,null,null,null,1255,"DRENOVEC","BREŽICE"]
[null,null,null,null,null,null,null,null,null,null,null,null,1256,"BREZOVICA","BREŽICE"]
[null,null,null,null,null,null,null,null,null,null,null,null,1257,"BIZELJSKO","BREŽICE"]
[null,null,null,null,null,null,null,null,null,null,null,null,1258,"PODGORJE","BREŽICE"]
[null,null,null,null,null,null,null,null,null,null,null,null,1259,"PAVLOVA VAS","BREŽICE"]
[null,null,null,null,null,null,null,null,null,null,null,null,1260,"SILOVEC","BREŽICE"]
[null,null,null,null,null,null,null,null,null,null,null,null,1261,"SROMLJE","BREŽICE"]
[null,null,null,null,null,null,null,null,null,null,null,null,1262,"ZGORNJA POHANCA","BREŽICE"]
[null,null,null,null,null,null,null,null,null,null,null,null,1263,"OKLUKOVA GORA","BREŽICE"]
[null,null,null,null,null,null,null,null,null,null,null,null,1264,"ARNOVO SELO","BREŽICE"]
[null,null,null,null,null,null,null,null,null,null,null,null,1265,"VOLČJE","BREŽICE"]
[null,null,null,null,null,null,null,null,null,null,null,null,1266,"CURNOVEC","BREŽICE"]
[null,null,null,null,null,null,null,null,null,null,null,null,1267,"BLATNO","BREŽICE"]
[null,null,null,null,null,null,null,null,null,null,null,null,1268,"DEDNJA VAS","BREŽICE"]
[null,null,null,null,null,null,null,null,null,null,null,null,1269,"PIŠECE","BREŽICE"]
[null,null,null,null,null,null,null,null,null,null,null,null,1270,"BREZJE","BREŽICE"]
[null,null,null,null,null,null,null,null,null,null,null,null,1271,"VITNA VAS","BREŽICE"]
[null,null,null,null,null,null,null,null,null,null,null,null,1272,"STARA VAS","BREŽICE"]
[null,null,null,null,null,null,null,null,null,null,null,null,1273,"ŽUPELEVEC","BREŽICE"]
[null,null,null,null,null,null,null,null,null,null,null,null,1274,"BOJSNO","BREŽICE"]
[null,null,null,null,null,null,null,null,null,null,null,null,1275,"PIRŠENBREG","BREŽICE"]
[null,null,null,null,null,null,null,null,null,null,null,null,1276,"GLOBOKO","BREŽICE"]
[null,null,null,null,null,null,null,null,null,null,null,null,1277,"MALI VRH","BREŽICE"]
[null,null,null,null,null,null,null,null,null,null,null,null,1278,"DEČNO SELO","BREŽICE"]
[null,null,null,null,null,null,null,null,null,null,null,null,1279,"ARTIČE","BREŽICE"]
[null,null,null,null,null,null,null,null,null,null,null,null,1280,"ZGORNJI OBREŽ","BREŽICE"]
[null,null,null,null,null,null,null,null,null,null,null,null,1281,"ŠENTLENART","BREŽICE"]
[null,null,null,null,null,null,null,null,null,null,null,null,1282,"BREZINA","BREŽICE"]
[null,null,null,null,null,null,null,null,null,null,null,null,1283,"ČRNC","BREŽICE"]
[null,null,null,null,null,null,null,null,null,null,null,null,1284,"BUKOŠEK","BREŽICE"]
[null,null,null,null,null,null,null,null,null,null,null,null,1285,"SELA","BREŽICE"]
[null,null,null,null,null,null,null,null,null,null,null,null,1286,"SLOGONSKO","BREŽICE"]
[null,null,null,null,null,null,null,null,null,null,null,null,1287,"VRHJE","BREŽICE"]
[null,null,null,null,null,null,null,null,null,null,null,null,1288,"JERESLAVEC","BREŽICE"]
[null,null,null,null,null,null,null,null,null,null,null,null,1289,"RAKOVEC","BREŽICE"]
[null,null,null,null,null,null,null,null,null,null,null,null,1290,"KAPELE","BREŽICE"]
[null,null,null,null,null,null,null,null,null,null,null,null,1291,"PODVINJE","BREŽICE"]
[null,null,null,null,null,null,null,null,null,null,null,null,1292,"GABRJE","BREŽICE"]
[null,null,null,null,null,null,null,null,null,null,null,null,1293,"VELIKI OBREŽ","BREŽICE"]
[null,null,null,null,null,null,null,null,null,null,null,null,1294,"RIGONCE","BREŽICE"]
[null,null,null,null,null,null,null,null,null,null,null,null,1295,"LOČE","BREŽICE"]
[null,null,null,null,null,null,null,null,null,null,null,null,1296,"MIHALOVEC","BREŽICE"]
[null,null,null,null,null,null,null,null,null,null,null,null,1297,"MOSTEC","BREŽICE"]
[null,null,null,null,null,null,null,null,null,null,null,null,1298,"TRNJE","BREŽICE"]
[null,null,null,null,null,null,null,null,null,null,null,null,1299,"ZAKOT","BREŽICE"]
[null,null,null,null,null,null,null,null,null,null,null,null,1300,"BREŽICE","BREŽICE"]
[null,null,null,null,null,null,null,null,null,null,null,null,1301,"KRŠKA VAS","BREŽICE"]
[null,null,null,null,null,null,null,null,null,null,null,null,1302,"CERKLJE","BREŽICE"]
[null,null,null,null,null,null,null,null,null,null,null,null,1303,"BUŠEČA VAS","BREŽICE"]
[null,null,null,null,null,null,null,null,null,null,null,null,1304,"STOJANSKI VRH","BREŽICE"]
[null,null,null,null,null,null,null,null,null,null,null,null,1305,"GLOBOČICE","BREŽICE"]
[null,null,null,null,null,null,null,null,null,null,null,null,1306,"ČATEŽ","BREŽICE"]
[null,null,null,null,null,null,null,null,null,null,null,null,1307,"CERINA","BREŽICE"]
[null,null,null,null,null,null,null,null,null,null,null,null,1308,"VELIKA DOLINA","BREŽICE"]
[null,null,null,null,null,null,null,null,null,null,null,null,1309,"KORITNO","BREŽICE"]
[null,null,null,null,null,null,null,null,null,null,null,null,1310,"NOVA VAS","BREŽICE"]
[null,null,null,null,null,null,null,null,null,null,null,null,1311,"KOSTANJEK","KRŠKO"]
[null,null,null,null,null,null,null,null,null,null,null,null,1312,"PLETERJE","KRŠKO"]
[null,null,null,null,null,null,null,null,null,null,null,null,1313,"ANOVEC","KRŠKO"]
[null,null,null,null,null,null,null,null,null,null,null,null,1314,"SREMIČ","KRŠKO"]
[null,null,null,null,null,null,null,null,null,null,null,null,1315,"VIDEM","KRŠKO"]
[null,null,null,null,null,null,null,null,null,null,null,null,1316,"STARA VAS","KRŠKO"]
[null,null,null,null,null,null,null,null,null,null,null,null,1317,"STARI GRAD","KRŠKO"]
[null,null,null,null,null,null,null,null,null,null,null,null,1318,"DOLENJA VAS","KRŠKO"]
[null,null,null,null,null,null,null,null,null,null,null,null,1319,"PESJE","KRŠKO"]
[null,null,null,null,null,null,null,null,null,null,null,null,1320,"DRNOVO","KRŠKO"]
[null,null,null,null,null,null,null,null,null,null,null,null,1321,"LESKOVEC","KRŠKO"]
[null,null,null,null,null,null,null,null,null,null,null,null,1322,"KRŠKO","KRŠKO"]
[null,null,null,null,null,null,null,null,null,null,null,null,1323,"VELIKI TRN","KRŠKO"]
[null,null,null,null,null,null,null,null,null,null,null,null,1324,"RAVNE","KRŠKO"]
[null,null,null,null,null,null,null,null,null,null,null,null,1325,"SENUŠE","KRŠKO"]
[null,null,null,null,null,null,null,null,null,null,null,null,1326,"RAKA","KRŠKO"]
[null,null,null,null,null,null,null,null,null,null,null,null,1327,"POVRŠJE","KRŠKO"]
[null,null,null,null,null,null,null,null,null,null,null,null,1328,"SMEDNIK","KRŠKO"]
[null,null,null,null,null,null,null,null,null,null,null,null,1329,"VELIKI PODLOG","KRŠKO"]
[null,null,null,null,null,null,null,null,null,null,null,null,1330,"VELIKO MRAŠEVO","KRŠKO"]
[null,null,null,null,null,null,null,null,null,null,null,null,1331,"KOSTANJEVICA","KRŠKO"]
[null,null,null,null,null,null,null,null,null,null,null,null,1332,"PODBOČJE","KRŠKO"]
[null,null,null,null,null,null,null,null,null,null,null,null,1333,"PLANINA","KRŠKO"]
[null,null,null,null,null,null,null,null,null,null,null,null,1334,"ČRNEČA VAS","KRŠKO"]
[null,null,null,null,null,null,null,null,null,null,null,null,1335,"OŠTRC","KRŠKO"]
[null,null,null,null,null,null,null,null,null,null,null,null,1336,"OREHOVEC","KRŠKO"]
[null,null,null,null,null,null,null,null,null,null,null,null,1337,"STRANJE","KRŠKO"]
[null,null,null,null,null,null,null,null,null,null,null,null,1338,"DOBROVA","KRŠKO"]
[null,null,null,null,null,null,null,null,null,null,null,null,1339,"REŠTANJ","KRŠKO"]
[null,null,null,null,null,null,null,null,null,null,null,null,1340,"MRČNA SELA","KRŠKO"]
[null,null,null,null,null,null,null,null,null,null,null,null,1341,"KOPRIVNICA","KRŠKO"]
[null,null,null,null,null,null,null,null,null,null,null,null,1342,"VELIKI DOL","KRŠKO"]
[null,null,null,null,null,null,null,null,null,null,null,null,1343,"VELIKI KAMEN","KRŠKO"]
[null,null,null,null,null,null,null,null,null,null,null,null,1344,"MALI KAMEN","KRŠKO"]
[null,null,null,null,null,null,null,null,null,null,null,null,1345,"ŠEDEM","KRŠKO"]
[null,null,null,null,null,null,null,null,null,null,null,null,1346,"GORNJI LESKOVEC","KRŠKO"]
[null,null,null,null,null,null,null,null,null,null,null,null,1347,"KALIŠOVEC","KRŠKO"]
[null,null,null,null,null,null,null,null,null,null,null,null,1348,"BREZJE","KRŠKO"]
[null,null,null,null,null,null,null,null,null,null,null,null,1349,"DOVŠKO","KRŠKO"]
[null,null,null,null,null,null,null,null,null,null,null,null,1350,"SENOVO","KRŠKO"]
[null,null,null,null,null,null,null,null,null,null,null,null,1351,"ARMEŠKO","KRŠKO"]
[null,null,null,null,null,null,null,null,null,null,null,null,1352,"LOKVE","KRŠKO"]
[null,null,null,null,null,null,null,null,null,null,null,null,1353,"RAZTEZ","KRŠKO"]
[null,null,null,null,null,null,null,null,null,null,null,null,1354,"GORICA","KRŠKO"]
[null,null,null,null,null,null,null,null,null,null,null,null,1355,"ANŽE","KRŠKO"]
[null,null,null,null,null,null,null,null,null,null,null,null,1356,"STOLOVNIK","KRŠKO"]
[null,null,null,null,null,null,null,null,null,null,null,null,1357,"BRESTANICA","KRŠKO"]
[null,null,null,null,null,null,null,null,null,null,null,null,1358,"DOLNJI LESKOVEC","KRŠKO"]
[null,null,null,null,null,null,null,null,null,null,null,null,1359,"PRESLADOL","KRŠKO"]
[null,null,null,null,null,null,null,null,null,null,null,null,1360,"ROŽNO","KRŠKO"]
[null,null,null,null,null,null,null,null,null,null,null,null,1361,"PODGORJE","SEVNICA"]
[null,null,null,null,null,null,null,null,null,null,null,null,1362,"OKROGLICE","SEVNICA"]
[null,null,null,null,null,null,null,null,null,null,null,null,1363,"RADEŽ","SEVNICA"]
[null,null,null,null,null,null,null,null,null,null,null,null,1364,"LOKA PRI ZIDANEM MOSTU","SEVNICA"]
[null,null,null,null,null,null,null,null,null,null,null,null,1365,"BREG","SEVNICA"]
[null,null,null,null,null,null,null,null,null,null,null,null,1366,"LEDINA","SEVNICA"]
[null,null,null,null,null,null,null,null,null,null,null,null,1367,"ZABUKOVJE","SEVNICA"]
[null,null,null,null,null,null,null,null,null,null,null,null,1368,"POKLEK","SEVNICA"]
[null,null,null,null,null,null,null,null,null,null,null,null,1369,"TRNOVEC","SEVNICA"]
[null,null,null,null,null,null,null,null,null,null,null,null,1370,"PODVRH","SEVNICA"]
[null,null,null,null,null,null,null,null,null,null,null,null,1371,"METNI VRH","SEVNICA"]
[null,null,null,null,null,null,null,null,null,null,null,null,1372,"ŽURKOV DOL","SEVNICA"]
[null,null,null,null,null,null,null,null,null,null,null,null,1373,"ŽIGRSKI VRH","SEVNICA"]
[null,null,null,null,null,null,null,null,null,null,null,null,1374,"KRAJNA BRDA","SEVNICA"]
[null,null,null,null,null,null,null,null,null,null,null,null,1375,"SELCE","SEVNICA"]
[null,null,null,null,null,null,null,null,null,null,null,null,1376,"KLADJE","SEVNICA"]
[null,null,null,null,null,null,null,null,null,null,null,null,1377,"BLANCA","SEVNICA"]
[null,null,null,null,null,null,null,null,null,null,null,null,1378,"BREZOVO","SEVNICA"]
[null,null,null,null,null,null,null,null,null,null,null,null,1379,"SEVNICA","SEVNICA"]
[null,null,null,null,null,null,null,null,null,null,null,null,1380,"ŠMARJE","SEVNICA"]
[null,null,null,null,null,null,null,null,null,null,null,null,1381,"BOŠTANJ","SEVNICA"]
[null,null,null,null,null,null,null,null,null,null,null,null,1382,"KOMPOLJE","SEVNICA"]
[null,null,null,null,null,null,null,null,null,null,null,null,1383,"CEROVEC","SEVNICA"]
[null,null,null,null,null,null,null,null,null,null,null,null,1384,"ŠENTJANŽ","SEVNICA"]
[null,null,null,null,null,null,null,null,null,null,null,null,1385,"PODBORŠT","SEVNICA"]
[null,null,null,null,null,null,null,null,null,null,null,null,1386,"KAL","SEVNICA"]
[null,null,null,null,null,null,null,null,null,null,null,null,1387,"CIRNIK","SEVNICA"]
[null,null,null,null,null,null,null,null,null,null,null,null,1388,"PIJAVICE","SEVNICA"]
[null,null,null,null,null,null,null,null,null,null,null,null,1389,"GOVEJI DOL","SEVNICA"]
[null,null,null,null,null,null,null,null,null,null,null,null,1390,"VRH","SEVNICA"]
[null,null,null,null,null,null,null,null,null,null,null,null,1391,"LOG","SEVNICA"]
[null,null,null,null,null,null,null,null,null,null,null,null,1392,"HUBAJNICA","SEVNICA"]
[null,null,null,null,null,null,null,null,null,null,null,null,1393,"STUDENEC","SEVNICA"]
[null,null,null,null,null,null,null,null,null,null,null,null,1394,"BUČKA","SEVNICA"]
[null,null,null,null,null,null,null,null,null,null,null,null,1395,"TELČE","SEVNICA"]
[null,null,null,null,null,null,null,null,null,null,null,null,1396,"KRSINJI VRH","SEVNICA"]
[null,null,null,null,null,null,null,null,null,null,null,null,1397,"TRŽIŠČE","SEVNICA"]
[null,null,null,null,null,null,null,null,null,null,null,null,1398,"BISTRICA","TREBNJE"]
[null,null,null,null,null,null,null,null,null,null,null,null,1399,"ŠENTRUPERT","TREBNJE"]
[null,null,null,null,null,null,null,null,null,null,null,null,1400,"STRAŽA","TREBNJE"]
[null,null,null,null,null,null,null,null,null,null,null,null,1401,"NOVO ZABUKOVJE","TREBNJE"]
[null,null,null,null,null,null,null,null,null,null,null,null,1402,"SELO-MIRNA","TREBNJE"]
[null,null,null,null,null,null,null,null,null,null,null,null,1403,"ČATEŽ","TREBNJE"]
[null,null,null,null,null,null,null,null,null,null,null,null,1404,"DOLGA NJIVA","TREBNJE"]
[null,null,null,null,null,null,null,null,null,null,null,null,1405,"MALI VIDEM","TREBNJE"]
[null,null,null,null,null,null,null,null,null,null,null,null,1406,"ŠKOVEC","TREBNJE"]
[null,null,null,null,null,null,null,null,null,null,null,null,1407,"ROJE","TREBNJE"]
[null,null,null,null,null,null,null,null,null,null,null,null,1408,"ŠEVNICA","TREBNJE"]
[null,null,null,null,null,null,null,null,null,null,null,null,1409,"BREZOVICA","TREBNJE"]
[null,null,null,null,null,null,null,null,null,null,null,null,1410,"MIRNA","TREBNJE"]
[null,null,null,null,null,null,null,null,null,null,null,null,1411,"OSTROŽNIK","TREBNJE"]
[null,null,null,null,null,null,null,null,null,null,null,null,1412,"MOKRONOG","TREBNJE"]
[null,null,null,null,null,null,null,null,null,null,null,null,1413,"LAKNICE","TREBNJE"]
[null,null,null,null,null,null,null,null,null,null,null,null,1414,"JELŠEVEC","TREBNJE"]
[null,null,null,null,null,null,null,null,null,null,null,null,1415,"TREBELNO","TREBNJE"]
[null,null,null,null,null,null,null,null,null,null,null,null,1416,"STARO ZABUKOVJE","TREBNJE"]
[null,null,null,null,null,null,null,null,null,null,null,null,1417,"ORNUŠKA VAS","TREBNJE"]
[null,null,null,null,null,null,null,null,null,null,null,null,1418,"LUKOVEK","TREBNJE"]
[null,null,null,null,null,null,null,null,null,null,null,null,1419,"PONIKVE","TREBNJE"]
[null,null,null,null,null,null,null,null,null,null,null,null,1420,"ČEŠNJEVEK","TREBNJE"]
[null,null,null,null,null,null,null,null,null,null,null,null,1421,"MEDVEDJE SELO","TREBNJE"]
[null,null,null,null,null,null,null,null,null,null,null,null,1422,"TREBNJE","TREBNJE"]
[null,null,null,null,null,null,null,null,null,null,null,null,1423,"VRHTREBNJE","TREBNJE"]
[null,null,null,null,null,null,null,null,null,null,null,null,1424,"ŠTEFAN","TREBNJE"]
[null,null,null,null,null,null,null,null,null,null,null,null,1425,"VELIKA LOKA","TREBNJE"]
[null,null,null,null,null,null,null,null,null,null,null,null,1426,"PRAPREČE","TREBNJE"]
[null,null,null,null,null,null,null,null,null,null,null,null,1427,"VELIKI GABER","TREBNJE"]
[null,null,null,null,null,null,null,null,null,null,null,null,1428,"ZAGORICA","TREBNJE"]
[null,null,null,null,null,null,null,null,null,null,null,null,1429,"STEHANJA VAS","TREBNJE"]
[null,null,null,null,null,null,null,null,null,null,null,null,1430,"KNEŽJA VAS","TREBNJE"]
[null,null,null,null,null,null,null,null,null,null,null,null,1431,"DOBRNIČ","TREBNJE"]
[null,null,null,null,null,null,null,null,null,null,null,null,1432,"KORITA","TREBNJE"]
[null,null,null,null,null,null,null,null,null,null,null,null,1433,"SELA PRI ŠUMBERKU","TREBNJE"]
[null,null,null,null,null,null,null,null,null,null,null,null,1434,"GORNJI KRIŽ","NOVO MESTO"]
[null,null,null,null,null,null,null,null,null,null,null,null,1435,"REBER","NOVO MESTO"]
[null,null,null,null,null,null,null,null,null,null,null,null,1436,"ŽUŽEMBERK","NOVO MESTO"]
[null,null,null,null,null,null,null,null,null,null,null,null,1437,"ŠMIHEL PRI ŽUŽEMBERKU","NOVO MESTO"]
[null,null,null,null,null,null,null,null,null,null,null,null,1438,"ŽVIRČE","NOVO MESTO"]
[null,null,null,null,null,null,null,null,null,null,null,null,1439,"HINJE","NOVO MESTO"]
[null,null,null,null,null,null,null,null,null,null,null,null,1440,"SELA PRI HINJAH","NOVO MESTO"]
[null,null,null,null,null,null,null,null,null,null,null,null,1441,"VELIKO LIPJE","NOVO MESTO"]
[null,null,null,null,null,null,null,null,null,null,null,null,1442,"STAVČA VAS","NOVO MESTO"]
[null,null,null,null,null,null,null,null,null,null,null,null,1443,"DVOR","NOVO MESTO"]
[null,null,null,null,null,null,null,null,null,null,null,null,1444,"AJDOVEC","NOVO MESTO"]
[null,null,null,null,null,null,null,null,null,null,null,null,1445,"BREZOVA REBER","NOVO MESTO"]
[null,null,null,null,null,null,null,null,null,null,null,null,1446,"GORENJE POLJE","NOVO MESTO"]
[null,null,null,null,null,null,null,null,null,null,null,null,1447,"GORENJA STRAŽA","NOVO MESTO"]
[null,null,null,null,null,null,null,null,null,null,null,null,1448,"PREČNA","NOVO MESTO"]
[null,null,null,null,null,null,null,null,null,null,null,null,1449,"GLOBODOL","NOVO MESTO"]
[null,null,null,null,null,null,null,null,null,null,null,null,1450,"GOLOBINJEK","NOVO MESTO"]
[null,null,null,null,null,null,null,null,null,null,null,null,1451,"MIRNA PEČ","NOVO MESTO"]
[null,null,null,null,null,null,null,null,null,null,null,null,1452,"HMELJČIČ","NOVO MESTO"]
[null,null,null,null,null,null,null,null,null,null,null,null,1453,"ZAGORICA","NOVO MESTO"]
[null,null,null,null,null,null,null,null,null,null,null,null,1454,"DALJNJI VRH","NOVO MESTO"]
[null,null,null,null,null,null,null,null,null,null,null,null,1455,"BRŠLJIN","NOVO MESTO"]
[null,null,null,null,null,null,null,null,null,null,null,null,1456,"NOVO MESTO","NOVO MESTO"]
[null,null,null,null,null,null,null,null,null,null,null,null,1457,"ŽDINJA VAS","NOVO MESTO"]
[null,null,null,null,null,null,null,null,null,null,null,null,1458,"ČREŠNJICE","NOVO MESTO"]
[null,null,null,null,null,null,null,null,null,null,null,null,1459,"HERINJA VAS","NOVO MESTO"]
[null,null,null,null,null,null,null,null,null,null,null,null,1460,"ŠENTPETER","NOVO MESTO"]
[null,null,null,null,null,null,null,null,null,null,null,null,1461,"ŽALOVIČE","NOVO MESTO"]
[null,null,null,null,null,null,null,null,null,null,null,null,1462,"ZBURE","NOVO MESTO"]
[null,null,null,null,null,null,null,null,null,null,null,null,1463,"ZAGRAD","NOVO MESTO"]
[null,null,null,null,null,null,null,null,null,null,null,null,1464,"DOLE","NOVO MESTO"]
[null,null,null,null,null,null,null,null,null,null,null,null,1465,"STARA VAS","NOVO MESTO"]
[null,null,null,null,null,null,null,null,null,null,null,null,1466,"GORENJA VAS","NOVO MESTO"]
[null,null,null,null,null,null,null,null,null,null,null,null,1467,"DRUŽINSKA VAS","NOVO MESTO"]
[null,null,null,null,null,null,null,null,null,null,null,null,1468,"BELA CERKEV","NOVO MESTO"]
[null,null,null,null,null,null,null,null,null,null,null,null,1469,"TOMAŽJA VAS","NOVO MESTO"]
[null,null,null,null,null,null,null,null,null,null,null,null,1470,"DOBRAVA","NOVO MESTO"]
[null,null,null,null,null,null,null,null,null,null,null,null,1471,"MRŠEČA VAS","NOVO MESTO"]
[null,null,null,null,null,null,null,null,null,null,null,null,1472,"OSTROG","NOVO MESTO"]
[null,null,null,null,null,null,null,null,null,null,null,null,1473,"GRADIŠČE","NOVO MESTO"]
[null,null,null,null,null,null,null,null,null,null,null,null,1474,"POLHOVICA","NOVO MESTO"]
[null,null,null,null,null,null,null,null,null,null,null,null,1475,"GORENJA OREHOVICA","NOVO MESTO"]
[null,null,null,null,null,null,null,null,null,null,null,null,1476,"ŠENTJERNEJ","NOVO MESTO"]
[null,null,null,null,null,null,null,null,null,null,null,null,1477,"VRHPOLJE","NOVO MESTO"]
[null,null,null,null,null,null,null,null,null,null,null,null,1478,"GABRJE","NOVO MESTO"]
[null,null,null,null,null,null,null,null,null,null,null,null,1479,"BRUSNICE","NOVO MESTO"]
[null,null,null,null,null,null,null,null,null,null,null,null,1480,"POTOV VRH","NOVO MESTO"]
[null,null,null,null,null,null,null,null,null,null,null,null,1481,"SMOLENJA VAS","NOVO MESTO"]
[null,null,null,null,null,null,null,null,null,null,null,null,1482,"RAGOVO","NOVO MESTO"]
[null,null,null,null,null,null,null,null,null,null,null,null,1483,"KANDIJA","NOVO MESTO"]
[null,null,null,null,null,null,null,null,null,null,null,null,1484,"ŠMIHEL PRI NOVEM MESTU","NOVO MESTO"]
[null,null,null,null,null,null,null,null,null,null,null,null,1485,"GOTNA VAS","NOVO MESTO"]
[null,null,null,null,null,null,null,null,null,null,null,null,1486,"STOPIČE","NOVO MESTO"]
[null,null,null,null,null,null,null,null,null,null,null,null,1487,"ZAJČJI VRH","NOVO MESTO"]
[null,null,null,null,null,null,null,null,null,null,null,null,1488,"HRUŠICA","NOVO MESTO"]
[null,null,null,null,null,null,null,null,null,null,null,null,1489,"CEROVEC","NOVO MESTO"]
[null,null,null,null,null,null,null,null,null,null,null,null,1490,"TEŽKA VODA","NOVO MESTO"]
[null,null,null,null,null,null,null,null,null,null,null,null,1491,"LAKOVNICE","NOVO MESTO"]
[null,null,null,null,null,null,null,null,null,null,null,null,1492,"STRANSKA VAS","NOVO MESTO"]
[null,null,null,null,null,null,null,null,null,null,null,null,1493,"VELIKI PODLJUBEN","NOVO MESTO"]
[null,null,null,null,null,null,null,null,null,null,null,null,1494,"JURKA VAS","NOVO MESTO"]
[null,null,null,null,null,null,null,null,null,null,null,null,1495,"TOPLICE","NOVO MESTO"]
[null,null,null,null,null,null,null,null,null,null,null,null,1496,"PODTURN","NOVO MESTO"]
[null,null,null,null,null,null,null,null,null,null,null,null,1497,"PODSTENICE","NOVO MESTO"]
[null,null,null,null,null,null,null,null,null,null,null,null,1498,"POLJANE","NOVO MESTO"]
[null,null,null,null,null,null,null,null,null,null,null,null,1499,"STARE ŽAGE","NOVO MESTO"]
[null,null,null,null,null,null,null,null,null,null,null,null,1500,"DOBINDOL","NOVO MESTO"]
[null,null,null,null,null,null,null,null,null,null,null,null,1501,"VINJA VAS","NOVO MESTO"]
[null,null,null,null,null,null,null,null,null,null,null,null,1502,"DOLE","ČRNOMELJ"]
[null,null,null,null,null,null,null,null,null,null,null,null,1503,"SEKULIČI","ČRNOMELJ"]
[null,null,null,null,null,null,null,null,null,null,null,null,1504,"HRAST PRI JUGORJU","ČRNOMELJ"]
[null,null,null,null,null,null,null,null,null,null,null,null,1505,"BUŠINJA VAS","ČRNOMELJ"]
[null,null,null,null,null,null,null,null,null,null,null,null,1506,"LOKVICA","ČRNOMELJ"]
[null,null,null,null,null,null,null,null,null,null,null,null,1507,"GABROVEC","ČRNOMELJ"]
[null,null,null,null,null,null,null,null,null,null,null,null,1508,"BOJANJA VAS","ČRNOMELJ"]
[null,null,null,null,null,null,null,null,null,null,null,null,1509,"RADOVICA","ČRNOMELJ"]
[null,null,null,null,null,null,null,null,null,null,null,null,1510,"SLAMNA VAS","ČRNOMELJ"]
[null,null,null,null,null,null,null,null,null,null,null,null,1511,"DRAŠIČI","ČRNOMELJ"]
[null,null,null,null,null,null,null,null,null,null,null,null,1512,"BOŽAKOVO","ČRNOMELJ"]
[null,null,null,null,null,null,null,null,null,null,null,null,1513,"RADOVIČI","ČRNOMELJ"]
[null,null,null,null,null,null,null,null,null,null,null,null,1514,"ROSALNICE","ČRNOMELJ"]
[null,null,null,null,null,null,null,null,null,null,null,null,1515,"METLIKA","ČRNOMELJ"]
[null,null,null,null,null,null,null,null,null,null,null,null,1516,"PRIMOSTEK","ČRNOMELJ"]
[null,null,null,null,null,null,null,null,null,null,null,null,1517,"DOBRAVICE","ČRNOMELJ"]
[null,null,null,null,null,null,null,null,null,null,null,null,1518,"GRADAC","ČRNOMELJ"]
[null,null,null,null,null,null,null,null,null,null,null,null,1519,"PODZEMELJ","ČRNOMELJ"]
[null,null,null,null,null,null,null,null,null,null,null,null,1520,"ŠTALE","ČRNOMELJ"]
[null,null,null,null,null,null,null,null,null,null,null,null,1521,"ČRMOŠNJICE","ČRNOMELJ"]
[null,null,null,null,null,null,null,null,null,null,null,null,1522,"PRIBIŠJE","ČRNOMELJ"]
[null,null,null,null,null,null,null,null,null,null,null,null,1523,"ŠTREKLJEVEC","ČRNOMELJ"]
[null,null,null,null,null,null,null,null,null,null,null,null,1524,"SODJI VRH","ČRNOMELJ"]
[null,null,null,null,null,null,null,null,null,null,null,null,1525,"ČREŠNJEVEC","ČRNOMELJ"]
[null,null,null,null,null,null,null,null,null,null,null,null,1526,"VINJI VRH","ČRNOMELJ"]
[null,null,null,null,null,null,null,null,null,null,null,null,1527,"SEMIČ","ČRNOMELJ"]
[null,null,null,null,null,null,null,null,null,null,null,null,1528,"BREZJE PRI VINJEM VRHU","ČRNOMELJ"]
[null,null,null,null,null,null,null,null,null,null,null,null,1529,"KOT","ČRNOMELJ"]
[null,null,null,null,null,null,null,null,null,null,null,null,1530,"BLATNIK","ČRNOMELJ"]
[null,null,null,null,null,null,null,null,null,null,null,null,1531,"GOLOBINJEK","ČRNOMELJ"]
[null,null,null,null,null,null,null,null,null,null,null,null,1532,"PLANINA","ČRNOMELJ"]
[null,null,null,null,null,null,null,null,null,null,null,null,1533,"KLEČ","ČRNOMELJ"]
[null,null,null,null,null,null,null,null,null,null,null,null,1534,"PETROVA VAS","ČRNOMELJ"]
[null,null,null,null,null,null,null,null,null,null,null,null,1535,"ČRNOMELJ","ČRNOMELJ"]
[null,null,null,null,null,null,null,null,null,null,null,null,1536,"TALČJI VRH","ČRNOMELJ"]
[null,null,null,null,null,null,null,null,null,null,null,null,1537,"BUKOVA GORA","ČRNOMELJ"]
[null,null,null,null,null,null,null,null,null,null,null,null,1538,"DOLENJA PODGORA","ČRNOMELJ"]
[null,null,null,null,null,null,null,null,null,null,null,null,1539,"MAVRLEN","ČRNOMELJ"]
[null,null,null,null,null,null,null,null,null,null,null,null,1540,"DOBLIČE","ČRNOMELJ"]
[null,null,null,null,null,null,null,null,null,null,null,null,1541,"LOKA","ČRNOMELJ"]
[null,null,null,null,null,null,null,null,null,null,null,null,1542,"ZASTAVA","ČRNOMELJ"]
[null,null,null,null,null,null,null,null,null,null,null,null,1543,"KRASINEC","ČRNOMELJ"]
[null,null,null,null,null,null,null,null,null,null,null,null,1544,"GRIBLJE","ČRNOMELJ"]
[null,null,null,null,null,null,null,null,null,null,null,null,1545,"BEDENJ","ČRNOMELJ"]
[null,null,null,null,null,null,null,null,null,null,null,null,1546,"TRIBUČE","ČRNOMELJ"]
[null,null,null,null,null,null,null,null,null,null,null,null,1547,"BUTORAJ","ČRNOMELJ"]
[null,null,null,null,null,null,null,null,null,null,null,null,1548,"GOLEK","ČRNOMELJ"]
[null,null,null,null,null,null,null,null,null,null,null,null,1549,"TANČA GORA","ČRNOMELJ"]
[null,null,null,null,null,null,null,null,null,null,null,null,1550,"DRAGATUŠ","ČRNOMELJ"]
[null,null,null,null,null,null,null,null,null,null,null,null,1551,"BELČJI VRH","ČRNOMELJ"]
[null,null,null,null,null,null,null,null,null,null,null,null,1552,"ADLEŠIČI","ČRNOMELJ"]
[null,null,null,null,null,null,null,null,null,null,null,null,1553,"BOJANCI","ČRNOMELJ"]
[null,null,null,null,null,null,null,null,null,null,null,null,1554,"HRAST PRI VINICI","ČRNOMELJ"]
[null,null,null,null,null,null,null,null,null,null,null,null,1555,"NOVA LIPA","ČRNOMELJ"]
[null,null,null,null,null,null,null,null,null,null,null,null,1556,"STARA LIPA","ČRNOMELJ"]
[null,null,null,null,null,null,null,null,null,null,null,null,1557,"STARI TRG OB KOLPI","ČRNOMELJ"]
[null,null,null,null,null,null,null,null,null,null,null,null,1558,"SODEVCI","ČRNOMELJ"]
[null,null,null,null,null,null,null,null,null,null,null,null,1559,"RADENCI","ČRNOMELJ"]
[null,null,null,null,null,null,null,null,null,null,null,null,1560,"SINJI VRH","ČRNOMELJ"]
[null,null,null,null,null,null,null,null,null,null,null,null,1561,"DAMELJ","ČRNOMELJ"]
[null,null,null,null,null,null,null,null,null,null,null,null,1562,"UČAKOVCI","ČRNOMELJ"]
[null,null,null,null,null,null,null,null,null,null,null,null,1563,"VINICA","ČRNOMELJ"]
[null,null,null,null,null,null,null,null,null,null,null,null,1564,"PRELOKA","ČRNOMELJ"]
[null,null,null,null,null,null,null,null,null,null,null,null,1565,"MARINDOL","ČRNOMELJ"]
[null,null,null,null,null,null,null,null,null,null,null,null,1566,"ŽUNIČI","ČRNOMELJ"]
[null,null,null,null,null,null,null,null,null,null,null,null,1567,"POTISKAVEC","KOČEVJE"]
[null,null,null,null,null,null,null,null,null,null,null,null,1568,"PODTABOR","KOČEVJE"]
[null,null,null,null,null,null,null,null,null,null,null,null,1569,"POLOM","KOČEVJE"]
[null,null,null,null,null,null,null,null,null,null,null,null,1570,"STARI LOG","KOČEVJE"]
[null,null,null,null,null,null,null,null,null,null,null,null,1571,"SMUKA","KOČEVJE"]
[null,null,null,null,null,null,null,null,null,null,null,null,1572,"ROG","KOČEVJE"]
[null,null,null,null,null,null,null,null,null,null,null,null,1573,"MALA GORA","KOČEVJE"]
[null,null,null,null,null,null,null,null,null,null,null,null,1574,"KOBLARJI","KOČEVJE"]
[null,null,null,null,null,null,null,null,null,null,null,null,1575,"STARA CERKEV","KOČEVJE"]
[null,null,null,null,null,null,null,null,null,null,null,null,1576,"MAHOVNIK","KOČEVJE"]
[null,null,null,null,null,null,null,null,null,null,null,null,1577,"KOČEVJE","KOČEVJE"]
[null,null,null,null,null,null,null,null,null,null,null,null,1578,"ŽELJNE","KOČEVJE"]
[null,null,null,null,null,null,null,null,null,null,null,null,1579,"RAJHENAV","KOČEVJE"]
[null,null,null,null,null,null,null,null,null,null,null,null,1580,"ONEK","KOČEVJE"]
[null,null,null,null,null,null,null,null,null,null,null,null,1581,"LIVOLD","KOČEVJE"]
[null,null,null,null,null,null,null,null,null,null,null,null,1582,"KOČE","KOČEVJE"]
[null,null,null,null,null,null,null,null,null,null,null,null,1583,"GOTENICA","KOČEVJE"]
[null,null,null,null,null,null,null,null,null,null,null,null,1584,"DRAGA","KOČEVJE"]
[null,null,null,null,null,null,null,null,null,null,null,null,1585,"TRAVA","KOČEVJE"]
[null,null,null,null,null,null,null,null,null,null,null,null,1586,"ŽURGE","KOČEVJE"]
[null,null,null,null,null,null,null,null,null,null,null,null,1587,"OSILNICA","KOČEVJE"]
[null,null,null,null,null,null,null,null,null,null,null,null,1588,"BOSLJIVA LOKA","KOČEVJE"]
[null,null,null,null,null,null,null,null,null,null,null,null,1589,"BOROVEC","KOČEVJE"]
[null,null,null,null,null,null,null,null,null,null,null,null,1590,"KOČEVSKA REKA","KOČEVJE"]
[null,null,null,null,null,null,null,null,null,null,null,null,1591,"NOVI LAZI","KOČEVJE"]
[null,null,null,null,null,null,null,null,null,null,null,null,1592,"ŠTALCERJI","KOČEVJE"]
[null,null,null,null,null,null,null,null,null,null,null,null,1593,"ČRNI POTOK","KOČEVJE"]
[null,null,null,null,null,null,null,null,null,null,null,null,1594,"MOZELJ","KOČEVJE"]
[null,null,null,null,null,null,null,null,null,null,null,null,1596,"BREZJE","KOČEVJE"]
[null,null,null,null,null,null,null,null,null,null,null,null,1597,"KOPRIVNIK","KOČEVJE"]
[null,null,null,null,null,null,null,null,null,null,null,null,1599,"NEMŠKA LOKA","KOČEVJE"]
[null,null,null,null,null,null,null,null,null,null,null,null,1600,"KNEŽJA LIPA","KOČEVJE"]
[null,null,null,null,null,null,null,null,null,null,null,null,1601,"ČEPLJE","KOČEVJE"]
[null,null,null,null,null,null,null,null,null,null,null,null,1602,"PREDGRAD","KOČEVJE"]
[null,null,null,null,null,null,null,null,null,null,null,null,1603,"DOL","KOČEVJE"]
[null,null,null,null,null,null,null,null,null,null,null,null,1604,"SPODNJI LOG","KOČEVJE"]
[null,null,null,null,null,null,null,null,null,null,null,null,1605,"RAJNDOL","KOČEVJE"]
[null,null,null,null,null,null,null,null,null,null,null,null,1606,"ŠKRILJ","KOČEVJE"]
[null,null,null,null,null,null,null,null,null,null,null,null,1607,"SUHOR","KOČEVJE"]
[null,null,null,null,null,null,null,null,null,null,null,null,1608,"BRIGA","KOČEVJE"]
[null,null,null,null,null,null,null,null,null,null,null,null,1609,"BANJA LOKA","KOČEVJE"]
[null,null,null,null,null,null,null,null,null,null,null,null,1610,"VRH","KOČEVJE"]
[null,null,null,null,null,null,null,null,null,null,null,null,1611,"FARA","KOČEVJE"]
[null,null,null,null,null,null,null,null,null,null,null,null,1612,"PIRČE","KOČEVJE"]
[null,null,null,null,null,null,null,null,null,null,null,null,1613,"KUŽELJ","KOČEVJE"]
[null,null,null,null,null,null,null,null,null,null,null,null,1614,"SLEMENA","KOČEVJE"]
[null,null,null,null,null,null,null,null,null,null,null,null,1615,"PODPOLJANE","KOČEVJE"]
[null,null,null,null,null,null,null,null,null,null,null,null,1616,"VELIKE POLJANE","KOČEVJE"]
[null,null,null,null,null,null,null,null,null,null,null,null,1617,"SUŠJE","KOČEVJE"]
[null,null,null,null,null,null,null,null,null,null,null,null,1618,"VINICE","KOČEVJE"]
[null,null,null,null,null,null,null,null,null,null,null,null,1619,"SODRAŽICA","KOČEVJE"]
[null,null,null,null,null,null,null,null,null,null,null,null,1620,"ŽIMARICE","KOČEVJE"]
[null,null,null,null,null,null,null,null,null,null,null,null,1621,"GORA","KOČEVJE"]
[null,null,null,null,null,null,null,null,null,null,null,null,1622,"ZAMOSTEC","KOČEVJE"]
[null,null,null,null,null,null,null,null,null,null,null,null,1623,"JURJEVICA","KOČEVJE"]
[null,null,null,null,null,null,null,null,null,null,null,null,1624,"GORENJA VAS","KOČEVJE"]
[null,null,null,null,null,null,null,null,null,null,null,null,1625,"RIBNICA","KOČEVJE"]
[null,null,null,null,null,null,null,null,null,null,null,null,1626,"GORIČA VAS","KOČEVJE"]
[null,null,null,null,null,null,null,null,null,null,null,null,1627,"PRIGORICA","KOČEVJE"]
[null,null,null,null,null,null,null,null,null,null,null,null,1628,"DANE","KOČEVJE"]
[null,null,null,null,null,null,null,null,null,null,null,null,1629,"DOLENJA VAS","KOČEVJE"]
[null,null,null,null,null,null,null,null,null,null,null,null,1630,"RAKITNICA","KOČEVJE"]
[null,null,null,null,null,null,null,null,null,null,null,null,1631,"GRČARICE","KOČEVJE"]
[null,null,null,null,null,null,null,null,null,null,null,null,1632,"OTOK I","CERKNICA"]
[null,null,null,null,null,null,null,null,null,null,null,null,1633,"GORENJE JEZERO","CERKNICA"]
[null,null,null,null,null,null,null,null,null,null,null,null,1634,"DANE","CERKNICA"]
[null,null,null,null,null,null,null,null,null,null,null,null,1635,"PODCERKEV","CERKNICA"]
[null,null,null,null,null,null,null,null,null,null,null,null,1636,"LOŽ","CERKNICA"]
[null,null,null,null,null,null,null,null,null,null,null,null,1637,"STARI TRG PRI LOŽU","CERKNICA"]
[null,null,null,null,null,null,null,null,null,null,null,null,1638,"KNEŽJA NJIVA","CERKNICA"]
[null,null,null,null,null,null,null,null,null,null,null,null,1639,"VRHNIKA","CERKNICA"]
[null,null,null,null,null,null,null,null,null,null,null,null,1640,"RETJE","KOČEVJE"]
[null,null,null,null,null,null,null,null,null,null,null,null,1641,"HRIB","KOČEVJE"]
[null,null,null,null,null,null,null,null,null,null,null,null,1642,"TRAVNIK","KOČEVJE"]
[null,null,null,null,null,null,null,null,null,null,null,null,1643,"POLJANE","CERKNICA"]
[null,null,null,null,null,null,null,null,null,null,null,null,1644,"IGA VAS","CERKNICA"]
[null,null,null,null,null,null,null,null,null,null,null,null,1645,"VIŠEVEK","CERKNICA"]
[null,null,null,null,null,null,null,null,null,null,null,null,1646,"PUDOB","CERKNICA"]
[null,null,null,null,null,null,null,null,null,null,null,null,1647,"NADLESK","CERKNICA"]
[null,null,null,null,null,null,null,null,null,null,null,null,1648,"KOZARIŠČE","CERKNICA"]
[null,null,null,null,null,null,null,null,null,null,null,null,1649,"VRH","CERKNICA"]
[null,null,null,null,null,null,null,null,null,null,null,null,1650,"BABNA POLICA","CERKNICA"]
[null,null,null,null,null,null,null,null,null,null,null,null,1651,"BABNO POLJE","CERKNICA"]
[null,null,null,null,null,null,null,null,null,null,null,null,1652,"RAKITNA","LJUBLJANA"]
[null,null,null,null,null,null,null,null,null,null,null,null,1653,"OSREDEK","CERKNICA"]
[null,null,null,null,null,null,null,null,null,null,null,null,1654,"ŽILCE","CERKNICA"]
[null,null,null,null,null,null,null,null,null,null,null,null,1655,"KRANJČE","CERKNICA"]
[null,null,null,null,null,null,null,null,null,null,null,null,1656,"OTAVE","CERKNICA"]
[null,null,null,null,null,null,null,null,null,null,null,null,1657,"KOŽLJEK","CERKNICA"]
[null,null,null,null,null,null,null,null,null,null,null,null,1658,"BEZULJAK","CERKNICA"]
[null,null,null,null,null,null,null,null,null,null,null,null,1659,"RAKEK","CERKNICA"]
[null,null,null,null,null,null,null,null,null,null,null,null,1660,"UNEC","CERKNICA"]
[null,null,null,null,null,null,null,null,null,null,null,null,1661,"BEGUNJE PRI CERKNICI","CERKNICA"]
[null,null,null,null,null,null,null,null,null,null,null,null,1662,"SELŠČEK","CERKNICA"]
[null,null,null,null,null,null,null,null,null,null,null,null,1663,"CAJNARJE","CERKNICA"]
[null,null,null,null,null,null,null,null,null,null,null,null,1664,"ŠTRUKLJEVA VAS","CERKNICA"]
[null,null,null,null,null,null,null,null,null,null,null,null,1665,"JERŠIČE","CERKNICA"]
[null,null,null,null,null,null,null,null,null,null,null,null,1666,"RAVNE PRI ŽILCAH","CERKNICA"]
[null,null,null,null,null,null,null,null,null,null,null,null,1667,"HITENO","CERKNICA"]
[null,null,null,null,null,null,null,null,null,null,null,null,1668,"ZALES","CERKNICA"]
[null,null,null,null,null,null,null,null,null,null,null,null,1669,"KREMENCA","CERKNICA"]
[null,null,null,null,null,null,null,null,null,null,null,null,1670,"ULAKA","CERKNICA"]
[null,null,null,null,null,null,null,null,null,null,null,null,1671,"GRADIŠKO","CERKNICA"]
[null,null,null,null,null,null,null,null,null,null,null,null,1672,"RAVNIK","CERKNICA"]
[null,null,null,null,null,null,null,null,null,null,null,null,1673,"VELIKE BLOKE","CERKNICA"]
[null,null,null,null,null,null,null,null,null,null,null,null,1674,"RADLEK","CERKNICA"]
[null,null,null,null,null,null,null,null,null,null,null,null,1675,"GRAHOVO","CERKNICA"]
[null,null,null,null,null,null,null,null,null,null,null,null,1676,"CERKNICA","CERKNICA"]
[null,null,null,null,null,null,null,null,null,null,null,null,1677,"DOLENJA VAS","CERKNICA"]
[null,null,null,null,null,null,null,null,null,null,null,null,1678,"OTOK II","CERKNICA"]
[null,null,null,null,null,null,null,null,null,null,null,null,1679,"LIPSENJ","CERKNICA"]
[null,null,null,null,null,null,null,null,null,null,null,null,1680,"ŽEROVNICA","CERKNICA"]
[null,null,null,null,null,null,null,null,null,null,null,null,1681,"BLOČICE","CERKNICA"]
[null,null,null,null,null,null,null,null,null,null,null,null,1682,"STUDENO","CERKNICA"]
[null,null,null,null,null,null,null,null,null,null,null,null,1683,"NOVA VAS","CERKNICA"]
[null,null,null,null,null,null,null,null,null,null,null,null,1684,"VOLČJE","CERKNICA"]
[null,null,null,null,null,null,null,null,null,null,null,null,1685,"KRAJIČ","CERKNICA"]
[null,null,null,null,null,null,null,null,null,null,null,null,1686,"STRMCA","CERKNICA"]
[null,null,null,null,null,null,null,null,null,null,null,null,1687,"VELIKI VRH","CERKNICA"]
[null,null,null,null,null,null,null,null,null,null,null,null,1688,"RUNARSKO","CERKNICA"]
[null,null,null,null,null,null,null,null,null,null,null,null,1689,"BENETE","CERKNICA"]
[null,null,null,null,null,null,null,null,null,null,null,null,1690,"STUDENEC","CERKNICA"]
[null,null,null,null,null,null,null,null,null,null,null,null,1691,"HUDI VRH","CERKNICA"]
[null,null,null,null,null,null,null,null,null,null,null,null,1692,"METULJE","CERKNICA"]
[null,null,null,null,null,null,null,null,null,null,null,null,1693,"TOPOL","CERKNICA"]
[null,null,null,null,null,null,null,null,null,null,null,null,1694,"RAVNE PRI TOPOLU","CERKNICA"]
[null,null,null,null,null,null,null,null,null,null,null,null,1695,"KARLOVŠKO PREDMESTJE","LJUBLJANA"]
[null,null,null,null,null,null,null,null,null,null,null,null,1696,"RUDNIK","LJUBLJANA"]
[null,null,null,null,null,null,null,null,null,null,null,null,1697,"LANIŠČE","LJUBLJANA"]
[null,null,null,null,null,null,null,null,null,null,null,null,1698,"PIJAVA GORICA","LJUBLJANA"]
[null,null,null,null,null,null,null,null,null,null,null,null,1699,"DOBRAVICA","LJUBLJANA"]
[null,null,null,null,null,null,null,null,null,null,null,null,1700,"IG","LJUBLJANA"]
[null,null,null,null,null,null,null,null,null,null,null,null,1701,"IŠKA LOKA","LJUBLJANA"]
[null,null,null,null,null,null,null,null,null,null,null,null,1702,"TOMIŠELJ","LJUBLJANA"]
[null,null,null,null,null,null,null,null,null,null,null,null,1703,"JEZERO","LJUBLJANA"]
[null,null,null,null,null,null,null,null,null,null,null,null,1704,"KAMNIK","LJUBLJANA"]
[null,null,null,null,null,null,null,null,null,null,null,null,1705,"PRESERJE","LJUBLJANA"]
[null,null,null,null,null,null,null,null,null,null,null,null,1706,"VRBLJENE","LJUBLJANA"]
[null,null,null,null,null,null,null,null,null,null,null,null,1707,"IŠKA VAS","LJUBLJANA"]
[null,null,null,null,null,null,null,null,null,null,null,null,1708,"GOLO","LJUBLJANA"]
[null,null,null,null,null,null,null,null,null,null,null,null,1709,"ŽELIMLJE","LJUBLJANA"]
[null,null,null,null,null,null,null,null,null,null,null,null,1710,"GRADIŠČE","LJUBLJANA"]
[null,null,null,null,null,null,null,null,null,null,null,null,1711,"TURJAK","LJUBLJANA"]
[null,null,null,null,null,null,null,null,null,null,null,null,1712,"ZAPOTOK","LJUBLJANA"]
[null,null,null,null,null,null,null,null,null,null,null,null,1713,"KRVAVA PEČ","LJUBLJANA"]
[null,null,null,null,null,null,null,null,null,null,null,null,1714,"SELO PRI ROBU","LJUBLJANA"]
[null,null,null,null,null,null,null,null,null,null,null,null,1715,"OSOLNIK","LJUBLJANA"]
[null,null,null,null,null,null,null,null,null,null,null,null,1716,"ULAKA","LJUBLJANA"]
[null,null,null,null,null,null,null,null,null,null,null,null,1717,"VELIKE LAŠČE","LJUBLJANA"]
[null,null,null,null,null,null,null,null,null,null,null,null,1718,"DVORSKA VAS","LJUBLJANA"]
[null,null,null,null,null,null,null,null,null,null,null,null,1719,"LUŽARJI","LJUBLJANA"]
[null,null,null,null,null,null,null,null,null,null,null,null,1720,"KRAKOVSKO PREDMESTJE","LJUBLJANA"]
[null,null,null,null,null,null,null,null,null,null,null,null,1721,"GRADIŠČE I","LJUBLJANA"]
[null,null,null,null,null,null,null,null,null,null,null,null,1722,"TRNOVSKO PREDMESTJE","LJUBLJANA"]
[null,null,null,null,null,null,null,null,null,null,null,null,1723,"VIČ","LJUBLJANA"]
[null,null,null,null,null,null,null,null,null,null,null,null,1724,"BREZOVICA","LJUBLJANA"]
[null,null,null,null,null,null,null,null,null,null,null,null,1725,"AJDOVŠČINA","LJUBLJANA"]
[null,null,null,null,null,null,null,null,null,null,null,null,1726,"ŠENTPETER","LJUBLJANA"]
[null,null,null,null,null,null,null,null,null,null,null,null,1727,"POLJANSKO PREDMESTJE","LJUBLJANA"]
[null,null,null,null,null,null,null,null,null,null,null,null,1728,"LJUBLJANA MESTO","LJUBLJANA"]
[null,null,null,null,null,null,null,null,null,null,null,null,1729,"ŠMARTNO OB SAVI","LJUBLJANA"]
[null,null,null,null,null,null,null,null,null,null,null,null,1730,"MOSTE","LJUBLJANA"]
[null,null,null,null,null,null,null,null,null,null,null,null,1731,"UDMAT","LJUBLJANA"]
[null,null,null,null,null,null,null,null,null,null,null,null,1732,"ŠTEPANJA VAS","LJUBLJANA"]
[null,null,null,null,null,null,null,null,null,null,null,null,1733,"BIZOVIK","LJUBLJANA"]
[null,null,null,null,null,null,null,null,null,null,null,null,1734,"JEŽICA","LJUBLJANA"]
[null,null,null,null,null,null,null,null,null,null,null,null,1735,"STOŽICE","LJUBLJANA"]
[null,null,null,null,null,null,null,null,null,null,null,null,1736,"BRINJE I","LJUBLJANA"]
[null,null,null,null,null,null,null,null,null,null,null,null,1737,"TABOR","LJUBLJANA"]
[null,null,null,null,null,null,null,null,null,null,null,null,1738,"DRAVLJE","LJUBLJANA"]
[null,null,null,null,null,null,null,null,null,null,null,null,1739,"ZGORNJA ŠIŠKA","LJUBLJANA"]
[null,null,null,null,null,null,null,null,null,null,null,null,1740,"SPODNJA ŠIŠKA","LJUBLJANA"]
[null,null,null,null,null,null,null,null,null,null,null,null,1741,"VODICE","LJUBLJANA"]
[null,null,null,null,null,null,null,null,null,null,null,null,1742,"REPNJE","LJUBLJANA"]
[null,null,null,null,null,null,null,null,null,null,null,null,1743,"BUKOVICA","LJUBLJANA"]
[null,null,null,null,null,null,null,null,null,null,null,null,1744,"ŠINKOV TURN","LJUBLJANA"]
[null,null,null,null,null,null,null,null,null,null,null,null,1745,"VESCA","LJUBLJANA"]
[null,null,null,null,null,null,null,null,null,null,null,null,1746,"RAŠICA","LJUBLJANA"]
[null,null,null,null,null,null,null,null,null,null,null,null,1747,"POLJE","LJUBLJANA"]
[null,null,null,null,null,null,null,null,null,null,null,null,1748,"SKARUČNA","LJUBLJANA"]
[null,null,null,null,null,null,null,null,null,null,null,null,1749,"GAMELJNE","LJUBLJANA"]
[null,null,null,null,null,null,null,null,null,null,null,null,1750,"ŠMARTNO POD ŠMARNO GORO","LJUBLJANA"]
[null,null,null,null,null,null,null,null,null,null,null,null,1751,"TACEN","LJUBLJANA"]
[null,null,null,null,null,null,null,null,null,null,null,null,1752,"STANEŽIČE","LJUBLJANA"]
[null,null,null,null,null,null,null,null,null,null,null,null,1753,"VIŽMARJE","LJUBLJANA"]
[null,null,null,null,null,null,null,null,null,null,null,null,1754,"ŠENTVID NAD LJUBLJANO","LJUBLJANA"]
[null,null,null,null,null,null,null,null,null,null,null,null,1755,"GLINCE","LJUBLJANA"]
[null,null,null,null,null,null,null,null,null,null,null,null,1756,"ČRNUČE","LJUBLJANA"]
[null,null,null,null,null,null,null,null,null,null,null,null,1757,"NADGORICA","LJUBLJANA"]
[null,null,null,null,null,null,null,null,null,null,null,null,1758,"DRAGOMELJ","DOMŽALE"]
[null,null,null,null,null,null,null,null,null,null,null,null,1759,"PODGORICA","LJUBLJANA"]
[null,null,null,null,null,null,null,null,null,null,null,null,1760,"BERIČEVO","LJUBLJANA"]
[null,null,null,null,null,null,null,null,null,null,null,null,1761,"DOL PRI LJUBLJANI","LJUBLJANA"]
[null,null,null,null,null,null,null,null,null,null,null,null,1762,"PODGORA","LJUBLJANA"]
[null,null,null,null,null,null,null,null,null,null,null,null,1763,"KLEČE","LJUBLJANA"]
[null,null,null,null,null,null,null,null,null,null,null,null,1764,"KRIŽEVSKA VAS","LJUBLJANA"]
[null,null,null,null,null,null,null,null,null,null,null,null,1765,"VINJE","LJUBLJANA"]
[null,null,null,null,null,null,null,null,null,null,null,null,1766,"PETELINJE","LJUBLJANA"]
[null,null,null,null,null,null,null,null,null,null,null,null,1767,"DOLSKO","LJUBLJANA"]
[null,null,null,null,null,null,null,null,null,null,null,null,1768,"SENOŽETI","LJUBLJANA"]
[null,null,null,null,null,null,null,null,null,null,null,null,1769,"LAZE","LJUBLJANA"]
[null,null,null,null,null,null,null,null,null,null,null,null,1770,"KAŠELJ","LJUBLJANA"]
[null,null,null,null,null,null,null,null,null,null,null,null,1771,"ZADOBROVA","LJUBLJANA"]
[null,null,null,null,null,null,null,null,null,null,null,null,1772,"SLAPE","LJUBLJANA"]
[null,null,null,null,null,null,null,null,null,null,null,null,1773,"DOBRUNJE","LJUBLJANA"]
[null,null,null,null,null,null,null,null,null,null,null,null,1774,"PODMOLNIK","LJUBLJANA"]
[null,null,null,null,null,null,null,null,null,null,null,null,1775,"SOSTRO","LJUBLJANA"]
[null,null,null,null,null,null,null,null,null,null,null,null,1776,"LIPOGLAV","LJUBLJANA"]
[null,null,null,null,null,null,null,null,null,null,null,null,1777,"JAVOR","LJUBLJANA"]
[null,null,null,null,null,null,null,null,null,null,null,null,1778,"VOLAVLJE","LJUBLJANA"]
[null,null,null,null,null,null,null,null,null,null,null,null,1779,"TREBELJEVO","LJUBLJANA"]
[null,null,null,null,null,null,null,null,null,null,null,null,1780,"BLEČJI VRH","GROSUPLJE"]
[null,null,null,null,null,null,null,null,null,null,null,null,1781,"POLICA","GROSUPLJE"]
[null,null,null,null,null,null,null,null,null,null,null,null,1782,"STARA VAS","GROSUPLJE"]
[null,null,null,null,null,null,null,null,null,null,null,null,1783,"GROSUPLJE - NASELJE","GROSUPLJE"]
[null,null,null,null,null,null,null,null,null,null,null,null,1784,"STRANSKA VAS","GROSUPLJE"]
[null,null,null,null,null,null,null,null,null,null,null,null,1785,"SELA","GROSUPLJE"]
[null,null,null,null,null,null,null,null,null,null,null,null,1786,"ŠMARJE","GROSUPLJE"]
[null,null,null,null,null,null,null,null,null,null,null,null,1787,"MALI VRH","GROSUPLJE"]
[null,null,null,null,null,null,null,null,null,null,null,null,1788,"VINO","GROSUPLJE"]
[null,null,null,null,null,null,null,null,null,null,null,null,1789,"PONOVA VAS","GROSUPLJE"]
[null,null,null,null,null,null,null,null,null,null,null,null,1790,"SLIVNICA","GROSUPLJE"]
[null,null,null,null,null,null,null,null,null,null,null,null,1791,"ŽALNA","GROSUPLJE"]
[null,null,null,null,null,null,null,null,null,null,null,null,1792,"LUČE","GROSUPLJE"]
[null,null,null,null,null,null,null,null,null,null,null,null,1793,"ILOVA GORA","GROSUPLJE"]
[null,null,null,null,null,null,null,null,null,null,null,null,1794,"RAČNA","GROSUPLJE"]
[null,null,null,null,null,null,null,null,null,null,null,null,1795,"VELIKE LIPLJENE","GROSUPLJE"]
[null,null,null,null,null,null,null,null,null,null,null,null,1796,"CESTA","GROSUPLJE"]
[null,null,null,null,null,null,null,null,null,null,null,null,1797,"ZDENSKA VAS","GROSUPLJE"]
[null,null,null,null,null,null,null,null,null,null,null,null,1798,"ZAGORICA","GROSUPLJE"]
[null,null,null,null,null,null,null,null,null,null,null,null,1799,"VIDEM DOBREPOLJE","GROSUPLJE"]
[null,null,null,null,null,null,null,null,null,null,null,null,1800,"PODGORA","GROSUPLJE"]
[null,null,null,null,null,null,null,null,null,null,null,null,1801,"KOMPOLJE","GROSUPLJE"]
[null,null,null,null,null,null,null,null,null,null,null,null,1802,"LESKOVEC","GROSUPLJE"]
[null,null,null,null,null,null,null,null,null,null,null,null,1803,"METNAJ","GROSUPLJE"]
[null,null,null,null,null,null,null,null,null,null,null,null,1804,"ČEŠNJICE","GROSUPLJE"]
[null,null,null,null,null,null,null,null,null,null,null,null,1805,"BUKOVICA","GROSUPLJE"]
[null,null,null,null,null,null,null,null,null,null,null,null,1806,"SOBRAČE","LITIJA"]
[null,null,null,null,null,null,null,null,null,null,null,null,1807,"TEMENICA","GROSUPLJE"]
[null,null,null,null,null,null,null,null,null,null,null,null,1808,"MALE DOLE","GROSUPLJE"]
[null,null,null,null,null,null,null,null,null,null,null,null,1809,"ŠENTVID","GROSUPLJE"]
[null,null,null,null,null,null,null,null,null,null,null,null,1810,"STIČNA","GROSUPLJE"]
[null,null,null,null,null,null,null,null,null,null,null,null,1811,"DOBRAVA","GROSUPLJE"]
[null,null,null,null,null,null,null,null,null,null,null,null,1812,"DEDNI DOL","GROSUPLJE"]
[null,null,null,null,null,null,null,null,null,null,null,null,1813,"VIŠNJA GORA","GROSUPLJE"]
[null,null,null,null,null,null,null,null,null,null,null,null,1814,"KRIŠKA VAS","GROSUPLJE"]
[null,null,null,null,null,null,null,null,null,null,null,null,1815,"DRAGA","GROSUPLJE"]
[null,null,null,null,null,null,null,null,null,null,null,null,1816,"HUDO","GROSUPLJE"]
[null,null,null,null,null,null,null,null,null,null,null,null,1817,"RADOHOVA VAS","GROSUPLJE"]
[null,null,null,null,null,null,null,null,null,null,null,null,1818,"PODBORŠT","GROSUPLJE"]
[null,null,null,null,null,null,null,null,null,null,null,null,1819,"VELIKE PECE","GROSUPLJE"]
[null,null,null,null,null,null,null,null,null,null,null,null,1820,"GORENJA VAS","GROSUPLJE"]
[null,null,null,null,null,null,null,null,null,null,null,null,1821,"VRHE","GROSUPLJE"]
[null,null,null,null,null,null,null,null,null,null,null,null,1822,"MULJAVA","GROSUPLJE"]
[null,null,null,null,null,null,null,null,null,null,null,null,1823,"DOB","GROSUPLJE"]
[null,null,null,null,null,null,null,null,null,null,null,null,1824,"VALIČNA VAS","GROSUPLJE"]
[null,null,null,null,null,null,null,null,null,null,null,null,1825,"ZAGRADEC","GROSUPLJE"]
[null,null,null,null,null,null,null,null,null,null,null,null,1826,"SUŠICA","GROSUPLJE"]
[null,null,null,null,null,null,null,null,null,null,null,null,1827,"KRKA","GROSUPLJE"]
[null,null,null,null,null,null,null,null,null,null,null,null,1828,"PODBUKOVJE","GROSUPLJE"]
[null,null,null,null,null,null,null,null,null,null,null,null,1829,"VELIKO GLOBOKO","GROSUPLJE"]
[null,null,null,null,null,null,null,null,null,null,null,null,1830,"AMBRUS","GROSUPLJE"]
[null,null,null,null,null,null,null,null,null,null,null,null,1831,"VIŠNJE","GROSUPLJE"]
[null,null,null,null,null,null,null,null,null,null,null,null,1832,"VAČE","LITIJA"]
[null,null,null,null,null,null,null,null,null,null,null,null,1833,"SAVA PRI LITIJI","LITIJA"]
[null,null,null,null,null,null,null,null,null,null,null,null,1834,"KONJ","LITIJA"]
[null,null,null,null,null,null,null,null,null,null,null,null,1835,"HOTIČ","LITIJA"]
[null,null,null,null,null,null,null,null,null,null,null,null,1836,"KRESNICE","LITIJA"]
[null,null,null,null,null,null,null,null,null,null,null,null,1837,"KRESNIŠKI VRH","LITIJA"]
[null,null,null,null,null,null,null,null,null,null,null,null,1838,"LITIJA","LITIJA"]
[null,null,null,null,null,null,null,null,null,null,null,null,1839,"JABLANICA","LITIJA"]
[null,null,null,null,null,null,null,null,null,null,null,null,1840,"POLŠNIK","LITIJA"]
[null,null,null,null,null,null,null,null,null,null,null,null,1841,"VELIKA GOBA","LITIJA"]
[null,null,null,null,null,null,null,null,null,null,null,null,1842,"DOLE PRI LITIJI","LITIJA"]
[null,null,null,null,null,null,null,null,null,null,null,null,1843,"PRELESJE","LITIJA"]
[null,null,null,null,null,null,null,null,null,null,null,null,1844,"VODICE","LITIJA"]
[null,null,null,null,null,null,null,null,null,null,null,null,1845,"MORAVČE","LITIJA"]
[null,null,null,null,null,null,null,null,null,null,null,null,1846,"LIBERGA","LITIJA"]
[null,null,null,null,null,null,null,null,null,null,null,null,1847,"ŠMARTNO","LITIJA"]
[null,null,null,null,null,null,null,null,null,null,null,null,1848,"ŠTANGA","LITIJA"]
[null,null,null,null,null,null,null,null,null,null,null,null,1849,"VINTARJEVEC","LITIJA"]
[null,null,null,null,null,null,null,null,null,null,null,null,1850,"JEŽNI VRH","LITIJA"]
[null,null,null,null,null,null,null,null,null,null,null,null,1851,"GRADIŠČE","LITIJA"]
[null,null,null,null,null,null,null,null,null,null,null,null,1852,"POLJANE","LITIJA"]
[null,null,null,null,null,null,null,null,null,null,null,null,1853,"OKROG","LITIJA"]
[null,null,null,null,null,null,null,null,null,null,null,null,1854,"TIHABOJ","LITIJA"]
[null,null,null,null,null,null,null,null,null,null,null,null,1855,"HRASTNIK-MESTO","TRBOVLJE"]
[null,null,null,null,null,null,null,null,null,null,null,null,1856,"DOL PRI HRASTNIKU","TRBOVLJE"]
[null,null,null,null,null,null,null,null,null,null,null,null,1857,"MARNO","TRBOVLJE"]
[null,null,null,null,null,null,null,null,null,null,null,null,1858,"TURJE","TRBOVLJE"]
[null,null,null,null,null,null,null,null,null,null,null,null,1859,"GORE","TRBOVLJE"]
[null,null,null,null,null,null,null,null,null,null,null,null,1860,"ŠIRJE","LAŠKO"]
[null,null,null,null,null,null,null,null,null,null,null,null,1861,"OBREŽJE","LAŠKO"]
[null,null,null,null,null,null,null,null,null,null,null,null,1862,"RADEČE","LAŠKO"]
[null,null,null,null,null,null,null,null,null,null,null,null,1863,"PODKRAJ","TRBOVLJE"]
[null,null,null,null,null,null,null,null,null,null,null,null,1864,"SVIBNO","LAŠKO"]
[null,null,null,null,null,null,null,null,null,null,null,null,1865,"NJIVICE","LAŠKO"]
[null,null,null,null,null,null,null,null,null,null,null,null,1866,"HOTEMEŽ","LAŠKO"]
[null,null,null,null,null,null,null,null,null,null,null,null,1867,"VRHOVO","LAŠKO"]
[null,null,null,null,null,null,null,null,null,null,null,null,1868,"KNEZDOL","TRBOVLJE"]
[null,null,null,null,null,null,null,null,null,null,null,null,1869,"ČEČE","TRBOVLJE"]
[null,null,null,null,null,null,null,null,null,null,null,null,1870,"OJSTRO","TRBOVLJE"]
[null,null,null,null,null,null,null,null,null,null,null,null,1871,"TRBOVLJE","TRBOVLJE"]
[null,null,null,null,null,null,null,null,null,null,null,null,1872,"DOBOVEC","TRBOVLJE"]
[null,null,null,null,null,null,null,null,null,null,null,null,1873,"HRASTNIK PRI TROJANAH","TRBOVLJE"]
[null,null,null,null,null,null,null,null,null,null,null,null,1874,"BREZJE","TRBOVLJE"]
[null,null,null,null,null,null,null,null,null,null,null,null,1875,"ČEMŠENIK","TRBOVLJE"]
[null,null,null,null,null,null,null,null,null,null,null,null,1876,"JESENOVO","TRBOVLJE"]
[null,null,null,null,null,null,null,null,null,null,null,null,1877,"VRHE I","TRBOVLJE"]
[null,null,null,null,null,null,null,null,null,null,null,null,1878,"KOTREDEŽ","TRBOVLJE"]
[null,null,null,null,null,null,null,null,null,null,null,null,1879,"RŽIŠE","TRBOVLJE"]
[null,null,null,null,null,null,null,null,null,null,null,null,1880,"KOLOVRAT","TRBOVLJE"]
[null,null,null,null,null,null,null,null,null,null,null,null,1881,"KANDRŠE","TRBOVLJE"]
[null,null,null,null,null,null,null,null,null,null,null,null,1882,"ZABAVA","TRBOVLJE"]
[null,null,null,null,null,null,null,null,null,null,null,null,1883,"ŠEMNIK","TRBOVLJE"]
[null,null,null,null,null,null,null,null,null,null,null,null,1884,"LOKE PRI ZAGORJU","TRBOVLJE"]
[null,null,null,null,null,null,null,null,null,null,null,null,1885,"POTOŠKA VAS","TRBOVLJE"]
[null,null,null,null,null,null,null,null,null,null,null,null,1886,"ZAGORJE-MESTO","TRBOVLJE"]
[null,null,null,null,null,null,null,null,null,null,null,null,1887,"ŠENTLAMBERT","TRBOVLJE"]
[null,null,null,null,null,null,null,null,null,null,null,null,1888,"KONJŠICA","LITIJA"]
[null,null,null,null,null,null,null,null,null,null,null,null,1889,"PODKUM","TRBOVLJE"]
[null,null,null,null,null,null,null,null,null,null,null,null,1890,"ČRNA","KAMNIK"]
[null,null,null,null,null,null,null,null,null,null,null,null,1891,"ŽUPANJE NJIVE","KAMNIK"]
[null,null,null,null,null,null,null,null,null,null,null,null,1892,"BISTRIČICA","KAMNIK"]
[null,null,null,null,null,null,null,null,null,null,null,null,1893,"STRANJE","KAMNIK"]
[null,null,null,null,null,null,null,null,null,null,null,null,1894,"GODIČ","KAMNIK"]
[null,null,null,null,null,null,null,null,null,null,null,null,1895,"GOZD","KAMNIK"]
[null,null,null,null,null,null,null,null,null,null,null,null,1896,"TUČNA","KAMNIK"]
[null,null,null,null,null,null,null,null,null,null,null,null,1897,"NEVLJE","KAMNIK"]
[null,null,null,null,null,null,null,null,null,null,null,null,1898,"MEKINJE","KAMNIK"]
[null,null,null,null,null,null,null,null,null,null,null,null,1899,"KOŠIŠE","KAMNIK"]
[null,null,null,null,null,null,null,null,null,null,null,null,1900,"TUNJICE","KAMNIK"]
[null,null,null,null,null,null,null,null,null,null,null,null,1901,"MLAKA","KAMNIK"]
[null,null,null,null,null,null,null,null,null,null,null,null,1902,"KLANEC","KAMNIK"]
[null,null,null,null,null,null,null,null,null,null,null,null,1903,"NASOVČE","KAMNIK"]
[null,null,null,null,null,null,null,null,null,null,null,null,1904,"KAPLJA VAS","KAMNIK"]
[null,null,null,null,null,null,null,null,null,null,null,null,1905,"MOSTE","KAMNIK"]
[null,null,null,null,null,null,null,null,null,null,null,null,1906,"SUHADOLE","KAMNIK"]
[null,null,null,null,null,null,null,null,null,null,null,null,1907,"KRIŽ","KAMNIK"]
[null,null,null,null,null,null,null,null,null,null,null,null,1908,"PODGORJE","KAMNIK"]
[null,null,null,null,null,null,null,null,null,null,null,null,1909,"ŠMARCA","KAMNIK"]
[null,null,null,null,null,null,null,null,null,null,null,null,1910,"VOLČJI POTOK","KAMNIK"]
[null,null,null,null,null,null,null,null,null,null,null,null,1911,"KAMNIK","KAMNIK"]
[null,null,null,null,null,null,null,null,null,null,null,null,1912,"PALOVČE","KAMNIK"]
[null,null,null,null,null,null,null,null,null,null,null,null,1913,"PODHRUŠKA","KAMNIK"]
[null,null,null,null,null,null,null,null,null,null,null,null,1914,"ZNOJILE","KAMNIK"]
[null,null,null,null,null,null,null,null,null,null,null,null,1915,"HRUŠEVKA","KAMNIK"]
[null,null,null,null,null,null,null,null,null,null,null,null,1916,"LOKE","KAMNIK"]
[null,null,null,null,null,null,null,null,null,null,null,null,1917,"ŠMARTNO V TUHINJU","KAMNIK"]
[null,null,null,null,null,null,null,null,null,null,null,null,1918,"PŠAJNOVICA","KAMNIK"]
[null,null,null,null,null,null,null,null,null,null,null,null,1919,"ZGORNJI TUHINJ","KAMNIK"]
[null,null,null,null,null,null,null,null,null,null,null,null,1920,"HRIBI","KAMNIK"]
[null,null,null,null,null,null,null,null,null,null,null,null,1921,"ŠPITALIČ","KAMNIK"]
[null,null,null,null,null,null,null,null,null,null,null,null,1922,"ZGORNJI MOTNIK","KAMNIK"]
[null,null,null,null,null,null,null,null,null,null,null,null,1923,"MOTNIK","KAMNIK"]
[null,null,null,null,null,null,null,null,null,null,null,null,1924,"TROJANE","DOMŽALE"]
[null,null,null,null,null,null,null,null,null,null,null,null,1925,"UČAK","DOMŽALE"]
[null,null,null,null,null,null,null,null,null,null,null,null,1926,"ŠENTOŽBOLT","DOMŽALE"]
[null,null,null,null,null,null,null,null,null,null,null,null,1927,"BLAGOVICA","DOMŽALE"]
[null,null,null,null,null,null,null,null,null,null,null,null,1928,"ČEŠNJICE","DOMŽALE"]
[null,null,null,null,null,null,null,null,null,null,null,null,1929,"KORENO","DOMŽALE"]
[null,null,null,null,null,null,null,null,null,null,null,null,1930,"ŽIROVŠE","DOMŽALE"]
[null,null,null,null,null,null,null,null,null,null,null,null,1931,"KRAŠNJA","DOMŽALE"]
[null,null,null,null,null,null,null,null,null,null,null,null,1932,"ZLATO POLJE","DOMŽALE"]
[null,null,null,null,null,null,null,null,null,null,null,null,1933,"LUKOVICA","DOMŽALE"]
[null,null,null,null,null,null,null,null,null,null,null,null,1934,"RAFOLČE","DOMŽALE"]
[null,null,null,null,null,null,null,null,null,null,null,null,1935,"ROVA","DOMŽALE"]
[null,null,null,null,null,null,null,null,null,null,null,null,1936,"RADOMLJE","DOMŽALE"]
[null,null,null,null,null,null,null,null,null,null,null,null,1937,"HOMEC","DOMŽALE"]
[null,null,null,null,null,null,null,null,null,null,null,null,1938,"MENGEŠ","DOMŽALE"]
[null,null,null,null,null,null,null,null,null,null,null,null,1939,"DOBENO","DOMŽALE"]
[null,null,null,null,null,null,null,null,null,null,null,null,1940,"LOKA","DOMŽALE"]
[null,null,null,null,null,null,null,null,null,null,null,null,1943,"DOB","DOMŽALE"]
[null,null,null,null,null,null,null,null,null,null,null,null,1944,"PREVOJE","DOMŽALE"]
[null,null,null,null,null,null,null,null,null,null,null,null,1945,"KRTINA","DOMŽALE"]
[null,null,null,null,null,null,null,null,null,null,null,null,1946,"STUDENEC","DOMŽALE"]
[null,null,null,null,null,null,null,null,null,null,null,null,1947,"SPODNJE KOSEZE","DOMŽALE"]
[null,null,null,null,null,null,null,null,null,null,null,null,1948,"KRAŠCE","DOMŽALE"]
[null,null,null,null,null,null,null,null,null,null,null,null,1949,"NEGASTRN","DOMŽALE"]
[null,null,null,null,null,null,null,null,null,null,null,null,1950,"LIMBARSKA GORA","DOMŽALE"]
[null,null,null,null,null,null,null,null,null,null,null,null,1951,"ZGORNJE KOSEZE","DOMŽALE"]
[null,null,null,null,null,null,null,null,null,null,null,null,1952,"PEČE","DOMŽALE"]
[null,null,null,null,null,null,null,null,null,null,null,null,1953,"DRTIJA","DOMŽALE"]
[null,null,null,null,null,null,null,null,null,null,null,null,1954,"VELIKA VAS","DOMŽALE"]
[null,null,null,null,null,null,null,null,null,null,null,null,1955,"MORAVČE","DOMŽALE"]
[null,null,null,null,null,null,null,null,null,null,null,null,1956,"VRHPOLJE","DOMŽALE"]
[null,null,null,null,null,null,null,null,null,null,null,null,1957,"TROJICA","DOMŽALE"]
[null,null,null,null,null,null,null,null,null,null,null,null,1958,"BREZOVICA","DOMŽALE"]
[null,null,null,null,null,null,null,null,null,null,null,null,1959,"DOMŽALE","DOMŽALE"]
[null,null,null,null,null,null,null,null,null,null,null,null,1961,"TRZIN","DOMŽALE"]
[null,null,null,null,null,null,null,null,null,null,null,null,1962,"DEPALA VAS","DOMŽALE"]
[null,null,null,null,null,null,null,null,null,null,null,null,1963,"ŠTUDA","DOMŽALE"]
[null,null,null,null,null,null,null,null,null,null,null,null,1964,"IHAN","DOMŽALE"]
[null,null,null,null,null,null,null,null,null,null,null,null,1965,"BRDO","DOMŽALE"]
[null,null,null,null,null,null,null,null,null,null,null,null,1966,"SELO","DOMŽALE"]
[null,null,null,null,null,null,null,null,null,null,null,null,1967,"MOŠE","LJUBLJANA"]
[null,null,null,null,null,null,null,null,null,null,null,null,1968,"HRAŠE","LJUBLJANA"]
[null,null,null,null,null,null,null,null,null,null,null,null,1969,"ZAPOGE","LJUBLJANA"]
[null,null,null,null,null,null,null,null,null,null,null,null,1970,"SMLEDNIK","LJUBLJANA"]
[null,null,null,null,null,null,null,null,null,null,null,null,1971,"ZBILJE","LJUBLJANA"]
[null,null,null,null,null,null,null,null,null,null,null,null,1972,"SENICA","LJUBLJANA"]
[null,null,null,null,null,null,null,null,null,null,null,null,1973,"MEDVODE","LJUBLJANA"]
[null,null,null,null,null,null,null,null,null,null,null,null,1974,"ZGORNJE PIRNIČE","LJUBLJANA"]
[null,null,null,null,null,null,null,null,null,null,null,null,1975,"SPODNJE PIRNIČE","LJUBLJANA"]
[null,null,null,null,null,null,null,null,null,null,null,null,1976,"PRESKA","LJUBLJANA"]
[null,null,null,null,null,null,null,null,null,null,null,null,1977,"SORA","LJUBLJANA"]
[null,null,null,null,null,null,null,null,null,null,null,null,1978,"STUDENČICE","LJUBLJANA"]
[null,null,null,null,null,null,null,null,null,null,null,null,1979,"ŽLEBE","LJUBLJANA"]
[null,null,null,null,null,null,null,null,null,null,null,null,1980,"TOPOL","LJUBLJANA"]
[null,null,null,null,null,null,null,null,null,null,null,null,1981,"GOLO BRDO","LJUBLJANA"]
[null,null,null,null,null,null,null,null,null,null,null,null,1982,"ŠUJICA","LJUBLJANA"]
[null,null,null,null,null,null,null,null,null,null,null,null,1983,"BABNA GORA","LJUBLJANA"]
[null,null,null,null,null,null,null,null,null,null,null,null,1984,"SELO NAD POLHOVIM GRADCEM","LJUBLJANA"]
[null,null,null,null,null,null,null,null,null,null,null,null,1985,"ČRNI VRH","LJUBLJANA"]
[null,null,null,null,null,null,null,null,null,null,null,null,1986,"POLHOV GRADEC","LJUBLJANA"]
[null,null,null,null,null,null,null,null,null,null,null,null,1987,"SETNIK","LJUBLJANA"]
[null,null,null,null,null,null,null,null,null,null,null,null,1988,"BUTAJNOVA","LJUBLJANA"]
[null,null,null,null,null,null,null,null,null,null,null,null,1989,"ŠENTJOŠT","LJUBLJANA"]
[null,null,null,null,null,null,null,null,null,null,null,null,1990,"ŽAŽAR","LJUBLJANA"]
[null,null,null,null,null,null,null,null,null,null,null,null,1991,"VRZDENEC","LJUBLJANA"]
[null,null,null,null,null,null,null,null,null,null,null,null,1992,"HORJUL","LJUBLJANA"]
[null,null,null,null,null,null,null,null,null,null,null,null,1993,"ZAKLANEC","LJUBLJANA"]
[null,null,null,null,null,null,null,null,null,null,null,null,1994,"DOBROVA","LJUBLJANA"]
[null,null,null,null,null,null,null,null,null,null,null,null,1995,"PODSMREKA","LJUBLJANA"]
[null,null,null,null,null,null,null,null,null,null,null,null,1996,"LOG","VRHNIKA"]
[null,null,null,null,null,null,null,null,null,null,null,null,1997,"BLATNA BREZOVICA","VRHNIKA"]
[null,null,null,null,null,null,null,null,null,null,null,null,1998,"VELIKA LIGOJNA","VRHNIKA"]
[null,null,null,null,null,null,null,null,null,null,null,null,1999,"PODLIPA","VRHNIKA"]
[null,null,null,null,null,null,null,null,null,null,null,null,2000,"ZAPLANA","VRHNIKA"]
[null,null,null,null,null,null,null,null,null,null,null,null,2001,"STARA VRHNIKA","VRHNIKA"]
[null,null,null,null,null,null,null,null,null,null,null,null,2002,"VRHNIKA","VRHNIKA"]
[null,null,null,null,null,null,null,null,null,null,null,null,2003,"VERD","VRHNIKA"]
[null,null,null,null,null,null,null,null,null,null,null,null,2004,"BOROVNICA","VRHNIKA"]
[null,null,null,null,null,null,null,null,null,null,null,null,2005,"BREG","VRHNIKA"]
[null,null,null,null,null,null,null,null,null,null,null,null,2006,"ZABOČEVO","VRHNIKA"]
[null,null,null,null,null,null,null,null,null,null,null,null,2007,"VRH","LOGATEC"]
[null,null,null,null,null,null,null,null,null,null,null,null,2008,"ROVTE","LOGATEC"]
[null,null,null,null,null,null,null,null,null,null,null,null,2009,"PETKOVEC","LOGATEC"]
[null,null,null,null,null,null,null,null,null,null,null,null,2010,"ŽIBRŠE","LOGATEC"]
[null,null,null,null,null,null,null,null,null,null,null,null,2011,"MEDVEDJE BRDO","LOGATEC"]
[null,null,null,null,null,null,null,null,null,null,null,null,2012,"NOVI SVET","LOGATEC"]
[null,null,null,null,null,null,null,null,null,null,null,null,2013,"HOTEDRŠICA","LOGATEC"]
[null,null,null,null,null,null,null,null,null,null,null,null,2014,"RAVNIK","LOGATEC"]
[null,null,null,null,null,null,null,null,null,null,null,null,2015,"GORENJI LOGATEC","LOGATEC"]
[null,null,null,null,null,null,null,null,null,null,null,null,2016,"BLEKOVA VAS","LOGATEC"]
[null,null,null,null,null,null,null,null,null,null,null,null,2017,"DOLENJI LOGATEC","LOGATEC"]
[null,null,null,null,null,null,null,null,null,null,null,null,2018,"LAZE","LOGATEC"]
[null,null,null,null,null,null,null,null,null,null,null,null,2019,"GRČAREVEC","LOGATEC"]
[null,null,null,null,null,null,null,null,null,null,null,null,2020,"LEDINICA","ŠKOFJA LOKA"]
[null,null,null,null,null,null,null,null,null,null,null,null,2021,"DOBRAČEVA","ŠKOFJA LOKA"]
[null,null,null,null,null,null,null,null,null,null,null,null,2022,"ŽIROVSKI VRH","ŠKOFJA LOKA"]
[null,null,null,null,null,null,null,null,null,null,null,null,2023,"ŽIRI","ŠKOFJA LOKA"]
[null,null,null,null,null,null,null,null,null,null,null,null,2024,"VRSNIK II","ŠKOFJA LOKA"]
[null,null,null,null,null,null,null,null,null,null,null,null,2025,"OPALE","ŠKOFJA LOKA"]
[null,null,null,null,null,null,null,null,null,null,null,null,2026,"PEVNO","ŠKOFJA LOKA"]
[null,null,null,null,null,null,null,null,null,null,null,null,2027,"STARA LOKA","ŠKOFJA LOKA"]
[null,null,null,null,null,null,null,null,null,null,null,null,2028,"DORFARJE","ŠKOFJA LOKA"]
[null,null,null,null,null,null,null,null,null,null,null,null,2029,"STARI DVOR","ŠKOFJA LOKA"]
[null,null,null,null,null,null,null,null,null,null,null,null,2030,"SUHA","ŠKOFJA LOKA"]
[null,null,null,null,null,null,null,null,null,null,null,null,2031,"GODEŠIČ","ŠKOFJA LOKA"]
[null,null,null,null,null,null,null,null,null,null,null,null,2032,"RETEČE","ŠKOFJA LOKA"]
[null,null,null,null,null,null,null,null,null,null,null,null,2033,"DRAGA","ŠKOFJA LOKA"]
[null,null,null,null,null,null,null,null,null,null,null,null,2034,"PUŠTAL","ŠKOFJA LOKA"]
[null,null,null,null,null,null,null,null,null,null,null,null,2035,"ŠKOFJA LOKA","ŠKOFJA LOKA"]
[null,null,null,null,null,null,null,null,null,null,null,null,2036,"SOPOTNICA","ŠKOFJA LOKA"]
[null,null,null,null,null,null,null,null,null,null,null,null,2037,"PODVRH","ŠKOFJA LOKA"]
[null,null,null,null,null,null,null,null,null,null,null,null,2038,"DOLENČICE","ŠKOFJA LOKA"]
[null,null,null,null,null,null,null,null,null,null,null,null,2039,"GORENJA RAVAN","ŠKOFJA LOKA"]
[null,null,null,null,null,null,null,null,null,null,null,null,2040,"PODOBENO","ŠKOFJA LOKA"]
[null,null,null,null,null,null,null,null,null,null,null,null,2041,"VISOKO","ŠKOFJA LOKA"]
[null,null,null,null,null,null,null,null,null,null,null,null,2042,"ZMINEC","ŠKOFJA LOKA"]
[null,null,null,null,null,null,null,null,null,null,null,null,2043,"BARBARA","ŠKOFJA LOKA"]
[null,null,null,null,null,null,null,null,null,null,null,null,2044,"OŽBOLT","ŠKOFJA LOKA"]
[null,null,null,null,null,null,null,null,null,null,null,null,2045,"STANIŠE","ŠKOFJA LOKA"]
[null,null,null,null,null,null,null,null,null,null,null,null,2046,"KOVSKI VRH","ŠKOFJA LOKA"]
[null,null,null,null,null,null,null,null,null,null,null,null,2047,"DOBJE","ŠKOFJA LOKA"]
[null,null,null,null,null,null,null,null,null,null,null,null,2048,"DOLENJE BRDO","ŠKOFJA LOKA"]
[null,null,null,null,null,null,null,null,null,null,null,null,2049,"HOTAVLJE","ŠKOFJA LOKA"]
[null,null,null,null,null,null,null,null,null,null,null,null,2050,"LESKOVICA","ŠKOFJA LOKA"]
[null,null,null,null,null,null,null,null,null,null,null,null,2051,"PODJELOVO BRDO","ŠKOFJA LOKA"]
[null,null,null,null,null,null,null,null,null,null,null,null,2052,"LANIŠE","ŠKOFJA LOKA"]
[null,null,null,null,null,null,null,null,null,null,null,null,2053,"JAVORJEV DOL","ŠKOFJA LOKA"]
[null,null,null,null,null,null,null,null,null,null,null,null,2054,"KOPRIVNIK","ŠKOFJA LOKA"]
[null,null,null,null,null,null,null,null,null,null,null,null,2055,"STARA OSELICA","ŠKOFJA LOKA"]
[null,null,null,null,null,null,null,null,null,null,null,null,2056,"TREBIJA","ŠKOFJA LOKA"]
[null,null,null,null,null,null,null,null,null,null,null,null,2057,"GORENJA VAS","ŠKOFJA LOKA"]
[null,null,null,null,null,null,null,null,null,null,null,null,2058,"DOLENJA DOBRAVA","ŠKOFJA LOKA"]
[null,null,null,null,null,null,null,null,null,null,null,null,2059,"LUČINE","ŠKOFJA LOKA"]
[null,null,null,null,null,null,null,null,null,null,null,null,2060,"DRAŽGOŠE","ŠKOFJA LOKA"]
[null,null,null,null,null,null,null,null,null,null,null,null,2061,"PODLONK","ŠKOFJA LOKA"]
[null,null,null,null,null,null,null,null,null,null,null,null,2062,"STUDENO","ŠKOFJA LOKA"]
[null,null,null,null,null,null,null,null,null,null,null,null,2063,"KALIŠE","ŠKOFJA LOKA"]
[null,null,null,null,null,null,null,null,null,null,null,null,2064,"SELCA","ŠKOFJA LOKA"]
[null,null,null,null,null,null,null,null,null,null,null,null,2065,"BUKOVŠČICA","ŠKOFJA LOKA"]
[null,null,null,null,null,null,null,null,null,null,null,null,2066,"DOLENJA VAS","ŠKOFJA LOKA"]
[null,null,null,null,null,null,null,null,null,null,null,null,2067,"BUKOVICA","ŠKOFJA LOKA"]
[null,null,null,null,null,null,null,null,null,null,null,null,2068,"ZGORNJA LUŠA","ŠKOFJA LOKA"]
[null,null,null,null,null,null,null,null,null,null,null,null,2069,"LENART","ŠKOFJA LOKA"]
[null,null,null,null,null,null,null,null,null,null,null,null,2070,"MARTINJ VRH","ŠKOFJA LOKA"]
[null,null,null,null,null,null,null,null,null,null,null,null,2071,"ŽELEZNIKI","ŠKOFJA LOKA"]
[null,null,null,null,null,null,null,null,null,null,null,null,2072,"ZALI LOG","ŠKOFJA LOKA"]
[null,null,null,null,null,null,null,null,null,null,null,null,2073,"DANJE","ŠKOFJA LOKA"]
[null,null,null,null,null,null,null,null,null,null,null,null,2074,"SORICA","ŠKOFJA LOKA"]
[null,null,null,null,null,null,null,null,null,null,null,null,2075,"DAVČA","ŠKOFJA LOKA"]
[null,null,null,null,null,null,null,null,null,null,null,null,2076,"ZGORNJE JEZERSKO","KRANJ"]
[null,null,null,null,null,null,null,null,null,null,null,null,2077,"SPODNJE JEZERSKO","KRANJ"]
[null,null,null,null,null,null,null,null,null,null,null,null,2078,"KOKRA","KRANJ"]
[null,null,null,null,null,null,null,null,null,null,null,null,2079,"ŠENTURŠKA GORA","KRANJ"]
[null,null,null,null,null,null,null,null,null,null,null,null,2080,"ŠTEFANJA GORA","KRANJ"]
[null,null,null,null,null,null,null,null,null,null,null,null,2081,"OLŠEVEK","KRANJ"]
[null,null,null,null,null,null,null,null,null,null,null,null,2082,"TUPALIČE","KRANJ"]
[null,null,null,null,null,null,null,null,null,null,null,null,2083,"BREG OB KOKRI","KRANJ"]
[null,null,null,null,null,null,null,null,null,null,null,null,2084,"BELA","KRANJ"]
[null,null,null,null,null,null,null,null,null,null,null,null,2085,"BABNI VRT","KRANJ"]
[null,null,null,null,null,null,null,null,null,null,null,null,2086,"SREDNJA VAS","KRANJ"]
[null,null,null,null,null,null,null,null,null,null,null,null,2087,"GOLNIK","KRANJ"]
[null,null,null,null,null,null,null,null,null,null,null,null,2088,"GORIČE","KRANJ"]
[null,null,null,null,null,null,null,null,null,null,null,null,2089,"TENETIŠE","KRANJ"]
[null,null,null,null,null,null,null,null,null,null,null,null,2090,"VOJVODIN BORŠT I","KRANJ"]
[null,null,null,null,null,null,null,null,null,null,null,null,2091,"VOJVODIN BORŠT II","KRANJ"]
[null,null,null,null,null,null,null,null,null,null,null,null,2092,"DUPLJE","KRANJ"]
[null,null,null,null,null,null,null,null,null,null,null,null,2093,"PODBREZJE","KRANJ"]
[null,null,null,null,null,null,null,null,null,null,null,null,2094,"ŽEJE","KRANJ"]
[null,null,null,null,null,null,null,null,null,null,null,null,2095,"STRAHINJ","KRANJ"]
[null,null,null,null,null,null,null,null,null,null,null,null,2096,"NAKLO","KRANJ"]
[null,null,null,null,null,null,null,null,null,null,null,null,2097,"OKROGLO","KRANJ"]
[null,null,null,null,null,null,null,null,null,null,null,null,2098,"STRUŽEVO","KRANJ"]
[null,null,null,null,null,null,null,null,null,null,null,null,2099,"PIVKA","KRANJ"]
[null,null,null,null,null,null,null,null,null,null,null,null,2100,"KRANJ","KRANJ"]
[null,null,null,null,null,null,null,null,null,null,null,null,2101,"RUPA","KRANJ"]
[null,null,null,null,null,null,null,null,null,null,null,null,2102,"KOKRICA","KRANJ"]
[null,null,null,null,null,null,null,null,null,null,null,null,2103,"PREDOSLJE","KRANJ"]
[null,null,null,null,null,null,null,null,null,null,null,null,2104,"SUHA","KRANJ"]
[null,null,null,null,null,null,null,null,null,null,null,null,2105,"BRITOF","KRANJ"]
[null,null,null,null,null,null,null,null,null,null,null,null,2106,"VISOKO","KRANJ"]
[null,null,null,null,null,null,null,null,null,null,null,null,2107,"LUŽE","KRANJ"]
[null,null,null,null,null,null,null,null,null,null,null,null,2108,"VELESOVO","KRANJ"]
[null,null,null,null,null,null,null,null,null,null,null,null,2109,"ČEŠNJEVEK","KRANJ"]
[null,null,null,null,null,null,null,null,null,null,null,null,2110,"GRAD","KRANJ"]
[null,null,null,null,null,null,null,null,null,null,null,null,2111,"PŠATA","KRANJ"]
[null,null,null,null,null,null,null,null,null,null,null,null,2112,"ŠMARTNO","KRANJ"]
[null,null,null,null,null,null,null,null,null,null,null,null,2113,"ZALOG","KRANJ"]
[null,null,null,null,null,null,null,null,null,null,null,null,2114,"DOBRAVA","KRANJ"]
[null,null,null,null,null,null,null,null,null,null,null,null,2115,"LAHOVČE","KRANJ"]
[null,null,null,null,null,null,null,null,null,null,null,null,2116,"SPODNJI BRNIK","KRANJ"]
[null,null,null,null,null,null,null,null,null,null,null,null,2117,"ZGORNJI BRNIK","KRANJ"]
[null,null,null,null,null,null,null,null,null,null,null,null,2118,"CERKLJE","KRANJ"]
[null,null,null,null,null,null,null,null,null,null,null,null,2119,"ŠENČUR","KRANJ"]
[null,null,null,null,null,null,null,null,null,null,null,null,2120,"PRIMSKOVO","KRANJ"]
[null,null,null,null,null,null,null,null,null,null,null,null,2121,"KLANEC","KRANJ"]
[null,null,null,null,null,null,null,null,null,null,null,null,2122,"HUJE","KRANJ"]
[null,null,null,null,null,null,null,null,null,null,null,null,2123,"ČIRČIČE","KRANJ"]
[null,null,null,null,null,null,null,null,null,null,null,null,2124,"HRASTJE","KRANJ"]
[null,null,null,null,null,null,null,null,null,null,null,null,2125,"VOGLJE","KRANJ"]
[null,null,null,null,null,null,null,null,null,null,null,null,2126,"TRBOJE","KRANJ"]
[null,null,null,null,null,null,null,null,null,null,null,null,2127,"NEMILJE","KRANJ"]
[null,null,null,null,null,null,null,null,null,null,null,null,2128,"ZGORNJA BESNICA","KRANJ"]
[null,null,null,null,null,null,null,null,null,null,null,null,2129,"SPODNJA BESNICA","KRANJ"]
[null,null,null,null,null,null,null,null,null,null,null,null,2130,"PŠEVO","KRANJ"]
[null,null,null,null,null,null,null,null,null,null,null,null,2131,"STRAŽIŠČE","KRANJ"]
[null,null,null,null,null,null,null,null,null,null,null,null,2132,"BITNJE","KRANJ"]
[null,null,null,null,null,null,null,null,null,null,null,null,2133,"KRIŽNA GORA","ŠKOFJA LOKA"]
[null,null,null,null,null,null,null,null,null,null,null,null,2134,"ŽABNICA","KRANJ"]
[null,null,null,null,null,null,null,null,null,null,null,null,2135,"DRULOVKA","KRANJ"]
[null,null,null,null,null,null,null,null,null,null,null,null,2136,"BREG OB SAVI","KRANJ"]
[null,null,null,null,null,null,null,null,null,null,null,null,2137,"JAMA","KRANJ"]
[null,null,null,null,null,null,null,null,null,null,null,null,2138,"PRAŠE","KRANJ"]
[null,null,null,null,null,null,null,null,null,null,null,null,2139,"MAVČIČE","KRANJ"]
[null,null,null,null,null,null,null,null,null,null,null,null,2140,"PODREČA","KRANJ"]
[null,null,null,null,null,null,null,null,null,null,null,null,2141,"PODLJUBELJ","KRANJ"]
[null,null,null,null,null,null,null,null,null,null,null,null,2142,"LOM POD STORŽIČEM","KRANJ"]
[null,null,null,null,null,null,null,null,null,null,null,null,2143,"TRŽIČ","KRANJ"]
[null,null,null,null,null,null,null,null,null,null,null,null,2144,"BISTRICA","KRANJ"]
[null,null,null,null,null,null,null,null,null,null,null,null,2145,"LEŠE","KRANJ"]
[null,null,null,null,null,null,null,null,null,null,null,null,2146,"KOVOR","KRANJ"]
[null,null,null,null,null,null,null,null,null,null,null,null,2147,"KRIŽE","KRANJ"]
[null,null,null,null,null,null,null,null,null,null,null,null,2148,"SENIČNO","KRANJ"]
[null,null,null,null,null,null,null,null,null,null,null,null,2149,"ŽIGANJA VAS","KRANJ"]
[null,null,null,null,null,null,null,null,null,null,null,null,2150,"ZVIRČE","KRANJ"]
[null,null,null,null,null,null,null,null,null,null,null,null,2151,"BEGUNJE","RADOVLJICA"]
[null,null,null,null,null,null,null,null,null,null,null,null,2152,"SREDNJA VAS","RADOVLJICA"]
[null,null,null,null,null,null,null,null,null,null,null,null,2153,"OTOK","RADOVLJICA"]
[null,null,null,null,null,null,null,null,null,null,null,null,2154,"NOVA VAS","RADOVLJICA"]
[null,null,null,null,null,null,null,null,null,null,null,null,2155,"HRAŠE","RADOVLJICA"]
[null,null,null,null,null,null,null,null,null,null,null,null,2156,"RADOVLJICA","RADOVLJICA"]
[null,null,null,null,null,null,null,null,null,null,null,null,2157,"PREDTRG","RADOVLJICA"]
[null,null,null,null,null,null,null,null,null,null,null,null,2158,"MOŠNJE","RADOVLJICA"]
[null,null,null,null,null,null,null,null,null,null,null,null,2159,"BREZJE","RADOVLJICA"]
[null,null,null,null,null,null,null,null,null,null,null,null,2160,"LJUBNO","RADOVLJICA"]
[null,null,null,null,null,null,null,null,null,null,null,null,2161,"ZALOŠE","RADOVLJICA"]
[null,null,null,null,null,null,null,null,null,null,null,null,2162,"DOBRAVA PRI KROPI","RADOVLJICA"]
[null,null,null,null,null,null,null,null,null,null,null,null,2163,"KAMNA GORICA","RADOVLJICA"]
[null,null,null,null,null,null,null,null,null,null,null,null,2164,"LANCOVO","RADOVLJICA"]
[null,null,null,null,null,null,null,null,null,null,null,null,2165,"KROPA","RADOVLJICA"]
[null,null,null,null,null,null,null,null,null,null,null,null,2166,"ČEŠNJICA PRI KROPI","RADOVLJICA"]
[null,null,null,null,null,null,null,null,null,null,null,null,2167,"RATEČE","JESENICE"]
[null,null,null,null,null,null,null,null,null,null,null,null,2168,"PODKOREN","JESENICE"]
[null,null,null,null,null,null,null,null,null,null,null,null,2169,"KRANJSKA GORA","JESENICE"]
[null,null,null,null,null,null,null,null,null,null,null,null,2170,"GOZD","JESENICE"]
[null,null,null,null,null,null,null,null,null,null,null,null,2171,"DOVJE","JESENICE"]
[null,null,null,null,null,null,null,null,null,null,null,null,2172,"HRUŠICA","JESENICE"]
[null,null,null,null,null,null,null,null,null,null,null,null,2173,"PLAVŠKI ROVT","JESENICE"]
[null,null,null,null,null,null,null,null,null,null,null,null,2174,"PLANINA","JESENICE"]
[null,null,null,null,null,null,null,null,null,null,null,null,2175,"JESENICE","JESENICE"]
[null,null,null,null,null,null,null,null,null,null,null,null,2176,"BLEJSKA DOBRAVA","JESENICE"]
[null,null,null,null,null,null,null,null,null,null,null,null,2177,"JAVORNIŠKI ROVT","JESENICE"]
[null,null,null,null,null,null,null,null,null,null,null,null,2178,"KOROŠKA BELA","JESENICE"]
[null,null,null,null,null,null,null,null,null,null,null,null,2179,"POTOKI","JESENICE"]
[null,null,null,null,null,null,null,null,null,null,null,null,2180,"ŽIROVNICA","JESENICE"]
[null,null,null,null,null,null,null,null,null,null,null,null,2181,"ZABREZNICA","JESENICE"]
[null,null,null,null,null,null,null,null,null,null,null,null,2182,"DOSLOVČE","JESENICE"]
[null,null,null,null,null,null,null,null,null,null,null,null,2183,"ZASIP","RADOVLJICA"]
[null,null,null,null,null,null,null,null,null,null,null,null,2184,"PODHOM","RADOVLJICA"]
[null,null,null,null,null,null,null,null,null,null,null,null,2185,"SPODNJE GORJE","RADOVLJICA"]
[null,null,null,null,null,null,null,null,null,null,null,null,2186,"VIŠELNICA I","RADOVLJICA"]
[null,null,null,null,null,null,null,null,null,null,null,null,2187,"ZGORNJE GORJE","RADOVLJICA"]
[null,null,null,null,null,null,null,null,null,null,null,null,2188,"POLJŠICA","RADOVLJICA"]
[null,null,null,null,null,null,null,null,null,null,null,null,2189,"REČICA","RADOVLJICA"]
[null,null,null,null,null,null,null,null,null,null,null,null,2190,"BLED","RADOVLJICA"]
[null,null,null,null,null,null,null,null,null,null,null,null,2191,"ŽELEČE","RADOVLJICA"]
[null,null,null,null,null,null,null,null,null,null,null,null,2192,"RIBNO","RADOVLJICA"]
[null,null,null,null,null,null,null,null,null,null,null,null,2193,"SELO PRI BLEDU","RADOVLJICA"]
[null,null,null,null,null,null,null,null,null,null,null,null,2194,"BOHINJSKA BELA","RADOVLJICA"]
[null,null,null,null,null,null,null,null,null,null,null,null,2195,"GORJUŠE","RADOVLJICA"]
[null,null,null,null,null,null,null,null,null,null,null,null,2196,"BOHINJSKA ČEŠNJICA","RADOVLJICA"]
[null,null,null,null,null,null,null,null,null,null,null,null,2197,"BOHINJSKA SREDNJA VAS","RADOVLJICA"]
[null,null,null,null,null,null,null,null,null,null,null,null,2198,"STUDOR","RADOVLJICA"]
[null,null,null,null,null,null,null,null,null,null,null,null,2199,"SAVICA","RADOVLJICA"]
[null,null,null,null,null,null,null,null,null,null,null,null,2200,"BOHINJSKA BISTRICA","RADOVLJICA"]
[null,null,null,null,null,null,null,null,null,null,null,null,2201,"NOMENJ","RADOVLJICA"]
[null,null,null,null,null,null,null,null,null,null,null,null,2202,"NEMŠKI ROVT","RADOVLJICA"]
[null,null,null,null,null,null,null,null,null,null,null,null,2203,"TRENTA LEVA","TOLMIN"]
[null,null,null,null,null,null,null,null,null,null,null,null,2204,"TRENTA DESNA","TOLMIN"]
[null,null,null,null,null,null,null,null,null,null,null,null,2205,"STRMEC","TOLMIN"]
[null,null,null,null,null,null,null,null,null,null,null,null,2206,"LOG POD MANGARTOM","TOLMIN"]
[null,null,null,null,null,null,null,null,null,null,null,null,2207,"BOVEC","TOLMIN"]
[null,null,null,null,null,null,null,null,null,null,null,null,2208,"KORITNICA","TOLMIN"]
[null,null,null,null,null,null,null,null,null,null,null,null,2209,"SOČA DESNA","TOLMIN"]
[null,null,null,null,null,null,null,null,null,null,null,null,2210,"SOČA LEVA","TOLMIN"]
[null,null,null,null,null,null,null,null,null,null,null,null,2211,"ČEZSOČA","TOLMIN"]
[null,null,null,null,null,null,null,null,null,null,null,null,2212,"ŽAGA","TOLMIN"]
[null,null,null,null,null,null,null,null,null,null,null,null,2213,"SRPENICA","TOLMIN"]
[null,null,null,null,null,null,null,null,null,null,null,null,2214,"BREGINJ","TOLMIN"]
[null,null,null,null,null,null,null,null,null,null,null,null,2215,"ROBIDIŠČE","TOLMIN"]
[null,null,null,null,null,null,null,null,null,null,null,null,2216,"LOGJE","TOLMIN"]
[null,null,null,null,null,null,null,null,null,null,null,null,2217,"SEDLO","TOLMIN"]
[null,null,null,null,null,null,null,null,null,null,null,null,2218,"BORJANA","TOLMIN"]
[null,null,null,null,null,null,null,null,null,null,null,null,2219,"KRED","TOLMIN"]
[null,null,null,null,null,null,null,null,null,null,null,null,2220,"STARO SELO","TOLMIN"]
[null,null,null,null,null,null,null,null,null,null,null,null,2221,"SUŽID","TOLMIN"]
[null,null,null,null,null,null,null,null,null,null,null,null,2222,"SVINO","TOLMIN"]
[null,null,null,null,null,null,null,null,null,null,null,null,2223,"KOBARID","TOLMIN"]
[null,null,null,null,null,null,null,null,null,null,null,null,2224,"TRNOVO","TOLMIN"]
[null,null,null,null,null,null,null,null,null,null,null,null,2225,"DREŽNICA","TOLMIN"]
[null,null,null,null,null,null,null,null,null,null,null,null,2226,"VRSNO","TOLMIN"]
[null,null,null,null,null,null,null,null,null,null,null,null,2227,"SMAST","TOLMIN"]
[null,null,null,null,null,null,null,null,null,null,null,null,2228,"LADRA","TOLMIN"]
[null,null,null,null,null,null,null,null,null,null,null,null,2229,"IDRSKO","TOLMIN"]
[null,null,null,null,null,null,null,null,null,null,null,null,2230,"LIVEK","TOLMIN"]
[null,null,null,null,null,null,null,null,null,null,null,null,2231,"KAMNO","TOLMIN"]
[null,null,null,null,null,null,null,null,null,null,null,null,2232,"VOLARJE","TOLMIN"]
[null,null,null,null,null,null,null,null,null,null,null,null,2233,"DOLJE","TOLMIN"]
[null,null,null,null,null,null,null,null,null,null,null,null,2234,"ZATOLMIN","TOLMIN"]
[null,null,null,null,null,null,null,null,null,null,null,null,2235,"ČADRG","TOLMIN"]
[null,null,null,null,null,null,null,null,null,null,null,null,2236,"ŽABČE","TOLMIN"]
[null,null,null,null,null,null,null,null,null,null,null,null,2237,"LJUBINJ","TOLMIN"]
[null,null,null,null,null,null,null,null,null,null,null,null,2238,"PODMELEC","TOLMIN"]
[null,null,null,null,null,null,null,null,null,null,null,null,2239,"KNEŽA","TOLMIN"]
[null,null,null,null,null,null,null,null,null,null,null,null,2240,"RUT","TOLMIN"]
[null,null,null,null,null,null,null,null,null,null,null,null,2241,"STRŽIŠČE","TOLMIN"]
[null,null,null,null,null,null,null,null,null,null,null,null,2242,"PODBRDO","TOLMIN"]
[null,null,null,null,null,null,null,null,null,null,null,null,2243,"OBLOKE","TOLMIN"]
[null,null,null,null,null,null,null,null,null,null,null,null,2244,"GRAHOVO","TOLMIN"]
[null,null,null,null,null,null,null,null,null,null,null,null,2245,"PONIKVE","TOLMIN"]
[null,null,null,null,null,null,null,null,null,null,null,null,2246,"MOST NA SOČI","TOLMIN"]
[null,null,null,null,null,null,null,null,null,null,null,null,2247,"PODLJUBINJ","TOLMIN"]
[null,null,null,null,null,null,null,null,null,null,null,null,2248,"TOLMIN","TOLMIN"]
[null,null,null,null,null,null,null,null,null,null,null,null,2249,"VOLČE","TOLMIN"]
[null,null,null,null,null,null,null,null,null,null,null,null,2250,"MODREJCE","TOLMIN"]
[null,null,null,null,null,null,null,null,null,null,null,null,2251,"KOZARŠČE","TOLMIN"]
[null,null,null,null,null,null,null,null,null,null,null,null,2252,"ČIGINJ","TOLMIN"]
[null,null,null,null,null,null,null,null,null,null,null,null,2253,"RUTE","TOLMIN"]
[null,null,null,null,null,null,null,null,null,null,null,null,2254,"SELA","TOLMIN"]
[null,null,null,null,null,null,null,null,null,null,null,null,2255,"LOM","TOLMIN"]
[null,null,null,null,null,null,null,null,null,null,null,null,2256,"IDRIJA PRI BAČI","TOLMIN"]
[null,null,null,null,null,null,null,null,null,null,null,null,2257,"SLAP","TOLMIN"]
[null,null,null,null,null,null,null,null,null,null,null,null,2258,"PEČINE","TOLMIN"]
[null,null,null,null,null,null,null,null,null,null,null,null,2259,"ŠENTVIŠKA GORA","TOLMIN"]
[null,null,null,null,null,null,null,null,null,null,null,null,2260,"PRAPETNO BRDO","TOLMIN"]
[null,null,null,null,null,null,null,null,null,null,null,null,2261,"GORENJA TREBUŠA","TOLMIN"]
[null,null,null,null,null,null,null,null,null,null,null,null,2262,"KAL NAD KANALOM","NOVA GORICA"]
[null,null,null,null,null,null,null,null,null,null,null,null,2263,"AVČE","NOVA GORICA"]
[null,null,null,null,null,null,null,null,null,null,null,null,2264,"DOBLAR","NOVA GORICA"]
[null,null,null,null,null,null,null,null,null,null,null,null,2265,"ROČINJ","NOVA GORICA"]
[null,null,null,null,null,null,null,null,null,null,null,null,2266,"AJBA","NOVA GORICA"]
[null,null,null,null,null,null,null,null,null,null,null,null,2267,"BODREŽ","NOVA GORICA"]
[null,null,null,null,null,null,null,null,null,null,null,null,2268,"VRH KANALSKI","NOVA GORICA"]
[null,null,null,null,null,null,null,null,null,null,null,null,2269,"KANAL","NOVA GORICA"]
[null,null,null,null,null,null,null,null,null,null,null,null,2270,"MORSKO","NOVA GORICA"]
[null,null,null,null,null,null,null,null,null,null,null,null,2271,"GORENJA VAS","NOVA GORICA"]
[null,null,null,null,null,null,null,null,null,null,null,null,2272,"IDRIJA NAD KANALOM","NOVA GORICA"]
[null,null,null,null,null,null,null,null,null,null,null,null,2273,"UKANJE","NOVA GORICA"]
[null,null,null,null,null,null,null,null,null,null,null,null,2274,"ANHOVO","NOVA GORICA"]
[null,null,null,null,null,null,null,null,null,null,null,null,2275,"PLAVE","NOVA GORICA"]
[null,null,null,null,null,null,null,null,null,null,null,null,2276,"DESKLE","NOVA GORICA"]
[null,null,null,null,null,null,null,null,null,null,null,null,2277,"MIRNIK","NOVA GORICA"]
[null,null,null,null,null,null,null,null,null,null,null,null,2278,"KOŽBANA","NOVA GORICA"]
[null,null,null,null,null,null,null,null,null,null,null,null,2279,"KRASNO","NOVA GORICA"]
[null,null,null,null,null,null,null,null,null,null,null,null,2280,"VRHOVLJE","NOVA GORICA"]
[null,null,null,null,null,null,null,null,null,null,null,null,2281,"ŠMARTNO","NOVA GORICA"]
[null,null,null,null,null,null,null,null,null,null,null,null,2282,"VEDRIJAN","NOVA GORICA"]
[null,null,null,null,null,null,null,null,null,null,null,null,2283,"VIŠNJEVIK","NOVA GORICA"]
[null,null,null,null,null,null,null,null,null,null,null,null,2284,"NEBLO","NOVA GORICA"]
[null,null,null,null,null,null,null,null,null,null,null,null,2285,"BILJANA","NOVA GORICA"]
[null,null,null,null,null,null,null,null,null,null,null,null,2286,"MEDANA","NOVA GORICA"]
[null,null,null,null,null,null,null,null,null,null,null,null,2287,"VIPOLŽE","NOVA GORICA"]
[null,null,null,null,null,null,null,null,null,null,null,null,2288,"KOZANA","NOVA GORICA"]
[null,null,null,null,null,null,null,null,null,null,null,null,2289,"CEROVO","NOVA GORICA"]
[null,null,null,null,null,null,null,null,null,null,null,null,2290,"KOJSKO","NOVA GORICA"]
[null,null,null,null,null,null,null,null,null,null,null,null,2291,"PODSABOTIN","NOVA GORICA"]
[null,null,null,null,null,null,null,null,null,null,null,null,2292,"ŠMAVER","NOVA GORICA"]
[null,null,null,null,null,null,null,null,null,null,null,null,2293,"GRGAR","NOVA GORICA"]
[null,null,null,null,null,null,null,null,null,null,null,null,2294,"BATE","NOVA GORICA"]
[null,null,null,null,null,null,null,null,null,null,null,null,2295,"BANJŠICE","NOVA GORICA"]
[null,null,null,null,null,null,null,null,null,null,null,null,2296,"LOKOVEC","NOVA GORICA"]
[null,null,null,null,null,null,null,null,null,null,null,null,2297,"ČEPOVAN","NOVA GORICA"]
[null,null,null,null,null,null,null,null,null,null,null,null,2298,"LAZNA","NOVA GORICA"]
[null,null,null,null,null,null,null,null,null,null,null,null,2299,"LOKVE","NOVA GORICA"]
[null,null,null,null,null,null,null,null,null,null,null,null,2300,"TRNOVO","NOVA GORICA"]
[null,null,null,null,null,null,null,null,null,null,null,null,2301,"RAVNICA","NOVA GORICA"]
[null,null,null,null,null,null,null,null,null,null,null,null,2302,"KROMBERK","NOVA GORICA"]
[null,null,null,null,null,null,null,null,null,null,null,null,2303,"SOLKAN","NOVA GORICA"]
[null,null,null,null,null,null,null,null,null,null,null,null,2304,"NOVA GORICA","NOVA GORICA"]
[null,null,null,null,null,null,null,null,null,null,null,null,2306,"ROŽNA DOLINA","NOVA GORICA"]
[null,null,null,null,null,null,null,null,null,null,null,null,2307,"STARA GORA","NOVA GORICA"]
[null,null,null,null,null,null,null,null,null,null,null,null,2308,"LOKE","NOVA GORICA"]
[null,null,null,null,null,null,null,null,null,null,null,null,2309,"ŠMIHEL","NOVA GORICA"]
[null,null,null,null,null,null,null,null,null,null,null,null,2310,"OZELJAN","NOVA GORICA"]
[null,null,null,null,null,null,null,null,null,null,null,null,2311,"VITOVLJE","NOVA GORICA"]
[null,null,null,null,null,null,null,null,null,null,null,null,2312,"OSEK","NOVA GORICA"]
[null,null,null,null,null,null,null,null,null,null,null,null,2313,"ŠEMPAS","NOVA GORICA"]
[null,null,null,null,null,null,null,null,null,null,null,null,2314,"VOGRSKO","NOVA GORICA"]
[null,null,null,null,null,null,null,null,null,null,null,null,2315,"ŠEMPETER","NOVA GORICA"]
[null,null,null,null,null,null,null,null,null,null,null,null,2316,"VRTOJBA","NOVA GORICA"]
[null,null,null,null,null,null,null,null,null,null,null,null,2318,"BILJE","NOVA GORICA"]
[null,null,null,null,null,null,null,null,null,null,null,null,2319,"BUKOVICA","NOVA GORICA"]
[null,null,null,null,null,null,null,null,null,null,null,null,2320,"PRVAČINA","NOVA GORICA"]
[null,null,null,null,null,null,null,null,null,null,null,null,2321,"GRADIŠČE","NOVA GORICA"]
[null,null,null,null,null,null,null,null,null,null,null,null,2322,"RENČE","NOVA GORICA"]
[null,null,null,null,null,null,null,null,null,null,null,null,2323,"VRTOČE","NOVA GORICA"]
[null,null,null,null,null,null,null,null,null,null,null,null,2324,"OREHOVLJE","NOVA GORICA"]
[null,null,null,null,null,null,null,null,null,null,null,null,2325,"MIREN","NOVA GORICA"]
[null,null,null,null,null,null,null,null,null,null,null,null,2326,"RUPA","NOVA GORICA"]
[null,null,null,null,null,null,null,null,null,null,null,null,2327,"GABRJE OB VIPAVI","NOVA GORICA"]
[null,null,null,null,null,null,null,null,null,null,null,null,2328,"OPATJE SELO","NOVA GORICA"]
[null,null,null,null,null,null,null,null,null,null,null,null,2329,"NOVA VAS","NOVA GORICA"]
[null,null,null,null,null,null,null,null,null,null,null,null,2330,"SELA NA KRASU","NOVA GORICA"]
[null,null,null,null,null,null,null,null,null,null,null,null,2331,"VOJŠČICA","NOVA GORICA"]
[null,null,null,null,null,null,null,null,null,null,null,null,2332,"KOSTANJEVICA NA KRASU","NOVA GORICA"]
[null,null,null,null,null,null,null,null,null,null,null,null,2333,"TEMNICA","NOVA GORICA"]
[null,null,null,null,null,null,null,null,null,null,null,null,2334,"LIPA","NOVA GORICA"]
[null,null,null,null,null,null,null,null,null,null,null,null,2335,"DORNBERK","NOVA GORICA"]
[null,null,null,null,null,null,null,null,null,null,null,null,2336,"BRANIK","NOVA GORICA"]
[null,null,null,null,null,null,null,null,null,null,null,null,2337,"BUKOVO","IDRIJA"]
[null,null,null,null,null,null,null,null,null,null,null,null,2338,"JESENICA","IDRIJA"]
[null,null,null,null,null,null,null,null,null,null,null,null,2339,"GORJE","IDRIJA"]
[null,null,null,null,null,null,null,null,null,null,null,null,2340,"LABINJE","IDRIJA"]
[null,null,null,null,null,null,null,null,null,null,null,null,2341,"DOLENJI NOVAKI","IDRIJA"]
[null,null,null,null,null,null,null,null,null,null,null,null,2342,"GORENJI NOVAKI","IDRIJA"]
[null,null,null,null,null,null,null,null,null,null,null,null,2343,"PLANINA","IDRIJA"]
[null,null,null,null,null,null,null,null,null,null,null,null,2344,"CERKNO","IDRIJA"]
[null,null,null,null,null,null,null,null,null,null,null,null,2345,"ZAKRIŽ","IDRIJA"]
[null,null,null,null,null,null,null,null,null,null,null,null,2346,"OREHEK","IDRIJA"]
[null,null,null,null,null,null,null,null,null,null,null,null,2347,"POLICE","IDRIJA"]
[null,null,null,null,null,null,null,null,null,null,null,null,2348,"REKA - RAVNE","IDRIJA"]
[null,null,null,null,null,null,null,null,null,null,null,null,2349,"ŠEBRELJE","IDRIJA"]
[null,null,null,null,null,null,null,null,null,null,null,null,2350,"OTALEŽ","IDRIJA"]
[null,null,null,null,null,null,null,null,null,null,null,null,2351,"IDRIJSKE KRNICE","IDRIJA"]
[null,null,null,null,null,null,null,null,null,null,null,null,2352,"SPODNJA KANOMLJA","IDRIJA"]
[null,null,null,null,null,null,null,null,null,null,null,null,2353,"SREDNJA KANOMLJA","IDRIJA"]
[null,null,null,null,null,null,null,null,null,null,null,null,2354,"GORENJA KANOMLJA","IDRIJA"]
[null,null,null,null,null,null,null,null,null,null,null,null,2355,"VOJSKO","IDRIJA"]
[null,null,null,null,null,null,null,null,null,null,null,null,2356,"ČEKOVNIK","IDRIJA"]
[null,null,null,null,null,null,null,null,null,null,null,null,2357,"IDRIJA - MESTO","IDRIJA"]
[null,null,null,null,null,null,null,null,null,null,null,null,2358,"SPODNJA IDRIJA","IDRIJA"]
[null,null,null,null,null,null,null,null,null,null,null,null,2359,"LEDINE","IDRIJA"]
[null,null,null,null,null,null,null,null,null,null,null,null,2360,"VRSNIK I","IDRIJA"]
[null,null,null,null,null,null,null,null,null,null,null,null,2361,"DOLE","IDRIJA"]
[null,null,null,null,null,null,null,null,null,null,null,null,2362,"JELIČNI VRH","IDRIJA"]
[null,null,null,null,null,null,null,null,null,null,null,null,2363,"IDRIJSKI LOG","IDRIJA"]
[null,null,null,null,null,null,null,null,null,null,null,null,2364,"GODOVIČ","IDRIJA"]
[null,null,null,null,null,null,null,null,null,null,null,null,2365,"ČRNI VRH","IDRIJA"]
[null,null,null,null,null,null,null,null,null,null,null,null,2366,"ZADLOG","IDRIJA"]
[null,null,null,null,null,null,null,null,null,null,null,null,2367,"KANJI DOL","IDRIJA"]
[null,null,null,null,null,null,null,null,null,null,null,null,2368,"LOME","IDRIJA"]
[null,null,null,null,null,null,null,null,null,null,null,null,2369,"JAVORNIK","IDRIJA"]
[null,null,null,null,null,null,null,null,null,null,null,null,2370,"DOL-OTLICA","AJDOVŠČINA"]
[null,null,null,null,null,null,null,null,null,null,null,null,2371,"KOVK","AJDOVŠČINA"]
[null,null,null,null,null,null,null,null,null,null,null,null,2372,"KRIŽNA GORA","AJDOVŠČINA"]
[null,null,null,null,null,null,null,null,null,null,null,null,2373,"COL","AJDOVŠČINA"]
[null,null,null,null,null,null,null,null,null,null,null,null,2374,"VODICE","AJDOVŠČINA"]
[null,null,null,null,null,null,null,null,null,null,null,null,2375,"PODKRAJ","AJDOVŠČINA"]
[null,null,null,null,null,null,null,null,null,null,null,null,2376,"VIŠNJE","AJDOVŠČINA"]
[null,null,null,null,null,null,null,null,null,null,null,null,2377,"SANABOR","AJDOVŠČINA"]
[null,null,null,null,null,null,null,null,null,null,null,null,2378,"VRHPOLJE","AJDOVŠČINA"]
[null,null,null,null,null,null,null,null,null,null,null,null,2379,"BUDANJE","AJDOVŠČINA"]
[null,null,null,null,null,null,null,null,null,null,null,null,2380,"ŠTURJE","AJDOVŠČINA"]
[null,null,null,null,null,null,null,null,null,null,null,null,2381,"LOKAVEC","AJDOVŠČINA"]
[null,null,null,null,null,null,null,null,null,null,null,null,2382,"STOMAŽ","AJDOVŠČINA"]
[null,null,null,null,null,null,null,null,null,null,null,null,2383,"VRTOVIN","AJDOVŠČINA"]
[null,null,null,null,null,null,null,null,null,null,null,null,2384,"ČRNIČE","AJDOVŠČINA"]
[null,null,null,null,null,null,null,null,null,null,null,null,2385,"GOJAČE","AJDOVŠČINA"]
[null,null,null,null,null,null,null,null,null,null,null,null,2386,"BATUJE","AJDOVŠČINA"]
[null,null,null,null,null,null,null,null,null,null,null,null,2387,"SELO","AJDOVŠČINA"]
[null,null,null,null,null,null,null,null,null,null,null,null,2388,"KAMNJE","AJDOVŠČINA"]
[null,null,null,null,null,null,null,null,null,null,null,null,2389,"SKRILJE","AJDOVŠČINA"]
[null,null,null,null,null,null,null,null,null,null,null,null,2390,"DOBRAVLJE","AJDOVŠČINA"]
[null,null,null,null,null,null,null,null,null,null,null,null,2391,"VIPAVSKI KRIŽ","AJDOVŠČINA"]
[null,null,null,null,null,null,null,null,null,null,null,null,2392,"AJDOVŠČINA","AJDOVŠČINA"]
[null,null,null,null,null,null,null,null,null,null,null,null,2393,"USTJE","AJDOVŠČINA"]
[null,null,null,null,null,null,null,null,null,null,null,null,2394,"VELIKE ŽABLJE","AJDOVŠČINA"]
[null,null,null,null,null,null,null,null,null,null,null,null,2395,"BRJE","AJDOVŠČINA"]
[null,null,null,null,null,null,null,null,null,null,null,null,2396,"ŠMARJE","AJDOVŠČINA"]
[null,null,null,null,null,null,null,null,null,null,null,null,2397,"GABERJE","AJDOVŠČINA"]
[null,null,null,null,null,null,null,null,null,null,null,null,2398,"ERZELJ","AJDOVŠČINA"]
[null,null,null,null,null,null,null,null,null,null,null,null,2399,"PLANINA","AJDOVŠČINA"]
[null,null,null,null,null,null,null,null,null,null,null,null,2400,"SLAP","AJDOVŠČINA"]
[null,null,null,null,null,null,null,null,null,null,null,null,2401,"VIPAVA","AJDOVŠČINA"]
[null,null,null,null,null,null,null,null,null,null,null,null,2402,"LOŽE","AJDOVŠČINA"]
[null,null,null,null,null,null,null,null,null,null,null,null,2403,"GOČE","AJDOVŠČINA"]
[null,null,null,null,null,null,null,null,null,null,null,null,2404,"PODRAGA","AJDOVŠČINA"]
[null,null,null,null,null,null,null,null,null,null,null,null,2405,"PODNANOS","AJDOVŠČINA"]
[null,null,null,null,null,null,null,null,null,null,null,null,2406,"NANOS","AJDOVŠČINA"]
[null,null,null,null,null,null,null,null,null,null,null,null,2407,"LOZICE","AJDOVŠČINA"]
[null,null,null,null,null,null,null,null,null,null,null,null,2408,"BRESTOVICA","SEŽANA"]
[null,null,null,null,null,null,null,null,null,null,null,null,2409,"IVANJI GRAD","SEŽANA"]
[null,null,null,null,null,null,null,null,null,null,null,null,2410,"SVETO","SEŽANA"]
[null,null,null,null,null,null,null,null,null,null,null,null,2411,"ŠKRBINA","SEŽANA"]
[null,null,null,null,null,null,null,null,null,null,null,null,2412,"KOMEN","SEŽANA"]
[null,null,null,null,null,null,null,null,null,null,null,null,2413,"MALI DOL","SEŽANA"]
[null,null,null,null,null,null,null,null,null,null,null,null,2414,"TOMAČEVICA","SEŽANA"]
[null,null,null,null,null,null,null,null,null,null,null,null,2415,"KOBJEGLAVA","SEŽANA"]
[null,null,null,null,null,null,null,null,null,null,null,null,2416,"ŠTANJEL","SEŽANA"]
[null,null,null,null,null,null,null,null,null,null,null,null,2417,"HRUŠEVICA","SEŽANA"]
[null,null,null,null,null,null,null,null,null,null,null,null,2418,"KOBDILJ","SEŽANA"]
[null,null,null,null,null,null,null,null,null,null,null,null,2419,"KOBOLI","SEŽANA"]
[null,null,null,null,null,null,null,null,null,null,null,null,2420,"ŠTJAK","SEŽANA"]
[null,null,null,null,null,null,null,null,null,null,null,null,2421,"AVBER","SEŽANA"]
[null,null,null,null,null,null,null,null,null,null,null,null,2422,"KOPRIVA","SEŽANA"]
[null,null,null,null,null,null,null,null,null,null,null,null,2423,"GABROVICA","SEŽANA"]
[null,null,null,null,null,null,null,null,null,null,null,null,2424,"VOLČJI GRAD","SEŽANA"]
[null,null,null,null,null,null,null,null,null,null,null,null,2425,"GORJANSKO","SEŽANA"]
[null,null,null,null,null,null,null,null,null,null,null,null,2426,"BRJE","SEŽANA"]
[null,null,null,null,null,null,null,null,null,null,null,null,2427,"VELIKI DOL","SEŽANA"]
[null,null,null,null,null,null,null,null,null,null,null,null,2428,"SALEŽ","SEŽANA"]
[null,null,null,null,null,null,null,null,null,null,null,null,2429,"PLISKOVICA","SEŽANA"]
[null,null,null,null,null,null,null,null,null,null,null,null,2430,"KRAJNA VAS","SEŽANA"]
[null,null,null,null,null,null,null,null,null,null,null,null,2431,"SKOPO","SEŽANA"]
[null,null,null,null,null,null,null,null,null,null,null,null,2432,"DUTOVLJE","SEŽANA"]
[null,null,null,null,null,null,null,null,null,null,null,null,2433,"VELIKI REPEN","SEŽANA"]
[null,null,null,null,null,null,null,null,null,null,null,null,2434,"VOGLJE","SEŽANA"]
[null,null,null,null,null,null,null,null,null,null,null,null,2435,"KRIŽ","SEŽANA"]
[null,null,null,null,null,null,null,null,null,null,null,null,2436,"TOMAJ","SEŽANA"]
[null,null,null,null,null,null,null,null,null,null,null,null,2437,"UTOVLJE","SEŽANA"]
[null,null,null,null,null,null,null,null,null,null,null,null,2438,"KAZLJE","SEŽANA"]
[null,null,null,null,null,null,null,null,null,null,null,null,2439,"GRIŽE","SEŽANA"]
[null,null,null,null,null,null,null,null,null,null,null,null,2440,"VELIKO POLJE","SEŽANA"]
[null,null,null,null,null,null,null,null,null,null,null,null,2441,"DOLENJA VAS","SEŽANA"]
[null,null,null,null,null,null,null,null,null,null,null,null,2442,"ŠTORJE","SEŽANA"]
[null,null,null,null,null,null,null,null,null,null,null,null,2443,"SENADOLE","SEŽANA"]
[null,null,null,null,null,null,null,null,null,null,null,null,2444,"GABRČE","SEŽANA"]
[null,null,null,null,null,null,null,null,null,null,null,null,2445,"POTOČE","SEŽANA"]
[null,null,null,null,null,null,null,null,null,null,null,null,2446,"LAŽE","SEŽANA"]
[null,null,null,null,null,null,null,null,null,null,null,null,2447,"SENOŽEČE","SEŽANA"]
[null,null,null,null,null,null,null,null,null,null,null,null,2448,"GORNJE VREME","SEŽANA"]
[null,null,null,null,null,null,null,null,null,null,null,null,2449,"VREMSKI BRITOF","SEŽANA"]
[null,null,null,null,null,null,null,null,null,null,null,null,2450,"FAMLJE","SEŽANA"]
[null,null,null,null,null,null,null,null,null,null,null,null,2451,"DOLNJE LEŽEČE","SEŽANA"]
[null,null,null,null,null,null,null,null,null,null,null,null,2452,"DIVAČA","SEŽANA"]
[null,null,null,null,null,null,null,null,null,null,null,null,2453,"POVIR","SEŽANA"]
[null,null,null,null,null,null,null,null,null,null,null,null,2454,"MERČE","SEŽANA"]
[null,null,null,null,null,null,null,null,null,null,null,null,2455,"SEŽANA","SEŽANA"]
[null,null,null,null,null,null,null,null,null,null,null,null,2456,"TREBČE","SEŽANA"]
[null,null,null,null,null,null,null,null,null,null,null,null,2457,"GROPADA","SEŽANA"]
[null,null,null,null,null,null,null,null,null,null,null,null,2458,"BAZOVICA","SEŽANA"]
[null,null,null,null,null,null,null,null,null,null,null,null,2459,"LOKEV","SEŽANA"]
[null,null,null,null,null,null,null,null,null,null,null,null,2460,"NAKLO","SEŽANA"]
[null,null,null,null,null,null,null,null,null,null,null,null,2461,"DANE","SEŽANA"]
[null,null,null,null,null,null,null,null,null,null,null,null,2462,"PODGRAD","SEŽANA"]
[null,null,null,null,null,null,null,null,null,null,null,null,2463,"ŠKOFLJE","SEŽANA"]
[null,null,null,null,null,null,null,null,null,null,null,null,2464,"BARKA","SEŽANA"]
[null,null,null,null,null,null,null,null,null,null,null,null,2465,"VAREJE","SEŽANA"]
[null,null,null,null,null,null,null,null,null,null,null,null,2466,"MISLIČE","SEŽANA"]
[null,null,null,null,null,null,null,null,null,null,null,null,2467,"VATOVLJE","SEŽANA"]
[null,null,null,null,null,null,null,null,null,null,null,null,2468,"KOZJANE","SEŽANA"]
[null,null,null,null,null,null,null,null,null,null,null,null,2469,"DOLENJA PLANINA","POSTOJNA"]
[null,null,null,null,null,null,null,null,null,null,null,null,2470,"GORENJA PLANINA","POSTOJNA"]
[null,null,null,null,null,null,null,null,null,null,null,null,2471,"KAČJA VAS","POSTOJNA"]
[null,null,null,null,null,null,null,null,null,null,null,null,2472,"STRMICA","POSTOJNA"]
[null,null,null,null,null,null,null,null,null,null,null,null,2473,"STUDENO","POSTOJNA"]
[null,null,null,null,null,null,null,null,null,null,null,null,2474,"BUKOVJE","POSTOJNA"]
[null,null,null,null,null,null,null,null,null,null,null,null,2475,"ŠMIHEL POD NANOSOM","POSTOJNA"]
[null,null,null,null,null,null,null,null,null,null,null,null,2476,"LANDOL","POSTOJNA"]
[null,null,null,null,null,null,null,null,null,null,null,null,2477,"ZAGON","POSTOJNA"]
[null,null,null,null,null,null,null,null,null,null,null,null,2478,"HRAŠČE","POSTOJNA"]
[null,null,null,null,null,null,null,null,null,null,null,null,2479,"STUDENEC","POSTOJNA"]
[null,null,null,null,null,null,null,null,null,null,null,null,2480,"HRENOVICE","POSTOJNA"]
[null,null,null,null,null,null,null,null,null,null,null,null,2481,"VELIKA BRDA","POSTOJNA"]
[null,null,null,null,null,null,null,null,null,null,null,null,2482,"STRANE","POSTOJNA"]
[null,null,null,null,null,null,null,null,null,null,null,null,2483,"RAZDRTO","POSTOJNA"]
[null,null,null,null,null,null,null,null,null,null,null,null,2484,"HRUŠEVJE","POSTOJNA"]
[null,null,null,null,null,null,null,null,null,null,null,null,2485,"RAKULIK","POSTOJNA"]
[null,null,null,null,null,null,null,null,null,null,null,null,2486,"OREHEK","POSTOJNA"]
[null,null,null,null,null,null,null,null,null,null,null,null,2487,"RAKITNIK","POSTOJNA"]
[null,null,null,null,null,null,null,null,null,null,null,null,2488,"ZALOG","POSTOJNA"]
[null,null,null,null,null,null,null,null,null,null,null,null,2489,"STARA VAS","POSTOJNA"]
[null,null,null,null,null,null,null,null,null,null,null,null,2490,"POSTOJNA","POSTOJNA"]
[null,null,null,null,null,null,null,null,null,null,null,null,2491,"MATENJA VAS","POSTOJNA"]
[null,null,null,null,null,null,null,null,null,null,null,null,2492,"SLAVINA","POSTOJNA"]
[null,null,null,null,null,null,null,null,null,null,null,null,2493,"VOLČE","POSTOJNA"]
[null,null,null,null,null,null,null,null,null,null,null,null,2494,"KOŠANA","POSTOJNA"]
[null,null,null,null,null,null,null,null,null,null,null,null,2495,"SUHORJE","POSTOJNA"]
[null,null,null,null,null,null,null,null,null,null,null,null,2496,"STARA SUŠICA","POSTOJNA"]
[null,null,null,null,null,null,null,null,null,null,null,null,2497,"NADANJE SELO","POSTOJNA"]
[null,null,null,null,null,null,null,null,null,null,null,null,2498,"NARIN","POSTOJNA"]
[null,null,null,null,null,null,null,null,null,null,null,null,2499,"KAL","POSTOJNA"]
[null,null,null,null,null,null,null,null,null,null,null,null,2500,"SELCE","POSTOJNA"]
[null,null,null,null,null,null,null,null,null,null,null,null,2501,"PETELINJE","POSTOJNA"]
[null,null,null,null,null,null,null,null,null,null,null,null,2502,"RADOHOVA VAS","POSTOJNA"]
[null,null,null,null,null,null,null,null,null,null,null,null,2503,"PARJE","POSTOJNA"]
[null,null,null,null,null,null,null,null,null,null,null,null,2504,"ZAGORJE","POSTOJNA"]
[null,null,null,null,null,null,null,null,null,null,null,null,2505,"JURIŠČE","POSTOJNA"]
[null,null,null,null,null,null,null,null,null,null,null,null,2506,"PALČJE","POSTOJNA"]
[null,null,null,null,null,null,null,null,null,null,null,null,2507,"TRNJE","POSTOJNA"]
[null,null,null,null,null,null,null,null,null,null,null,null,2508,"SNEŽNIK","ILIRSKA BISTRICA"]
[null,null,null,null,null,null,null,null,null,null,null,null,2509,"BAČ","ILIRSKA BISTRICA"]
[null,null,null,null,null,null,null,null,null,null,null,null,2510,"KORITNICE","ILIRSKA BISTRICA"]
[null,null,null,null,null,null,null,null,null,null,null,null,2511,"KNEŽAK","ILIRSKA BISTRICA"]
[null,null,null,null,null,null,null,null,null,null,null,null,2512,"ŠEMBIJE","ILIRSKA BISTRICA"]
[null,null,null,null,null,null,null,null,null,null,null,null,2513,"PODSTENJE","ILIRSKA BISTRICA"]
[null,null,null,null,null,null,null,null,null,null,null,null,2514,"MEREČE","ILIRSKA BISTRICA"]
[null,null,null,null,null,null,null,null,null,null,null,null,2515,"RATEČEVO BRDO","ILIRSKA BISTRICA"]
[null,null,null,null,null,null,null,null,null,null,null,null,2516,"KILOVČE","ILIRSKA BISTRICA"]
[null,null,null,null,null,null,null,null,null,null,null,null,2517,"PREM","ILIRSKA BISTRICA"]
[null,null,null,null,null,null,null,null,null,null,null,null,2518,"JANEŽEVO BRDO","ILIRSKA BISTRICA"]
[null,null,null,null,null,null,null,null,null,null,null,null,2519,"OSTROŽNO BRDO","ILIRSKA BISTRICA"]
[null,null,null,null,null,null,null,null,null,null,null,null,2520,"PRELOŽE","ILIRSKA BISTRICA"]
[null,null,null,null,null,null,null,null,null,null,null,null,2521,"ČELJE","ILIRSKA BISTRICA"]
[null,null,null,null,null,null,null,null,null,null,null,null,2522,"SMRJE","ILIRSKA BISTRICA"]
[null,null,null,null,null,null,null,null,null,null,null,null,2523,"TOPOLC","ILIRSKA BISTRICA"]
[null,null,null,null,null,null,null,null,null,null,null,null,2524,"TRNOVO","ILIRSKA BISTRICA"]
[null,null,null,null,null,null,null,null,null,null,null,null,2525,"ILIRSKA BISTRICA","ILIRSKA BISTRICA"]
[null,null,null,null,null,null,null,null,null,null,null,null,2526,"VRBOVO","ILIRSKA BISTRICA"]
[null,null,null,null,null,null,null,null,null,null,null,null,2527,"JASEN","ILIRSKA BISTRICA"]
[null,null,null,null,null,null,null,null,null,null,null,null,2528,"KOSEZE","ILIRSKA BISTRICA"]
[null,null,null,null,null,null,null,null,null,null,null,null,2529,"ZAREČICA","ILIRSKA BISTRICA"]
[null,null,null,null,null,null,null,null,null,null,null,null,2530,"DOBROPOLJE","ILIRSKA BISTRICA"]
[null,null,null,null,null,null,null,null,null,null,null,null,2531,"ZAREČJE","ILIRSKA BISTRICA"]
[null,null,null,null,null,null,null,null,null,null,null,null,2532,"BRCE","ILIRSKA BISTRICA"]
[null,null,null,null,null,null,null,null,null,null,null,null,2533,"ZAJELŠJE","ILIRSKA BISTRICA"]
[null,null,null,null,null,null,null,null,null,null,null,null,2534,"TOMINJE","ILIRSKA BISTRICA"]
[null,null,null,null,null,null,null,null,null,null,null,null,2535,"HARIJE","ILIRSKA BISTRICA"]
[null,null,null,null,null,null,null,null,null,null,null,null,2536,"SABONJE","ILIRSKA BISTRICA"]
[null,null,null,null,null,null,null,null,null,null,null,null,2537,"PAVLICA","ILIRSKA BISTRICA"]
[null,null,null,null,null,null,null,null,null,null,null,null,2538,"STUDENA GORA","ILIRSKA BISTRICA"]
[null,null,null,null,null,null,null,null,null,null,null,null,2539,"VELIKA BUKOVICA","ILIRSKA BISTRICA"]
[null,null,null,null,null,null,null,null,null,null,null,null,2540,"MALA BUKOVICA","ILIRSKA BISTRICA"]
[null,null,null,null,null,null,null,null,null,null,null,null,2541,"DOLNJI ZEMON","ILIRSKA BISTRICA"]
[null,null,null,null,null,null,null,null,null,null,null,null,2542,"GORNJI ZEMON","ILIRSKA BISTRICA"]
[null,null,null,null,null,null,null,null,null,null,null,null,2543,"JABLANICA","ILIRSKA BISTRICA"]
[null,null,null,null,null,null,null,null,null,null,null,null,2544,"TRPČANE","ILIRSKA BISTRICA"]
[null,null,null,null,null,null,null,null,null,null,null,null,2545,"PODGRAJE","ILIRSKA BISTRICA"]
[null,null,null,null,null,null,null,null,null,null,null,null,2546,"ZABIČE","ILIRSKA BISTRICA"]
[null,null,null,null,null,null,null,null,null,null,null,null,2547,"SUŠAK","ILIRSKA BISTRICA"]
[null,null,null,null,null,null,null,null,null,null,null,null,2548,"NOVOKRAČINE","ILIRSKA BISTRICA"]
[null,null,null,null,null,null,null,null,null,null,null,null,2549,"JELŠANE","ILIRSKA BISTRICA"]
[null,null,null,null,null,null,null,null,null,null,null,null,2550,"DOLENJE","ILIRSKA BISTRICA"]
[null,null,null,null,null,null,null,null,null,null,null,null,2551,"VELIKO BRDO","ILIRSKA BISTRICA"]
[null,null,null,null,null,null,null,null,null,null,null,null,2552,"STAROD","ILIRSKA BISTRICA"]
[null,null,null,null,null,null,null,null,null,null,null,null,2553,"GROČANA","SEŽANA"]
[null,null,null,null,null,null,null,null,null,null,null,null,2554,"RODIK","SEŽANA"]
[null,null,null,null,null,null,null,null,null,null,null,null,2555,"DRAGA","SEŽANA"]
[null,null,null,null,null,null,null,null,null,null,null,null,2557,"OCIZLA","SEŽANA"]
[null,null,null,null,null,null,null,null,null,null,null,null,2558,"PREŠNICA","SEŽANA"]
[null,null,null,null,null,null,null,null,null,null,null,null,2559,"MATERIJA","SEŽANA"]
[null,null,null,null,null,null,null,null,null,null,null,null,2560,"HRPELJE","SEŽANA"]
[null,null,null,null,null,null,null,null,null,null,null,null,2561,"BREZOVICA","SEŽANA"]
[null,null,null,null,null,null,null,null,null,null,null,null,2562,"ARTVIŽE","SEŽANA"]
[null,null,null,null,null,null,null,null,null,null,null,null,2563,"TATRE","SEŽANA"]
[null,null,null,null,null,null,null,null,null,null,null,null,2564,"RJAVČE","ILIRSKA BISTRICA"]
[null,null,null,null,null,null,null,null,null,null,null,null,2565,"PREGARJE","ILIRSKA BISTRICA"]
[null,null,null,null,null,null,null,null,null,null,null,null,2566,"GABERK","ILIRSKA BISTRICA"]
[null,null,null,null,null,null,null,null,null,null,null,null,2567,"HUJE","ILIRSKA BISTRICA"]
[null,null,null,null,null,null,null,null,null,null,null,null,2568,"MALE LOČE","ILIRSKA BISTRICA"]
[null,null,null,null,null,null,null,null,null,null,null,null,2569,"JAVORJE","SEŽANA"]
[null,null,null,null,null,null,null,null,null,null,null,null,2570,"RITOMEČE","SEŽANA"]
[null,null,null,null,null,null,null,null,null,null,null,null,2571,"KOVČICE","SEŽANA"]
[null,null,null,null,null,null,null,null,null,null,null,null,2572,"HOTIČNA","SEŽANA"]
[null,null,null,null,null,null,null,null,null,null,null,null,2573,"SLIVJE","SEŽANA"]
[null,null,null,null,null,null,null,null,null,null,null,null,2574,"MARKOVŠČINA","SEŽANA"]
[null,null,null,null,null,null,null,null,null,null,null,null,2575,"GRADIŠČE","SEŽANA"]
[null,null,null,null,null,null,null,null,null,null,null,null,2576,"OBROV","SEŽANA"]
[null,null,null,null,null,null,null,null,null,null,null,null,2577,"HRUŠICA","ILIRSKA BISTRICA"]
[null,null,null,null,null,null,null,null,null,null,null,null,2578,"PODBEŽE","ILIRSKA BISTRICA"]
[null,null,null,null,null,null,null,null,null,null,null,null,2579,"PODGRAD","ILIRSKA BISTRICA"]
[null,null,null,null,null,null,null,null,null,null,null,null,2580,"RAČICE","ILIRSKA BISTRICA"]
[null,null,null,null,null,null,null,null,null,null,null,null,2581,"POLJANE","SEŽANA"]
[null,null,null,null,null,null,null,null,null,null,null,null,2582,"GOLAC","SEŽANA"]
[null,null,null,null,null,null,null,null,null,null,null,null,2583,"PODGORJE","SEŽANA"]
[null,null,null,null,null,null,null,null,null,null,null,null,2584,"ZAZID","SEŽANA"]
[null,null,null,null,null,null,null,null,null,null,null,null,2585,"RAKITOVEC","SEŽANA"]
[null,null,null,null,null,null,null,null,null,null,null,null,2589,"PLAVJE","KOPER"]
[null,null,null,null,null,null,null,null,null,null,null,null,2590,"HRIBI","KOPER"]
[null,null,null,null,null,null,null,null,null,null,null,null,2592,"JERNEJ","KOPER"]
[null,null,null,null,null,null,null,null,null,null,null,null,2593,"OLTRA","KOPER"]
[null,null,null,null,null,null,null,null,null,null,null,null,2594,"ANKARAN","KOPER"]
[null,null,null,null,null,null,null,null,null,null,null,null,2595,"ŠKOFIJE","KOPER"]
[null,null,null,null,null,null,null,null,null,null,null,null,2596,"TINJAN","KOPER"]
[null,null,null,null,null,null,null,null,null,null,null,null,2597,"OSP","KOPER"]
[null,null,null,null,null,null,null,null,null,null,null,null,2598,"SOCERB","KOPER"]
[null,null,null,null,null,null,null,null,null,null,null,null,2599,"ČRNOTIČE","KOPER"]
[null,null,null,null,null,null,null,null,null,null,null,null,2600,"ČRNI KAL","KOPER"]
[null,null,null,null,null,null,null,null,null,null,null,null,2601,"GABROVICA","KOPER"]
[null,null,null,null,null,null,null,null,null,null,null,null,2602,"ROŽAR","KOPER"]
[null,null,null,null,null,null,null,null,null,null,null,null,2603,"DEKANI","KOPER"]
[null,null,null,null,null,null,null,null,null,null,null,null,2604,"BERTOKI","KOPER"]
[null,null,null,null,null,null,null,null,null,null,null,null,2605,"KOPER","KOPER"]
[null,null,null,null,null,null,null,null,null,null,null,null,2606,"SEMEDELA","KOPER"]
[null,null,null,null,null,null,null,null,null,null,null,null,2607,"GAŽON","KOPER"]
[null,null,null,null,null,null,null,null,null,null,null,null,2608,"ŠMARJE","KOPER"]
[null,null,null,null,null,null,null,null,null,null,null,null,2609,"POMJAN","KOPER"]
[null,null,null,null,null,null,null,null,null,null,null,null,2610,"VANGANEL","KOPER"]
[null,null,null,null,null,null,null,null,null,null,null,null,2611,"MAREZIGE","KOPER"]
[null,null,null,null,null,null,null,null,null,null,null,null,2612,"PRIDVOR","KOPER"]
[null,null,null,null,null,null,null,null,null,null,null,null,2613,"TRUŠKE","KOPER"]
[null,null,null,null,null,null,null,null,null,null,null,null,2614,"KUBED","KOPER"]
[null,null,null,null,null,null,null,null,null,null,null,null,2615,"LOKA","KOPER"]
[null,null,null,null,null,null,null,null,null,null,null,null,2616,"PODPEČ","KOPER"]
[null,null,null,null,null,null,null,null,null,null,null,null,2617,"HRASTOVLJE","KOPER"]
[null,null,null,null,null,null,null,null,null,null,null,null,2618,"MOVRAŽ","KOPER"]
[null,null,null,null,null,null,null,null,null,null,null,null,2619,"SOČERGA","KOPER"]
[null,null,null,null,null,null,null,null,null,null,null,null,2620,"PREGARA","KOPER"]
[null,null,null,null,null,null,null,null,null,null,null,null,2621,"GRADIN","KOPER"]
[null,null,null,null,null,null,null,null,null,null,null,null,2622,"TOPOLOVEC","KOPER"]
[null,null,null,null,null,null,null,null,null,null,null,null,2623,"BORŠT","KOPER"]
[null,null,null,null,null,null,null,null,null,null,null,null,2624,"KOŠTABONA","KOPER"]
[null,null,null,null,null,null,null,null,null,null,null,null,2625,"KRKAVČE","KOPER"]
[null,null,null,null,null,null,null,null,null,null,null,null,2626,"IZOLA","KOPER"]
[null,null,null,null,null,null,null,null,null,null,null,null,2627,"IZOLA II","KOPER"]
[null,null,null,null,null,null,null,null,null,null,null,null,2628,"IZOLA III","KOPER"]
[null,null,null,null,null,null,null,null,null,null,null,null,2629,"DVORI NAD IZOLO","KOPER"]
[null,null,null,null,null,null,null,null,null,null,null,null,2630,"PIRAN","KOPER"]
[null,null,null,null,null,null,null,null,null,null,null,null,2631,"PORTOROŽ","KOPER"]
[null,null,null,null,null,null,null,null,null,null,null,null,2632,"SEČOVLJE","KOPER"]
[null,null,null,null,null,null,null,null,null,null,null,null,2633,"RAVEN","KOPER"]
[null,null,null,null,null,null,null,null,null,null,null,null,2634,"NOVA VAS","KOPER"]
[null,null,null,null,null,null,null,null,null,null,null,null,2635,"ROGAŠKA SLATINA","ŠMARJE PRI JELŠAH"]
[null,null,null,null,null,null,null,null,null,null,null,null,2636,"BEŽIGRAD","LJUBLJANA"]
[null,null,null,null,null,null,null,null,null,null,null,null,2637,"PRIHODI","JESENICE"]
[null,null,null,null,null,null,null,null,null,null,null,null,2638,"PODMEŽAKLJA","JESENICE"]
[null,null,null,null,null,null,null,null,null,null,null,null,2639,"ZVODNO","CELJE"]
[null,null,null,null,null,null,null,null,null,null,null,null,2640,"HRASTNIK","TRBOVLJE"]
[null,null,null,null,null,null,null,null,null,null,null,null,2641,"ZAGORJE","TRBOVLJE"]
[null,null,null,null,null,null,null,null,null,null,null,null,2642,"GROSUPLJE","GROSUPLJE"]
[null,null,null,null,null,null,null,null,null,null,null,null,2643,"ZASADI","LJUTOMER"]
[null,null,null,null,null,null,null,null,null,null,null,null,2644,"VIŠELNICA II","JESENICE"]
[null,null,null,null,null,null,null,null,null,null,null,null,2645,"PAKA II","SLOVENJ GRADEC"]
[null,null,null,null,null,null,null,null,null,null,null,null,2646,"SREDNJI DOLIČ","SLOVENJ GRADEC"]
[null,null,null,null,null,null,null,null,null,null,null,null,2647,"BEZOVJE","ŠENTJUR PRI CELJU"]
[null,null,null,null,null,null,null,null,null,null,null,null,2648,"PERAČICA","RADOVLJICA"]
[null,null,null,null,null,null,null,null,null,null,null,null,2649,"IZLAKE","TRBOVLJE"]
[null,null,null,null,null,null,null,null,null,null,null,null,2650,"DEBRO","LAŠKO"]
[null,null,null,null,null,null,null,null,null,null,null,null,2651,"POŽNICA","LAŠKO"]
[null,null,null,null,null,null,null,null,null,null,null,null,2652,"OGOREVC","CELJE"]
[null,null,null,null,null,null,null,null,null,null,null,null,2653,"PŠATA","DOMŽALE"]
[null,null,null,null,null,null,null,null,null,null,null,null,2654,"GOZD REKA","LITIJA"]
[null,null,null,null,null,null,null,null,null,null,null,null,2655,"RAČICA","LITIJA"]
[null,null,null,null,null,null,null,null,null,null,null,null,2656,"RIBČE","LITIJA"]
[null,null,null,null,null,null,null,null,null,null,null,null,2657,"PEČICE","LITIJA"]
[null,null,null,null,null,null,null,null,null,null,null,null,2658,"OSREDEK","ŠMARJE PRI JELŠAH"]
[null,null,null,null,null,null,null,null,null,null,null,null,2659,"SPODNJE SELCE","ŠMARJE PRI JELŠAH"]
[null,null,null,null,null,null,null,null,null,null,null,null,2660,"SPODNJA PONKVICA","ŠMARJE PRI JELŠAH"]
[null,null,null,null,null,null,null,null,null,null,null,null,2661,"GAJ","SLOVENSKA BISTRICA"]
[null,null,null,null,null,null,null,null,null,null,null,null,2662,"MALKOVEC","SEVNICA"]
[null,null,null,null,null,null,null,null,null,null,null,null,2663,"MRAVLJEVI","NOVA GORICA"]
[null,null,null,null,null,null,null,null,null,null,null,null,2664,"SPODNJA BRANICA","NOVA GORICA"]
[null,null,null,null,null,null,null,null,null,null,null,null,2665,"ZGORNJI DRAŽEN VRH","MARIBOR"]
[null,null,null,null,null,null,null,null,null,null,null,null,2666,"SELCE","MARIBOR"]
[null,null,null,null,null,null,null,null,null,null,null,null,2667,"SPODNJI VURMAT","MARIBOR"]
[null,null,null,null,null,null,null,null,null,null,null,null,2668,"GOJŠKA PLANINA","KAMNIK"]
[null,null,null,null,null,null,null,null,null,null,null,null,2669,"PAŠKI KOZJAK","VELENJE"]
[null,null,null,null,null,null,null,null,null,null,null,null,2670,"LAŽIŠE","ŠENTJUR PRI CELJU"]
[null,null,null,null,null,null,null,null,null,null,null,null,2671,"PODPEČ","ŠENTJUR PRI CELJU"]
[null,null,null,null,null,null,null,null,null,null,null,null,2672,"PRAPRETNO","ŠENTJUR PRI CELJU"]
[null,null,null,null,null,null,null,null,null,null,null,null,2673,"SPODNJA POHANCA","BREŽICE"]
[null,null,null,null,null,null,null,null,null,null,null,null,2674,"ŽAVCARJEV VRH","MARIBOR"]
[null,null,null,null,null,null,null,null,null,null,null,null,2675,"VRANOVIČI","ČRNOMELJ"]
[null,null,null,null,null,null,null,null,null,null,null,null,2676,"CERKVIŠČE","ČRNOMELJ"]
[null,null,null,null,null,null,null,null,null,null,null,null,2677,"PRULE","LJUBLJANA"]
[null,null,null,null,null,null,null,null,null,null,null,null,2678,"GOLOVEC","LJUBLJANA"]
[null,null,null,null,null,null,null,null,null,null,null,null,2679,"GRADIŠČE II","LJUBLJANA"]
[null,null,null,null,null,null,null,null,null,null,null,null,2680,"NOVE JARŠE","LJUBLJANA"]
[null,null,null,null,null,null,null,null,null,null,null,null,2681,"BRINJE II","LJUBLJANA"]
[null,null,null,null,null,null,null,null,null,null,null,null,2682,"BRDO","LJUBLJANA"]
[null,null,null,null,null,null,null,null,null,null,null,null,2683,"GRIČ","LJUBLJANA"]
[null,null,null,null,null,null,null,null,null,null,null,null,2684,"DRENIK","LJUBLJANA"]
[null,null,null,null,null,null,null,null,null,null,null,null,2685,"ŠAVNA PEČ","TRBOVLJE"]
[null,null,null,null,null,null,null,null,null,null,null,null,2686,"ZAVRATE","LAŠKO"]
[null,null,null,null,null,null,null,null,null,null,null,null,2687,"BOBEN","TRBOVLJE"]
[null,null,null,null,null,null,null,null,null,null,null,null,2688,"STUDENCE","TRBOVLJE"]
[null,null,null,null,null,null,null,null,null,null,null,null,2689,"ČEBINE","TRBOVLJE"]
[null,null,null,null,null,null,null,null,null,null,null,null,2690,"PRAPREČE","TRBOVLJE"]
[null,null,null,null,null,null,null,null,null,null,null,null,2691,"RAKITOVEC","KAMNIK"]
[null,null,null,null,null,null,null,null,null,null,null,null,2692,"SMREČJE","VRHNIKA"]
[null,null,null,null,null,null,null,null,null,null,null,null,2693,"LOG","LOGATEC"]
[null,null,null,null,null,null,null,null,null,null,null,null,2695,"PLANICA","KRANJ"]
[null,null,null,null,null,null,null,null,null,null,null,null,2696,"VOJŠČICA","IDRIJA"]
[null,null,null,null,null,null,null,null,null,null,null,null,2697,"KANALSKI LOM","TOLMIN"]
[null,null,null,null,null,null,null,null,null,null,null,null,2698,"BUKOVSKI VRH","TOLMIN"]
[null,null,null,null,null,null,null,null,null,null,null,null,2699,"UTRE","TOLMIN"]
[null,null,null,null,null,null,null,null,null,null,null,null,2700,"RAKOV ŠKOCJAN","CERKNICA"]
[null,null,null,null,null,null,null,null,null,null,null,null,2701,"DOLANCI","SEŽANA"]
[null,null,null,null,null,null,null,null,null,null,null,null,2702,"KODRETI","SEŽANA"]
[null,null,null,null,null,null,null,null,null,null,null,null,2703,"HRUŠICA","LOGATEC"]
[null,null,null,null,null,null,null,null,null,null,null,null,2704,"JURJEVA DOLINA","POSTOJNA"]
[null,null,null,null,null,null,null,null,null,null,null,null,2705,"LESKOVA DOLINA","CERKNICA"]
[null,null,null,null,null,null,null,null,null,null,null,null,2706,"ZELENA JAMA","LJUBLJANA"]
[null,null,null,null,null,null,null,null,null,null,null,null,2707,"BEVŠKO","TRBOVLJE"]
[null,null,null,null,null,null,null,null,null,null,null,null,2708,"RODEŽ","TRBOVLJE"]
[null,null,null,null,null,null,null,null,null,null,null,null,2709,"JAVORJE","CERKNICA"]
[null,null,null,null,null,null,null,null,null,null,null,null,2710,"GLAŽUTA","CERKNICA"]
[null,null,null,null,null,null,null,null,null,null,null,null,2711,"SPODNJI VRHOV DOL","MARIBOR"]
[null,null,null,null,null,null,null,null,null,null,null,null,2712,"DOBRAVA","MARIBOR"]
[null,null,null,null,null,null,null,null,null,null,null,null,2713,"OB ŽELEZNICI","MARIBOR"]
[null,null,null,null,null,null,null,null,null,null,null,null,2714,"VRHE II","TRBOVLJE"]
[null,null,null,null,null,null,null,null,null,null,null,null,2715,"CETORE","IZOLA"]